Ref No,Fund Type,Dept,Cost Centre Description    ,Description    ,Creditor Name    ,GL Code Net Amount,Payment date        
2,Revenue,CAHD,18-25 Year Olds,Permanent Residential,1 St Georges House,13333.52, 07-May-2019
3,Revenue,CAHD,CSC - Asylum Seekers - Unaccompanied,Client Transport,1625 Independent People,66.25, 15-May-2019
4,Revenue,CAHD,CSC - Asylum Seekers - Unaccompanied,Furniture & Fittings Loose,1625 Independent People,250.00, 15-May-2019
5,Revenue,CAHD,CSC - Asylum Seekers - Unaccompanied,Radio Pager/Mobile Phones,1625 Independent People,40.00, 15-May-2019
6,Revenue,CAHD,CSC - Asylum Seekers - Unaccompanied,Leaving Care,1625 Independent People,191.80, 15-May-2019
7,Revenue,CAHD,CSC - Care Leavers Independent Living,Independent Living,1625 Independent People,2286.51, 03-May-2019
8,Revenue,CAHD,Supporting People Programme,Grants to Voluntary Bodies,1625 Independent People,15167.00, 01-May-2019
9,Revenue,CAHD,Supporting People Programme,Grants to Voluntary Bodies,1625 Independent People,10046.00, 01-May-2019
10,Revenue,CAHD,Supporting People Programme,Grants to Voluntary Bodies,1625 Independent People,15167.00, 31-May-2019
11,Revenue,CAHD,Supporting People Programme,Grants to Voluntary Bodies,1625 Independent People,10046.00, 31-May-2019
12,Revenue,CAHD,CSC - Care Leavers Independent Living,Adults - Family Support,16Pluscare Support Solutions,6012.35, 02-May-2019
13,Revenue,CAHD,CSC - Asylum Seekers - Unaccompanied,Adults - Family Support,16Pluscare Support Solutions,6288.35, 02-May-2019
14,Revenue,CAHD,CSC - Asylum Seekers - Unaccompanied,Adults - Family Support,16Pluscare Support Solutions,4462.70, 15-May-2019
15,Revenue,CAHD,CSC - Care Leavers Independent Living,Adults - Family Support,16Pluscare Support Solutions,2438.70, 14-May-2019
16,Revenue,CAHD,CSC - Asylum Seekers - Unaccompanied,Client Transport,16Pluscare Support Solutions,133.40, 16-May-2019
17,Revenue,CAHD,CSC - Asylum Seekers - Unaccompanied,Personal Needs of Clients,16Pluscare Support Solutions,103.00, 16-May-2019
18,Revenue,CAHD,CSC - Asylum Seekers - Unaccompanied,Radio Pager/Mobile Phones,16Pluscare Support Solutions,20.00, 16-May-2019
19,Revenue,CAHD,CSC - Asylum Seekers - Unaccompanied,Adults - Family Support,16Pluscare Support Solutions,479.00, 16-May-2019
20,Revenue,CAHD,Bed Purchasing - North,Permanent Residential,1St Floor Lingfield House,2741.48, 07-May-2019
21,Revenue,CAHD,Bed Purchasing - North,Permanent Nursing,1St Floor Lingfield House,2268.32, 07-May-2019
22,Revenue,CAHD,Homecare - Central,Day Care / Social Activities,3 Trees Community Support Ltd,390.40, 03-May-2019
23,Revenue,CAHD,Homecare - Central,Other Small Contracts,3 Trees Community Support Ltd,5165.44, 03-May-2019
24,Revenue,CAHD,Homecare - Central,Supported Living,3 Trees Community Support Ltd,5574.97, 03-May-2019
25,Revenue,CAHD,Home Care - Elderly - North,Day Care / Social Activities,3 Trees Community Support Ltd,673.44, 03-May-2019
26,Revenue,CAHD,Homecare - Central,Day Care / Social Activities,3 Trees Community Support Ltd,390.40, 17-May-2019
27,Revenue,CAHD,Homecare - Central,Other Small Contracts,3 Trees Community Support Ltd,4497.26, 17-May-2019
28,Revenue,CAHD,Homecare - Central,Supported Living,3 Trees Community Support Ltd,5568.69, 17-May-2019
29,Revenue,CAHD,Home Care - Elderly - North,Day Care / Social Activities,3 Trees Community Support Ltd,527.04, 17-May-2019
30,Revenue,CAHD,Homecare - Central,Day Care / Social Activities,3 Trees Community Support Ltd,390.40, 17-May-2019
31,Revenue,CAHD,Homecare - Central,Other Small Contracts,3 Trees Community Support Ltd,5157.14, 17-May-2019
32,Revenue,CAHD,Homecare - Central,Supported Living,3 Trees Community Support Ltd,5572.89, 17-May-2019
33,Revenue,CAHD,Home Care - Elderly - North,Day Care / Social Activities,3 Trees Community Support Ltd,536.80, 17-May-2019
34,Revenue,CAHD,Homecare - Central,Day Care / Social Activities,3 Trees Community Support Ltd,390.40, 17-May-2019
35,Revenue,CAHD,Homecare - Central,Other Small Contracts,3 Trees Community Support Ltd,5164.47, 17-May-2019
36,Revenue,CAHD,Homecare - Central,Supported Living,3 Trees Community Support Ltd,5577.75, 17-May-2019
37,Revenue,CAHD,Home Care - Elderly - North,Day Care / Social Activities,3 Trees Community Support Ltd,668.56, 17-May-2019
38,Revenue,CAHD,18-25 Year Olds,Permanent Residential,5Th Floor Harlech Court,15254.92, 07-May-2019
39,Revenue,CAHD,18-25 Year Olds,Permanent Residential,5Th Floor Harlech Court,18219.32, 07-May-2019
40,Revenue,CAHD,Bed Purchasing - North,Permanent Residential,5Th Floor Harlech Court,13815.84, 07-May-2019
41,Revenue,CAHD,18-25 Year Olds,Permanent Residential,5Th Floor Harlech Court,13829.56, 07-May-2019
42,Revenue,CAHD,Bed Purchasing - North,Permanent Residential,5Th Floor Harlech Court,14717.16, 07-May-2019
43,Revenue,CAHD,Jointly Funded H&SC Packages,Permanent Residential,5Th Floor Harlech Court,3641.84, 07-May-2019
44,Revenue,CAHD,Bed Purchasing - South,Permanent Residential,5Th Floor Harlech Court,16667.12, 07-May-2019
45,Revenue,CAHD,Bed Purchasing - South,Permanent Residential,5Th Floor Harlech Court,2074.22, 07-May-2019
46,Revenue,CAHD,Bed Purchasing - South,Permanent Residential,5Th Floor Harlech Court,10419.52, 07-May-2019
47,Revenue,CAHD,Bed purchasing - S28A Under 65 - South,Permanent Residential,5Th Floor Harlech Court,10904.68, 07-May-2019
48,Revenue,CAHD,Bed Purchasing - South,Permanent Residential,5Th Floor Harlech Court,11436.40, 07-May-2019
49,Revenue,CAHD,Bed Purchasing - North,Permanent Residential,5Th Floor Harlech Court,12498.56, 07-May-2019
50,Revenue,CAHD,Bed Purchasing - North,Permanent Residential,5Th Floor Harlech Court,10537.24, 07-May-2019
51,Revenue,CAHD,Bed Purchasing - North,Permanent Residential,5Th Floor Harlech Court,9071.12, 07-May-2019
52,Revenue,CAHD,Learning Difficulties Development Fund,Other Supplies & Services,A Clean Sweep Co-operative Ltd,2503.99, 30-May-2019
53,Revenue,CAHD,CSC - Section 17 0-25,Preventative Assistance,A+bility Ltd,834.00, 08-May-2019
54,Revenue,CAHD,CSC - Section 17 0-25,Preventative Assistance,A+bility Ltd,556.00, 08-May-2019
55,Revenue,CAHD,CSC - Section 17 0-25,Preventative Assistance,A+bility Ltd,834.00, 17-May-2019
56,Revenue,CAHD,EARLY YEARS DISABILITY  ACCES FUND,Preventative Assistance,Abbeywood Tots Day Nursery Ltd,2000.00, 14-May-2019
57,Revenue,CAHD,Bed and Breakfast,Storage & Removal,Ablemove-Wottons,639.00, 01-May-2019
58,Revenue,CAHD,CSC - Vinney Green Secure Unit,Operational Equipment,Absolute Bounce,900.00, 13-May-2019
59,Revenue,CAHD,School Improvement and Support,Training Expenses,Achievement For All (3As) Ltd,680.67, 14-May-2019
60,Revenue,CAHD,Section 117 Placements MH Younger,Permanent Residential,Acorn Care Providers,6608.20, 07-May-2019
61,Revenue,CAHD,MH Purchasing - Younger,Permanent Residential,Acorn Care Providers,6144.00, 07-May-2019
62,Revenue,CAHD,Training - Adult Services,Training Expenses,Acorn Health & Safety Limited,477.00, 09-May-2019
63,Revenue,CAHD,Training - Adult Services,Training Expenses,Acorn Health & Safety Limited,432.25, 09-May-2019
64,Revenue,CAHD,Training - Adult Services,Training Expenses,Acorn Health & Safety Limited,427.50, 16-May-2019
65,Revenue,CAHD,Training - Adult Services,Training Expenses,Acorn Health & Safety Limited,427.50, 23-May-2019
66,Revenue,CAHD,Training - Adult Services,Training Expenses,Acorn Health & Safety Limited,427.50, 31-May-2019
67,Revenue,CAHD,Training - Adult Services,Training Expenses,Acorn Health & Safety Limited,537.00, 31-May-2019
68,Revenue,CAHD,Older People's Commissioned Se,Grants to Voluntary Bodies,Action for Blind People,27475.00, 07-May-2019
69,Revenue,CAHD,CSC - Agency Fostering,Foster Parent Allowances,Action for Children,3244.20, 30-May-2019
70,Revenue,CAHD,CSC - Agency Fostering,Foster Parent Allowances,Action for Children,6750.00, 29-May-2019
71,Revenue,CAHD,CSC - Agency Fostering,Foster Parent Allowances,Action for Children,3542.10, 30-May-2019
72,Revenue,CAHD,CSC - Agency Fostering,Foster Parent Allowances,Action for Children,3542.10, 30-May-2019
73,Revenue,CAHD,CSC - Agency Fostering,Foster Parent Allowances,Action for Children,621.40, 30-May-2019
74,Revenue,CAHD,Winter Incentive Payments,Other Small Contracts,Advantedge Commercial Finance Limited,1600.00, 24-May-2019
75,Revenue,CAHD,Home Care - Elderly - North,Day Care / Social Activities,Age Concern,555.60, 07-May-2019
76,Revenue,CAHD,Mental Health and Emotional Wellbeing,Other Small Contracts,Age UK South Gloucestershire,13725.00, 07-May-2019
77,Revenue,CAHD,Homecare - Central,Other Small Contracts,Agincare UK Limited,515.57, 17-May-2019
78,Revenue,CAHD,Home Care - Elderly - South,Other Small Contracts,Agincare UK Limited,487.19, 17-May-2019
79,Revenue,CAHD,Homecare - Central,Other Small Contracts,Agincare UK Limited,510.84, 17-May-2019
80,Revenue,CAHD,Home Care - Elderly - South,Other Small Contracts,Agincare UK Limited,553.41, 17-May-2019
81,Revenue,CAHD,Homecare - Central,Other Small Contracts,Agincare UK Limited,534.49, 17-May-2019
82,Revenue,CAHD,Home Care - Elderly - South,Other Small Contracts,Agincare UK Limited,562.87, 17-May-2019
83,Revenue,CAHD,Homecare - Central,Other Small Contracts,Agincare UK Limited,586.52, 17-May-2019
84,Revenue,CAHD,Home Care - Elderly - South,Other Small Contracts,Agincare UK Limited,548.68, 17-May-2019
85,Revenue,CAHD,Extra Care Housing,Private & Voluntary Home Care,Agincare UK Limited,23256.50, 01-May-2019
86,Revenue,CAHD,Extra Care Housing,Private & Voluntary Home Care,Agincare UK Limited,23256.50, 31-May-2019
87,Revenue,CAHD,Extra Care Housing,Private & Voluntary Home Care,Agincare UK Limited,11253.50, 01-May-2019
88,Revenue,CAHD,Extra Care Housing,Private & Voluntary Home Care,Agincare UK Limited,11253.50, 31-May-2019
89,Revenue,CAHD,Extra Care Housing,Private & Voluntary Home Care,Agincare UK Limited,27590.00, 03-May-2019
90,Revenue,CAHD,Extra Care Housing,Private & Voluntary Home Care,Agincare UK Limited,1668.94, 13-May-2019
91,Revenue,CAHD,Extra Care Housing,Private & Voluntary Home Care,Agincare UK Limited,5279.04, 13-May-2019
92,Revenue,CAHD,Extra Care Housing,Private & Voluntary Home Care,Agincare UK Limited,2066.44, 13-May-2019
93,Revenue,CAHD,Prison Assessments & Costs,Other Supplies & Services,Agincare UK Limited,3569.00, 21-May-2019
94,Revenue,CAHD,18-25 Year Olds,Permanent Residential,Alexander House,14182.68, 07-May-2019
95,Revenue,CAHD,Home Care - Elderly - South,Other Small Contracts,AliMo Care Ltd,585.00, 17-May-2019
96,Revenue,CAHD,Home Care - Elderly - North,Other Small Contracts,AliMo Care Ltd,126.36, 17-May-2019
97,Revenue,CAHD,Home Care - Elderly - South,Other Small Contracts,AliMo Care Ltd,599.04, 17-May-2019
98,Revenue,CAHD,Home Care - Elderly - North,Other Small Contracts,AliMo Care Ltd,121.68, 17-May-2019
99,Revenue,CAHD,Home Care - Elderly - South,Other Small Contracts,AliMo Care Ltd,580.32, 28-May-2019
100,Revenue,CAHD,Home Care - Elderly - North,Other Small Contracts,AliMo Care Ltd,126.36, 28-May-2019
101,Revenue,CAHD,CSC - LAC Placements,Personal Needs of Clients,All Stars @ Stoke Lodge,977.80, 24-May-2019
102,Revenue,CAHD,Bed Purchasing - North,Permanent Nursing,Allambie Court,2320.44, 07-May-2019
103,Revenue,CAHD,Bed Purchasing - North,Permanent Nursing,Allambie Court,2320.44, 07-May-2019
104,Revenue,CAHD,Mental Health and Emotional Wellbeing,Other Small Contracts,Alzheimers Society,11142.75, 07-May-2019
105,Revenue,CAHD,CSC - Vinney Green Secure Unit,R & M by Departments,Amari Plastics PLC,1726.00, 03-May-2019
106,Revenue,CAHD,CSC - Vinney Green Secure Unit,R & M by Departments,Amari Plastics PLC,826.00, 30-May-2019
107,Revenue,CAHD,Bed Purchasing - North,Permanent Nursing,Amerind Grove Nursing Home,2706.32, 07-May-2019
108,Revenue,CAHD,CSC - Agency Fostering,Foster Parent Allowances,Amicus Foster Care Ltd,4907.10, 03-May-2019
109,Revenue,CAHD,CSC - Agency Fostering,Foster Parent Allowances,Amicus Foster Care Ltd,3157.20, 03-May-2019
110,Revenue,CAHD,CSC - Agency Fostering,Foster Parent Allowances,Amicus Foster Care Ltd,4721.61, 03-May-2019
111,Revenue,CAHD,Supporting People Programme,Grants to Voluntary Bodies,Anchor Hanover Group,1039.00, 01-May-2019
112,Revenue,CAHD,Supporting People Programme,Grants to Voluntary Bodies,Anchor Hanover Group,1039.00, 31-May-2019
113,Revenue,CAHD,Supporting People Programme,Grants to Voluntary Bodies,Anchor Hanover Group,847.00, 01-May-2019
114,Revenue,CAHD,Supporting People Programme,Grants to Voluntary Bodies,Anchor Hanover Group,847.00, 31-May-2019
115,Revenue,CAHD,CSC - Section 17 0-25,Preventative Assistance,Angel Care Support Limited,1008.00, 02-May-2019
116,Revenue,CAHD,CAHA - Complaints and FOI,Complaints External Expenses,Annette Upshall,823.95, 22-May-2019
117,Revenue,CAHD,Jointly Funded H&SC Packages,Permanent Residential,Ash View House,1111.40, 07-May-2019
118,Revenue,CAHD,Bed Purchasing - South,Permanent Residential,Ash View House,5421.04, 07-May-2019
119,Revenue,CAHD,S117 Placements PCT,Permanent Residential,Ash View House,7556.32, 07-May-2019
120,Revenue,CAHD,18-25 Year Olds,Permanent Residential,Ash View House,7099.52, 07-May-2019
121,Revenue,CAHD,Section 117 Placements MH Younger,Permanent Residential,Ash View House,4924.12, 07-May-2019
122,Revenue,CAHD,Jointly Funded H&SC Packages,Permanent Residential,Ash View House,2110.40, 07-May-2019
123,Revenue,CAHD,Bed purchasing - Elderly S117 - South,Permanent Residential,Ash View House,6692.80, 07-May-2019
124,Revenue,CAHD,18-25 Year Olds,Permanent Residential,Ash View House,6615.52, 07-May-2019
125,Revenue,CAHD,Bed Purchasing - North,Permanent Residential,Aspects 2 Limited,7231.88, 07-May-2019
126,Revenue,CAHD,Supporting People Programme,Grants to Voluntary Bodies,Aspects and Milestones Trust,3441.00, 01-May-2019
127,Revenue,CAHD,Supporting People Programme,Grants to Voluntary Bodies,Aspects and Milestones Trust,1725.00, 01-May-2019
128,Revenue,CAHD,Supporting People Programme,Grants to Voluntary Bodies,Aspects and Milestones Trust,3441.00, 31-May-2019
129,Revenue,CAHD,Supporting People Programme,Grants to Voluntary Bodies,Aspects and Milestones Trust,1725.00, 31-May-2019
130,Revenue,CAHD,Winter Incentive Payments,Other Small Contracts,Aspirations Support Bristol Limited,7700.00, 03-May-2019
131,Revenue,CAHD,Research & Conferences,Conference Expenses,Association of Directors of Childrens Services Ltd,780.00, 02-May-2019
132,Revenue,CAHD,Bed Purchasing - South,Adults - Family Support,Ategi Limited,14361.02, 01-May-2019
133,Revenue,CAHD,Bed Purchasing - South,Adults - Family Support,Ategi Limited,14361.02, 30-May-2019
134,Revenue,CAHD,Independent Special Placements - Post 16,Other Private Contractors,Aurora Care & Education,18936.78, 17-May-2019
135,Revenue,CAHD,Independent Special Placements - Pre 16,Other Private Contractors,Aurora Hedgeway School,15154.34, 01-May-2019
136,Revenue,CAHD,Independent Special Placements - Pre 16,Other Private Contractors,Aurora Hedgeway School,16984.00, 01-May-2019
137,Revenue,CAHD,Independent Special Placements - Pre 16,Other Private Contractors,Aurora Hedgeway School,15154.34, 01-May-2019
138,Revenue,CAHD,Independent Special Placements - Pre 16,Other Private Contractors,Aurora Hedgeway School,15154.34, 01-May-2019
139,Revenue,CAHD,Independent Special Placements - Pre 16,Other Private Contractors,Aurora Hedgeway School,15154.34, 01-May-2019
140,Revenue,CAHD,Independent Special Placements - Pre 16,Other Private Contractors,Aurora Hedgeway School,15114.66, 01-May-2019
141,Revenue,CAHD,Independent Special Placements - Pre 16,Other Private Contractors,Aurora Hedgeway School,15154.34, 01-May-2019
142,Revenue,CAHD,Independent Special Placements - Pre 16,Other Private Contractors,Aurora Hedgeway School,15154.34, 01-May-2019
143,Revenue,CAHD,Independent Special Placements - Pre 16,Other Private Contractors,Aurora Hedgeway School,15154.34, 01-May-2019
144,Revenue,CAHD,Independent Special Placements - Pre 16,Other Private Contractors,Aurora Hedgeway School,20948.66, 01-May-2019
145,Revenue,CAHD,Independent Special Placements - Pre 16,Other Private Contractors,Aurora Hedgeway School,16984.00, 01-May-2019
146,Revenue,CAHD,Independent Special Placements - Pre 16,Other Private Contractors,Aurora Hedgeway School,15154.34, 01-May-2019
147,Revenue,CAHD,Independent Special Placements - Pre 16,Other Private Contractors,Aurora Hedgeway School,27638.33, 01-May-2019
148,Revenue,CAHD,Independent Special Placements - Pre 16,Other Private Contractors,Aurora Hedgeway School,22260.34, 01-May-2019
149,Revenue,CAHD,Independent Special Placements - Pre 16,Other Private Contractors,Aurora Hedgeway School,15154.34, 01-May-2019
150,Revenue,CAHD,Independent Special Placements - Pre 16,Other Private Contractors,Aurora Hedgeway School,15154.34, 01-May-2019
151,Revenue,CAHD,Independent Special Placements - Pre 16,Other Private Contractors,Aurora Hedgeway School,15154.34, 01-May-2019
152,Revenue,CAHD,Independent Special Placements - Pre 16,Other Private Contractors,Aurora Hedgeway School,15154.34, 01-May-2019
153,Revenue,CAHD,Independent Special Placements - Pre 16,Other Private Contractors,Aurora Hedgeway School,15154.34, 01-May-2019
154,Revenue,CAHD,Independent Special Placements - Pre 16,Other Private Contractors,Aurora Hedgeway School,17258.66, 01-May-2019
155,Revenue,CAHD,Independent Special Placements - Pre 16,Other Private Contractors,Aurora Hedgeway School,15154.34, 01-May-2019
156,Revenue,CAHD,Independent Special Placements - Pre 16,Other Private Contractors,Aurora Hedgeway School,15154.34, 01-May-2019
157,Revenue,CAHD,Independent Special Placements - Pre 16,Other Private Contractors,Aurora Hedgeway School,15154.34, 01-May-2019
158,Revenue,CAHD,Bed Purchasing - South,Permanent Residential,Autism Specialised Care Homes,6506.88, 07-May-2019
159,Revenue,CAHD,Bed Purchasing - North,Permanent Residential,Avery Homes Downend Limited,4200.00, 07-May-2019
160,Revenue,CAHD,Bed Purchasing - North,Permanent Residential,Avery Homes Downend Limited,3600.00, 07-May-2019
161,Revenue,CAHD,Bed Purchasing - North,Permanent Residential,Avery Homes Downend Limited,4300.80, 07-May-2019
162,Revenue,CAHD,Bed Purchasing - North,Permanent Residential,Avery Homes Downend Limited,4420.00, 07-May-2019
163,Revenue,CAHD,Bed Purchasing - North,Permanent Residential,Avery Homes Downend Limited,1894.29, 07-May-2019
164,Revenue,CAHD,Bed Purchasing - North,Permanent Residential,Avery Homes Downend Limited,4526.08, 07-May-2019
165,Revenue,CAHD,Bed Purchasing - North,Permanent Residential,Avery Homes Downend Limited,2263.04, 07-May-2019
166,Revenue,CAHD,Bed Purchasing - North,Permanent Residential,Avery Homes Downend Limited,2052.14, 07-May-2019
167,Revenue,CAHD,Younger Adult Mental Health,Health Services (Third Party Payments),Avon & Wiltshire Mental Health,1693.33, 01-May-2019
168,Revenue,CAHD,Younger Adult Mental Health,Health Services (Third Party Payments),Avon & Wiltshire Mental Health,1693.33, 13-May-2019
169,Revenue,CAHD,School Improvement and Support,Premises Hire,BAC Trading Limited,800.00, 10-May-2019
170,Revenue,CAHD,Early Years High Needs Support,Other Private Contractors,Baker Street Nursery & Pre-School,910.13, 28-May-2019
171,Revenue,CAHD,CSC - Quality Review Unit,Agency Staff (Admin/Support Staff) Pay,Baltimore Consulting Group,960.00, 13-May-2019
172,Revenue,CAHD,CSC - Quality Review Unit,Agency Staff (Admin/Support Staff) Pay,Baltimore Consulting Group,2400.00, 01-May-2019
173,Revenue,CAHD,CSC - Quality Review Unit,Agency Staff (Admin/Support Staff) Pay,Baltimore Consulting Group,1920.00, 10-May-2019
174,Revenue,CAHD,CSC - Quality Review Unit,Agency Staff (Admin/Support Staff) Pay,Baltimore Consulting Group,1920.00, 16-May-2019
175,Revenue,CAHD,CSC - Quality Review Unit,Agency Staff (Admin/Support Staff) Pay,Baltimore Consulting Group,2280.00, 23-May-2019
176,Revenue,CAHD,CSC - Quality Review Unit,Agency Staff (Admin/Support Staff) Pay,Baltimore Consulting Group,1440.00, 30-May-2019
177,Revenue,CAHD,Pensions - Non DSG,Annual Pension,Bath & North East Somerset Council,109105.50, 07-May-2019
178,Revenue,CAHD,Pensions - Non DSG,Annual Pension,Bath & North East Somerset Council,109870.23, 30-May-2019
179,Revenue,CAHD,Mental Health  Projects,Project Funding,Bawa Healthcare & Leisure,2391.08, 13-May-2019
180,Revenue,CAHD,Pathway 3 - (Complex Beds),Permanent Nursing,Beaufort Care Ltd,11044.00, 24-May-2019
181,Revenue,CAHD,South Glos Users in South Glos Homes,Permanent Nursing,Beaufort Grange Care Home,662.24, 07-May-2019
182,Revenue,CAHD,Bed Purchasing - South,Respite Planned - Residential,Beaufort Grange Care Home,5345.28, 07-May-2019
183,Revenue,CAHD,South Glos Users in South Glos Homes,Permanent Nursing,Beaufort Grange Care Home,662.24, 07-May-2019
184,Revenue,CAHD,South Glos Users in South Glos Homes,Permanent Nursing,Beaufort Grange Care Home,662.24, 07-May-2019
185,Revenue,CAHD,South Glos Users in South Glos Homes,Permanent Nursing,Beaufort Grange Care Home,662.24, 07-May-2019
186,Revenue,CAHD,South Glos Users in South Glos Homes,Permanent Nursing,Beaufort Grange Care Home,662.24, 07-May-2019
187,Revenue,CAHD,South Glos Users in South Glos Homes,Permanent Nursing,Beaufort Grange Care Home,662.24, 07-May-2019
188,Revenue,CAHD,South Glos Users in South Glos Homes,Permanent Nursing,Beaufort Grange Care Home,662.24, 07-May-2019
189,Revenue,CAHD,South Glos Users in South Glos Homes,Permanent Nursing,Beaufort Grange Care Home,662.24, 07-May-2019
190,Revenue,CAHD,South Glos Users in South Glos Homes,Permanent Nursing,Beaufort Grange Care Home,662.24, 07-May-2019
191,Revenue,CAHD,Bed Purchasing - Elderly S117- North,Permanent Nursing,Beaufort Grange Care Home,4877.04, 07-May-2019
192,Revenue,CAHD,South Glos Users in South Glos Homes,Permanent Nursing,Beaufort Grange Care Home,662.24, 07-May-2019
193,Revenue,CAHD,South Glos Users in South Glos Homes,Permanent Nursing,Beaufort Grange Care Home,1649.38, 07-May-2019
194,Revenue,CAHD,South Glos Users in South Glos Homes,Permanent Nursing,Beaufort Grange Care Home,662.24, 07-May-2019
195,Revenue,CAHD,South Glos Users in South Glos Homes,Permanent Nursing,Beaufort Grange Care Home,662.24, 07-May-2019
196,Revenue,CAHD,South Glos Users in South Glos Homes,Permanent Nursing,Beaufort Grange Care Home,662.24, 07-May-2019
197,Revenue,CAHD,South Glos Users in South Glos Homes,Permanent Nursing,Beaufort Grange Care Home,662.24, 07-May-2019
198,Revenue,CAHD,South Glos Users in South Glos Homes,Permanent Nursing,Beaufort Grange Care Home,662.24, 07-May-2019
199,Revenue,CAHD,South Glos Users in South Glos Homes,Permanent Nursing,Beaufort Grange Care Home,662.24, 07-May-2019
200,Revenue,CAHD,South Glos Users in South Glos Homes,Permanent Nursing,Beaufort Grange Care Home,662.24, 07-May-2019
201,Revenue,CAHD,South Glos Users in South Glos Homes,Permanent Nursing,Beaufort Grange Care Home,662.24, 07-May-2019
202,Revenue,CAHD,South Glos Users in South Glos Homes,Permanent Nursing,Beaufort Grange Care Home,662.24, 07-May-2019
203,Revenue,CAHD,South Glos Users in South Glos Homes,Permanent Nursing,Beaufort Grange Care Home,662.24, 07-May-2019
204,Revenue,CAHD,South Glos Users in South Glos Homes,Permanent Nursing,Beaufort Grange Care Home,662.24, 07-May-2019
205,Revenue,CAHD,South Glos Users in South Glos Homes,Permanent Nursing,Beaufort Grange Care Home,662.24, 07-May-2019
206,Revenue,CAHD,South Glos Users in South Glos Homes,Permanent Nursing,Beaufort Grange Care Home,662.24, 07-May-2019
207,Revenue,CAHD,South Glos Users in South Glos Homes,Permanent Nursing,Beaufort Grange Care Home,662.24, 07-May-2019
208,Revenue,CAHD,Bed Purchasing - South,Permanent Residential,Beaufort Grange Care Home,5156.20, 07-May-2019
209,Revenue,CAHD,South Glos Users in South Glos Homes,Permanent Nursing,Beaufort Grange Care Home,662.24, 07-May-2019
210,Revenue,CAHD,South Glos Users in South Glos Homes,Permanent Nursing,Beaufort Grange Care Home,662.24, 07-May-2019
211,Revenue,CAHD,South Glos Users in South Glos Homes,Permanent Nursing,Beaufort Grange Care Home,662.24, 07-May-2019
212,Revenue,CAHD,South Glos Users in South Glos Homes,Permanent Nursing,Beaufort Grange Care Home,662.24, 07-May-2019
213,Revenue,CAHD,South Glos Users in South Glos Homes,Permanent Nursing,Beaufort Grange Care Home,662.24, 07-May-2019
214,Revenue,CAHD,South Glos Users in South Glos Homes,Permanent Nursing,Beaufort Grange Care Home,662.24, 07-May-2019
215,Revenue,CAHD,South Glos Users in South Glos Homes,Permanent Nursing,Beaufort Grange Care Home,662.24, 07-May-2019
216,Revenue,CAHD,South Glos Users in South Glos Homes,Permanent Nursing,Beaufort Grange Care Home,662.24, 07-May-2019
217,Revenue,CAHD,South Glos Users in South Glos Homes,Permanent Nursing,Beaufort Grange Care Home,2327.21, 07-May-2019
218,Revenue,CAHD,South Glos Users in South Glos Homes,Permanent Nursing,Beaufort Grange Care Home,662.24, 07-May-2019
219,Revenue,CAHD,South Glos Users in South Glos Homes,Permanent Nursing,Beaufort Grange Care Home,662.24, 07-May-2019
220,Revenue,CAHD,South Glos Users in South Glos Homes,Permanent Nursing,Beaufort Grange Care Home,662.24, 07-May-2019
221,Revenue,CAHD,South Glos Users in South Glos Homes,Permanent Nursing,Beaufort Grange Care Home,662.24, 07-May-2019
222,Revenue,CAHD,Bed Purchasing - North,Permanent Residential,Beaufort House,2549.56, 07-May-2019
223,Revenue,CAHD,Bed Purchasing - Central,Permanent Residential,Beaufort House,2867.20, 07-May-2019
224,Revenue,CAHD,Bed Purchasing - Central,Permanent Residential,Beaufort House,19361.14, 07-May-2019
225,Revenue,CAHD,Bed Purchasing - Central,Permanent Residential,Beaufort House,2775.60, 07-May-2019
226,Revenue,CAHD,Bed Purchasing - Central,Permanent Residential,Beaufort House,1387.80, 07-May-2019
227,Revenue,CAHD,Bed Purchasing - North,Permanent Residential,Beaufort House,2571.40, 07-May-2019
228,Revenue,CAHD,Bed Purchasing - South,Permanent Residential,Beaufort House,2536.84, 07-May-2019
229,Revenue,CAHD,Bed Purchasing - Central,Permanent Residential,Beaufort House,26742.86, 07-May-2019
230,Revenue,CAHD,Bed Purchasing - Central,Fees & Charges Income - General,Beaufort House,5317.46, 07-May-2019
231,Revenue,CAHD,Bed Purchasing - Central,Fees & Charges Income - General,Beaufort House,13257.14, 07-May-2019
232,Revenue,CAHD,Bed Purchasing - North,Respite Planned - Residential,Beaufort House,8700.00, 07-May-2019
233,Revenue,CAHD,Bed Purchasing - North,Permanent Residential,Beaufort House,3072.00, 07-May-2019
234,Revenue,CAHD,Bed Purchasing - North,Permanent Residential,Beaufort House,1536.00, 07-May-2019
235,Revenue,CAHD,Bed Purchasing - Central,Permanent Residential,Beaufort House,2775.60, 07-May-2019
236,Revenue,CAHD,Bed Purchasing - North,Permanent Residential,Beaufort House,2699.92, 07-May-2019
237,Revenue,CAHD,Bed Purchasing - South,Permanent Residential,Beaufort House,2713.00, 07-May-2019
238,Revenue,CAHD,South Glos Users in South Glos Homes,Permanent Nursing,Beech House,662.24, 07-May-2019
239,Revenue,CAHD,Bed Purchasing - South,Permanent Residential,Beech House,2959.64, 07-May-2019
240,Revenue,CAHD,South Glos Users in South Glos Homes,Permanent Nursing,Beech House,662.24, 07-May-2019
241,Revenue,CAHD,South Glos Users in South Glos Homes,Permanent Nursing,Beech House,662.24, 07-May-2019
242,Revenue,CAHD,South Glos Users in South Glos Homes,Permanent Nursing,Beech House,662.24, 07-May-2019
243,Revenue,CAHD,South Glos Users in South Glos Homes,Permanent Nursing,Beech House,662.24, 07-May-2019
244,Revenue,CAHD,South Glos Users in South Glos Homes,Permanent Nursing,Beech House,662.24, 07-May-2019
245,Revenue,CAHD,South Glos Users in South Glos Homes,Permanent Nursing,Beech House,662.24, 07-May-2019
246,Revenue,CAHD,South Glos Users in South Glos Homes,Permanent Nursing,Beech House,662.24, 07-May-2019
247,Revenue,CAHD,Bed Purchasing - North,Permanent Nursing,Beech House,3547.76, 07-May-2019
248,Revenue,CAHD,South Glos Users in South Glos Homes,Permanent Nursing,Beech House,662.24, 07-May-2019
249,Revenue,CAHD,Bed Purchasing - North,Permanent Residential,Beech House,2959.64, 07-May-2019
250,Revenue,CAHD,South Glos Users in South Glos Homes,Permanent Nursing,Beech House,662.24, 07-May-2019
251,Revenue,CAHD,South Glos Users in South Glos Homes,Permanent Nursing,Beech House,3095.42, 07-May-2019
252,Revenue,CAHD,South Glos Users in South Glos Homes,Permanent Nursing,Beech House,662.24, 07-May-2019
253,Revenue,CAHD,Bed Purchasing - North,Permanent Nursing,Beech House,11626.10, 07-May-2019
254,Revenue,CAHD,Bed Purchasing - North,Permanent Nursing,Beech House,4283.20, 07-May-2019
255,Revenue,CAHD,South Glos Users in South Glos Homes,Permanent Nursing,Beech House,662.24, 07-May-2019
256,Revenue,CAHD,South Glos Users in South Glos Homes,Permanent Nursing,Beech House,662.24, 07-May-2019
257,Revenue,CAHD,South Glos Users in South Glos Homes,Permanent Nursing,Beech House,662.24, 07-May-2019
258,Revenue,CAHD,South Glos Users in South Glos Homes,Permanent Nursing,Beech House,662.24, 07-May-2019
259,Revenue,CAHD,South Glos Users in South Glos Homes,Permanent Nursing,Beech House,662.24, 07-May-2019
260,Revenue,CAHD,South Glos Users in South Glos Homes,Permanent Nursing,Beech House,662.24, 07-May-2019
261,Revenue,CAHD,Bed Purchasing - North,Permanent Nursing,Beech House,3993.60, 07-May-2019
262,Revenue,CAHD,South Glos Users in South Glos Homes,Permanent Nursing,Beech House,662.24, 07-May-2019
263,Revenue,CAHD,South Glos Users in South Glos Homes,Permanent Nursing,Beech House,662.24, 07-May-2019
264,Revenue,CAHD,Bed Purchasing - North,Permanent Residential,Beech House,4069.48, 07-May-2019
265,Revenue,CAHD,South Glos Users in South Glos Homes,Permanent Nursing,Beech House,662.24, 07-May-2019
266,Revenue,CAHD,Bed Purchasing - North,Permanent Residential,Beech House,4075.52, 07-May-2019
267,Revenue,CAHD,South Glos Users in South Glos Homes,Permanent Nursing,Beech House,662.24, 07-May-2019
268,Revenue,CAHD,South Glos Users in South Glos Homes,Permanent Nursing,Beech House,662.24, 07-May-2019
269,Revenue,CAHD,South Glos Users in South Glos Homes,Permanent Nursing,Beech House,662.24, 07-May-2019
270,Revenue,CAHD,Bed Purchasing - North,Permanent Nursing,Beech House,3443.44, 07-May-2019
271,Revenue,CAHD,South Glos Users in South Glos Homes,Permanent Nursing,Beech House,662.24, 07-May-2019
272,Revenue,CAHD,Bed Purchasing - North,Permanent Nursing,Beech House,3307.44, 07-May-2019
273,Revenue,CAHD,South Glos Users in South Glos Homes,Permanent Nursing,Beech House,662.24, 07-May-2019
274,Revenue,CAHD,South Glos Users in South Glos Homes,Permanent Nursing,Beech House,662.24, 07-May-2019
275,Revenue,CAHD,South Glos Users in South Glos Homes,Permanent Nursing,Beech House,662.24, 07-May-2019
276,Revenue,CAHD,Bed Purchasing - North,Permanent Residential,Beech House,4280.32, 07-May-2019
277,Revenue,CAHD,Statemented Support Payments to OLAs,Other L.A.'s - General,Beechen Cliff School,719.29, 29-May-2019
278,Revenue,CAHD,South Glos Users in South Glos Homes,Permanent Nursing,Beechwood Care Home,1012.00, 07-May-2019
279,Revenue,CAHD,Independent Special Placements - Pre 16,Other Private Contractors,Belgrave School,6500.00, 22-May-2019
280,Revenue,CAHD,Independent Special Placements - Pre 16,Other Private Contractors,Belgrave School,7654.33, 03-May-2019
281,Revenue,CAHD,Independent Special Placements - Pre 16,Other Private Contractors,Belgrave School,5441.00, 22-May-2019
282,Revenue,CAHD,Independent Special Placements - Pre 16,Other Private Contractors,Belgrave School,4807.33, 03-May-2019
283,Revenue,CAHD,Independent Special Placements - Pre 16,Other Private Contractors,Belgrave School,4666.67, 03-May-2019
284,Revenue,CAHD,Bed purchasing - Elderly S117 - South,Permanent Residential,Bidna House,3692.64, 07-May-2019
285,Revenue,CAHD,CSC - Care Leavers Support Costs,"Provisions (Food, etc)",Big Yellow Self Storage Company Limited,1825.01, 13-May-2019
286,Revenue,CAHD,Homecare - Central,Other Small Contracts,Blakehill Healthcare Ltd,1050.00, 10-May-2019
287,Revenue,CAHD,Homecare - Central,Other Small Contracts,Blakehill Healthcare Ltd,3200.00, 10-May-2019
288,Revenue,CAHD,Homecare - Central,Other Small Contracts,Blakehill Healthcare Ltd,1506.25, 10-May-2019
289,Revenue,CAHD,Homecare - Central,Other Small Contracts,Blakehill Healthcare Ltd,1425.00, 22-May-2019
290,Revenue,CAHD,Homecare - Central,Other Small Contracts,Blakehill Healthcare Ltd,5250.00, 09-May-2019
291,Revenue,CAHD,South Glos Users in South Glos Homes,Permanent Nursing,Blossom Field,662.24, 07-May-2019
292,Revenue,CAHD,South Glos Users in South Glos Homes,Permanent Nursing,Blossom Field,662.24, 07-May-2019
293,Revenue,CAHD,Bed Purchasing - Elderly S117- North,Permanent Nursing,Blossom Field,3693.56, 07-May-2019
294,Revenue,CAHD,South Glos Users in South Glos Homes,Permanent Nursing,Blossom Field,662.24, 07-May-2019
295,Revenue,CAHD,South Glos Users in South Glos Homes,Permanent Nursing,Blossom Field,662.24, 07-May-2019
296,Revenue,CAHD,South Glos Users in South Glos Homes,Permanent Nursing,Blossom Field,662.24, 07-May-2019
297,Revenue,CAHD,Bed Purchasing - North,Permanent Nursing,Blossom Field,4267.36, 07-May-2019
298,Revenue,CAHD,South Glos Users in South Glos Homes,Permanent Nursing,Blossom Field,662.24, 07-May-2019
299,Revenue,CAHD,Bed Purchasing - North,Permanent Nursing,Blossom Field,3891.20, 07-May-2019
300,Revenue,CAHD,Bed Purchasing - North,Permanent Nursing,Blossom Field,1945.60, 07-May-2019
301,Revenue,CAHD,South Glos Users in South Glos Homes,Permanent Nursing,Blossom Field,662.24, 07-May-2019
302,Revenue,CAHD,South Glos Users in South Glos Homes,Permanent Nursing,Blossom Field,662.24, 07-May-2019
303,Revenue,CAHD,Bed Purchasing - South,Permanent Nursing,Blossom Field,4413.08, 07-May-2019
304,Revenue,CAHD,South Glos Users in South Glos Homes,Permanent Nursing,Blossom Field,662.24, 07-May-2019
305,Revenue,CAHD,Bed Purchasing - North,Permanent Nursing,Blossom Field,3533.92, 07-May-2019
306,Revenue,CAHD,South Glos Users in South Glos Homes,Permanent Nursing,Blossom Field,662.24, 07-May-2019
307,Revenue,CAHD,Bed Purchasing - North,Permanent Nursing,Blossom Field,4799.88, 07-May-2019
308,Revenue,CAHD,South Glos Users in South Glos Homes,Permanent Nursing,Blossom Field,662.24, 07-May-2019
309,Revenue,CAHD,South Glos Users in South Glos Homes,Permanent Nursing,Blossom Field,662.24, 07-May-2019
310,Revenue,CAHD,South Glos Users in South Glos Homes,Permanent Nursing,Blossom Field,662.24, 07-May-2019
311,Revenue,CAHD,South Glos Users in South Glos Homes,Permanent Nursing,Blossom Field,662.24, 07-May-2019
312,Revenue,CAHD,Bed Purchasing - Central,Permanent Nursing,Blossom Field,4267.36, 07-May-2019
313,Revenue,CAHD,Bed Purchasing - Central,Permanent Nursing,Blossom Field,2133.68, 07-May-2019
314,Revenue,CAHD,Bed Purchasing - Central,Permanent Nursing,Blossom Field,1786.01, 07-May-2019
315,Revenue,CAHD,South Glos Users in South Glos Homes,Permanent Nursing,Blossom Field,662.24, 07-May-2019
316,Revenue,CAHD,South Glos Users in South Glos Homes,Permanent Nursing,Blossom Field,662.24, 07-May-2019
317,Revenue,CAHD,South Glos Users in South Glos Homes,Permanent Nursing,Blossom Field,662.24, 07-May-2019
318,Revenue,CAHD,South Glos Users in South Glos Homes,Permanent Nursing,Blossom Field,662.24, 07-May-2019
319,Revenue,CAHD,Bed Purchasing - North,Permanent Nursing,Blossom Field,9674.23, 07-May-2019
320,Revenue,CAHD,Bed Purchasing - North,Permanent Nursing,Blossom Field,4267.36, 07-May-2019
321,Revenue,CAHD,Bed Purchasing - North,Permanent Nursing,Blossom Field,2133.68, 07-May-2019
322,Revenue,CAHD,South Glos Users in South Glos Homes,Permanent Nursing,Blossom Field,1423.44, 07-May-2019
323,Revenue,CAHD,South Glos Users in South Glos Homes,Permanent Nursing,Blossom Field,662.24, 07-May-2019
324,Revenue,CAHD,South Glos Users in South Glos Homes,Permanent Nursing,Blossom Field,2123.86, 07-May-2019
325,Revenue,CAHD,South Glos Users in South Glos Homes,Permanent Nursing,Blossom Field,662.24, 07-May-2019
326,Revenue,CAHD,Bed Purchasing - North,Permanent Nursing,Blossom Field,3634.96, 07-May-2019
327,Revenue,CAHD,South Glos Users in South Glos Homes,Permanent Nursing,Blossom Field,662.24, 07-May-2019
328,Revenue,CAHD,South Glos Users in South Glos Homes,Permanent Nursing,Blossom Field,662.24, 07-May-2019
329,Revenue,CAHD,CSC - Parent & Child Assessments,Foster Parent Allowances,Blue Sky Fostering Limited,4945.00, 13-May-2019
330,Revenue,CAHD,CSC - Parent & Child Assessments,Foster Parent Allowances,Blue Sky Fostering Limited,3225.00, 13-May-2019
331,Revenue,CAHD,CSC - Parent & Child Assessments,Foster Parent Allowances,Blue Sky Fostering Limited,6665.00, 24-May-2019
332,Revenue,CAHD,Bed Purchasing - North,Permanent Residential,Bluebells,3699.60, 07-May-2019
333,Revenue,CAHD,Homecare - Central,Other Small Contracts,Bluebird Care (South Gloucestershire),1431.85, 17-May-2019
334,Revenue,CAHD,Home Care - Elderly - South,Other Small Contracts,Bluebird Care (South Gloucestershire),543.48, 17-May-2019
335,Revenue,CAHD,Home Care - Elderly - North,Other Small Contracts,Bluebird Care (South Gloucestershire),1108.05, 17-May-2019
336,Revenue,CAHD,Homecare - Central,Other Small Contracts,Bluebird Care (South Gloucestershire),1345.70, 22-May-2019
337,Revenue,CAHD,Home Care - Elderly - South,Other Small Contracts,Bluebird Care (South Gloucestershire),543.48, 22-May-2019
338,Revenue,CAHD,Home Care - Elderly - North,Other Small Contracts,Bluebird Care (South Gloucestershire),1123.45, 22-May-2019
339,Revenue,CAHD,Homecare - Central,Other Small Contracts,Bluebird Care (South Gloucestershire),1298.90, 29-May-2019
340,Revenue,CAHD,Home Care - Elderly - South,Other Small Contracts,Bluebird Care (South Gloucestershire),530.54, 29-May-2019
341,Revenue,CAHD,Home Care - Elderly - North,Other Small Contracts,Bluebird Care (South Gloucestershire),1115.75, 29-May-2019
342,Revenue,CAHD,Winter Incentive Payments,Other Small Contracts,Bluebird Care (South Gloucestershire),2000.00, 03-May-2019
343,Revenue,CAHD,Training - Adult Services,Training Expenses,Bob Dawson,1725.00, 10-May-2019
344,Revenue,CAHD,Bed purchasing - S28A Under 65 - South,Permanent Residential,Bradbury House,6505.16, 07-May-2019
345,Revenue,CAHD,18-25 Year Olds,Permanent Residential,Bradbury House,9917.08, 07-May-2019
346,Revenue,CAHD,Bed Purchasing - Elderly S117- North,Permanent Residential,Bradbury House,5740.24, 07-May-2019
347,Revenue,CAHD,Jointly Funded H&SC Packages,Permanent Residential,Bradbury House,7927.00, 07-May-2019
348,Revenue,CAHD,Bed Purchasing - Elderly S117- North,Permanent Residential,Bradbury House,2870.12, 07-May-2019
349,Revenue,CAHD,Jointly Funded H&SC Packages,Permanent Residential,Bradbury House,3963.50, 07-May-2019
350,Revenue,CAHD,NHS Health Checks,Other Small Contracts,Bradley Stoke Surgery,5679.94, 29-May-2019
351,Revenue,CAHD,Sexual Health,Other Small Contracts,Bradley Stoke Surgery,2254.00, 13-May-2019
352,Revenue,CAHD,Sexual Health,Other Small Contracts,Bradley Stoke Surgery,2869.98, 13-May-2019
353,Revenue,CAHD,Tobacco Control,Other Small Contracts,Bradley Stoke Surgery,500.00, 01-May-2019
354,Revenue,CAHD,Social Lettings Agency,Fees - General,Individual,8.15, 03-May-2019
355,Revenue,CAHD,Social Lettings Agency,Other Supplies & Services,Individual,766.10, 03-May-2019
356,Revenue,CAHD,Home Care - Elderly - South,Day Care / Social Activities,Bridge House Care Home,1125.00, 07-May-2019
357,Revenue,CAHD,Bed Purchasing - North,Permanent Residential,Bridge House Care Home,2625.52, 07-May-2019
358,Revenue,CAHD,Bed Purchasing - North,Permanent Residential,Bridgwater Court,10773.64, 07-May-2019
359,Revenue,CAHD,Early Years High Needs Support,Other Private Contractors,Bright Sparks Pre-School,819.11, 28-May-2019
360,Revenue,CAHD,Yate Detached,Rent,Brimsham Green School,558.60, 13-May-2019
361,Revenue,CAHD,Health Inequalities,Other Small Contracts,Bristol & Avon Chinese Womens Group,500.00, 07-May-2019
362,Revenue,CAHD,Statemented Support Academies,Schools Funding,Bristol & South Gloucestershire UTC,7157.54, 29-May-2019
363,Revenue,CAHD,Older People's Commissioned Se,Grants to Voluntary Bodies,Bristol Area Stroke Foundation,19052.75, 07-May-2019
364,Revenue,CAHD,Drug and Alcohol Programme,Other Small Contracts,Bristol City Council,39200.00, 08-May-2019
365,Revenue,CAHD,Transport OLA Special Schools and RB,Client Transport,Bristol City Council,3758.57, 01-May-2019
366,Revenue,CAHD,Transport OLA Special Schools and RB,Client Transport,Bristol City Council,5723.08, 01-May-2019
367,Revenue,CAHD,Purchase of RAC places,Other L.A.'s - General,Bristol City Council,12176.64, 14-May-2019
368,Revenue,CAHD,Sensory Support Joint Arrangement,Other L.A.'s - General,Bristol City Council,39584.00, 10-May-2019
369,Revenue,CAHD,CSC - Section 17 SOUTH,Personal Needs of Clients,Bristol City Council,1297.14, 24-May-2019
370,Revenue,CAHD,Placements OLA Special Schools and RB,Other L.A.'s - General,Bristol City Council - Schools,2578.00, 28-May-2019
371,Revenue,CAHD,Placements OLA Special Schools and RB,Other L.A.'s - General,Bristol City Council - Schools,1350.17, 28-May-2019
372,Revenue,CAHD,Statemented Support Payments to OLAs,Other L.A.'s - General,Bristol City Council - Schools,1379.63, 29-May-2019
373,Revenue,CAHD,Placements OLA Special Schools and RB,Other L.A.'s - General,Bristol City Council - Schools,914.33, 28-May-2019
374,Revenue,CAHD,Placements OLA Special Schools and RB,Other L.A.'s - General,Bristol City Council - Schools,2578.00, 28-May-2019
375,Revenue,CAHD,Placements OLA Special Schools and RB,Other L.A.'s - General,Bristol City Council - Schools,1305.58, 28-May-2019
376,Revenue,CAHD,Statemented Support Payments to OLAs,Other L.A.'s - General,Bristol City Council - Schools,660.33, 29-May-2019
377,Revenue,CAHD,Placements OLA Special Schools and RB,Other L.A.'s - General,Bristol City Council - Schools,3356.33, 28-May-2019
378,Revenue,CAHD,Statemented Support Payments to OLAs,Other L.A.'s - General,Bristol City Council - Schools,907.96, 29-May-2019
379,Revenue,CAHD,Placements OLA Special Schools and RB,Other L.A.'s - General,Bristol City Council - Schools,2578.00, 28-May-2019
380,Revenue,CAHD,Placements OLA Special Schools and RB,Other L.A.'s - General,Bristol City Council - Schools,1381.00, 28-May-2019
381,Revenue,CAHD,Placements OLA Special Schools and RB,Other L.A.'s - General,Bristol City Council - Schools,2050.17, 28-May-2019
382,Revenue,CAHD,Placements OLA Special Schools and RB,Other L.A.'s - General,Bristol City Council - Schools,1381.00, 28-May-2019
383,Revenue,CAHD,Placements OLA Special Schools and RB,Other L.A.'s - General,Bristol City Council - Schools,2050.17, 28-May-2019
384,Revenue,CAHD,Placements OLA Special Schools and RB,Other L.A.'s - General,Bristol City Council - Schools,2578.00, 28-May-2019
385,Revenue,CAHD,Placements OLA Special Schools and RB,Other L.A.'s - General,Bristol City Council - Schools,1675.30, 28-May-2019
386,Revenue,CAHD,Placements OLA Special Schools and RB,Other L.A.'s - General,Bristol City Council - Schools,809.00, 28-May-2019
387,Revenue,CAHD,Placements OLA Special Schools and RB,Other L.A.'s - General,Bristol City Council - Schools,883.50, 28-May-2019
388,Revenue,CAHD,Placements OLA Special Schools and RB,Other L.A.'s - General,Bristol City Council - Schools,4107.54, 28-May-2019
389,Revenue,CAHD,Placements OLA Special Schools and RB,Other L.A.'s - General,Bristol City Council - Schools,777.50, 28-May-2019
390,Revenue,CAHD,Placements OLA Special Schools and RB,Other L.A.'s - General,Bristol City Council - Schools,1031.20, 28-May-2019
391,Revenue,CAHD,Placements OLA Special Schools and RB,Other L.A.'s - General,Bristol City Council - Schools,2578.00, 28-May-2019
392,Revenue,CAHD,Placements OLA Special Schools and RB,Other L.A.'s - General,Bristol City Council - Schools,809.00, 28-May-2019
393,Revenue,CAHD,Placements OLA Special Schools and RB,Other L.A.'s - General,Bristol City Council - Schools,2578.00, 28-May-2019
394,Revenue,CAHD,Placements OLA Special Schools and RB,Other L.A.'s - General,Bristol City Council - Schools,883.50, 28-May-2019
395,Revenue,CAHD,Placements OLA Special Schools and RB,Other L.A.'s - General,Bristol City Council - Schools,2062.40, 28-May-2019
396,Revenue,CAHD,Placements OLA Special Schools and RB,Other L.A.'s - General,Bristol City Council - Schools,2578.00, 28-May-2019
397,Revenue,CAHD,Placements OLA Special Schools and RB,Other L.A.'s - General,Bristol City Council - Schools,1305.58, 28-May-2019
398,Revenue,CAHD,Placements OLA Special Schools and RB,Other L.A.'s - General,Bristol City Council - Schools,883.50, 28-May-2019
399,Revenue,CAHD,Future Bright,Fees - General,Bristol Dyslexia Centre,500.00, 09-May-2019
400,Revenue,CAHD,Future Bright,Fees - General,Bristol Dyslexia Centre,500.00, 15-May-2019
401,Revenue,CAHD,CSC - YOT Pooled Budget,Other Supplies & Services,Bristol Dyslexia Centre,500.00, 30-May-2019
402,Revenue,CAHD,Statemented Support Payments to OLAs,Other L.A.'s - General,Broadlands Academy,1332.46, 29-May-2019
403,Revenue,CAHD,South Glos Users in South Glos Homes,Permanent Nursing,Brunelcare,709.54, 24-May-2019
404,Revenue,CAHD,South Glos Users in South Glos Homes,Permanent Nursing,Brunelcare,709.54, 24-May-2019
405,Revenue,CAHD,South Glos Users in South Glos Homes,Permanent Nursing,Brunelcare,709.54, 24-May-2019
406,Revenue,CAHD,South Glos Users in South Glos Homes,Permanent Nursing,Brunelcare,709.54, 24-May-2019
407,Revenue,CAHD,South Glos Users in South Glos Homes,Permanent Nursing,Brunelcare,709.54, 24-May-2019
408,Revenue,CAHD,South Glos Users in South Glos Homes,Permanent Nursing,Brunelcare,709.54, 24-May-2019
409,Revenue,CAHD,South Glos Users in South Glos Homes,Permanent Nursing,Brunelcare,709.54, 24-May-2019
410,Revenue,CAHD,South Glos Users in South Glos Homes,Permanent Nursing,Brunelcare,709.54, 24-May-2019
411,Revenue,CAHD,South Glos Users in South Glos Homes,Permanent Nursing,Brunelcare,709.54, 24-May-2019
412,Revenue,CAHD,South Glos Users in South Glos Homes,Permanent Nursing,Brunelcare,709.54, 24-May-2019
413,Revenue,CAHD,South Glos Users in South Glos Homes,Permanent Nursing,Brunelcare,709.54, 24-May-2019
414,Revenue,CAHD,South Glos Users in South Glos Homes,Permanent Nursing,Brunelcare,709.54, 24-May-2019
415,Revenue,CAHD,South Glos Users in South Glos Homes,Permanent Nursing,Brunelcare,709.54, 24-May-2019
416,Revenue,CAHD,South Glos Users in South Glos Homes,Permanent Nursing,Brunelcare,709.54, 24-May-2019
417,Revenue,CAHD,Bed purchasing - Elderly S117 - South,Permanent Nursing,Brunelcare,3523.90, 24-May-2019
418,Revenue,CAHD,Bed purchasing - Elderly S117 - South,Permanent Nursing,Brunelcare,3523.90, 24-May-2019
419,Revenue,CAHD,Bed Purchasing - South,Permanent Nursing,Brunelcare,1301.93, 24-May-2019
420,Revenue,CAHD,Bed Purchasing - South,Permanent Nursing,Brunelcare,2567.85, 24-May-2019
421,Revenue,CAHD,Bed Purchasing - South,Permanent Nursing,Brunelcare,2719.05, 24-May-2019
422,Revenue,CAHD,Bed Purchasing - South,Permanent Nursing,Brunelcare,2850.47, 24-May-2019
423,Revenue,CAHD,Bed Purchasing - South,Permanent Nursing,Brunelcare,2938.23, 24-May-2019
424,Revenue,CAHD,Bed Purchasing - South,Permanent Nursing,Brunelcare,2557.44, 24-May-2019
425,Revenue,CAHD,Bed Purchasing - South,Permanent Nursing,Brunelcare,2918.08, 24-May-2019
426,Revenue,CAHD,Bed Purchasing - South,Permanent Nursing,Brunelcare,2566.54, 24-May-2019
427,Revenue,CAHD,Enhanced Dementia Beds,Respite Planned - Nursing,Brunelcare,4229.28, 24-May-2019
428,Revenue,CAHD,Bed Purchasing - South,Respite Planned - Nursing,Brunelcare,832.90, 24-May-2019
429,Revenue,CAHD,Bed Purchasing - South,Respite Planned - Nursing,Brunelcare,946.86, 24-May-2019
430,Revenue,CAHD,Bed Purchasing - North,Permanent Nursing,Brunelcare,2829.00, 24-May-2019
431,Revenue,CAHD,Bed Purchasing - North,Permanent Nursing,Brunelcare,2821.74, 24-May-2019
432,Revenue,CAHD,Bed Purchasing - North,Permanent Nursing,Brunelcare,3523.90, 24-May-2019
433,Revenue,CAHD,Bed Purchasing - North,Respite Planned - Nursing,Brunelcare,1585.95, 24-May-2019
434,Revenue,CAHD,Bed Purchasing - Elderly S117- North,Permanent Nursing,Brunelcare,3523.90, 24-May-2019
435,Revenue,CAHD,Bed Purchasing - Elderly S117- North,Permanent Nursing,Brunelcare,3523.90, 24-May-2019
436,Revenue,CAHD,Pathway 2 - (Interim Beds),Permanent Nursing,Brunelcare,17686.00, 17-May-2019
437,Revenue,CAHD,Home Care - Elderly - South,Other Small Contracts,Brunelcare,23095.80, 09-May-2019
438,Revenue,CAHD,Home Care - Elderly - North,Other Small Contracts,Brunelcare,309.40, 09-May-2019
439,Revenue,CAHD,Home Care - Elderly - South,Other Small Contracts,Brunelcare,23250.50, 09-May-2019
440,Revenue,CAHD,Home Care - Elderly - North,Other Small Contracts,Brunelcare,309.40, 09-May-2019
441,Revenue,CAHD,Home Care - Elderly - South,Other Small Contracts,Brunelcare,23550.67, 17-May-2019
442,Revenue,CAHD,Home Care - Elderly - North,Other Small Contracts,Brunelcare,302.72, 17-May-2019
443,Revenue,CAHD,Home Care - Elderly - South,Other Small Contracts,Brunelcare,23195.20, 17-May-2019
444,Revenue,CAHD,Home Care - Elderly - North,Other Small Contracts,Brunelcare,307.45, 17-May-2019
445,Revenue,CAHD,Home Care - Elderly - South,Other Small Contracts,Brunelcare,22505.34, 30-May-2019
446,Revenue,CAHD,Home Care - Elderly - North,Other Small Contracts,Brunelcare,307.45, 30-May-2019
447,Revenue,CAHD,Pathway 1 - Re-Ablement Home Care,Other Small Contracts,Brunelcare,1151.15, 29-May-2019
448,Revenue,CAHD,Pathway 1 - Re-Ablement Home Care,Other Small Contracts,Brunelcare,747.34, 29-May-2019
449,Revenue,CAHD,Pathway 1 - Re-Ablement Home Care,Other Small Contracts,Brunelcare,17660.91, 13-May-2019
450,Revenue,CAHD,Pathway 1 - Re-Ablement Home Care,Other Small Contracts,Brunelcare,1469.65, 29-May-2019
451,Revenue,CAHD,Pathway 1 - Re-Ablement Home Care,Other Small Contracts,Brunelcare,1324.85, 29-May-2019
452,Revenue,CAHD,Pathway 1 - Re-Ablement Home Care,Other Small Contracts,Brunelcare,1669.86, 29-May-2019
453,Revenue,CAHD,Pathway 1 - Re-Ablement Home Care,Other Small Contracts,Brunelcare,1729.00, 29-May-2019
454,Revenue,CAHD,Winter Incentive Payments,Other Small Contracts,Brunelcare,2600.00, 10-May-2019
455,Revenue,CAHD,Information Systems - Software,Computer Equipment - Purchase,BT Global Services Solutions,488.14, 20-May-2019
456,Revenue,CAHD,CSC - Vinney Green Secure Unit,Service Contracts (Premises),BWS Standfast Fire & Security Systems,62277.00, 09-May-2019
457,Revenue,CAHD,CSC - Vinney Green Secure Unit,R & M by Departments,BWS Standfast Fire & Security Systems,1196.00, 30-May-2019
458,Revenue,CAHD,Social Lettings Agency,Fees - General,Individual,16.16, 24-May-2019
459,Revenue,CAHD,Social Lettings Agency,Other Supplies & Services,Individual,710.96, 24-May-2019
460,Revenue,CAHD,Statemented Support Payments to OLAs,Other L.A.'s - General,Cabot Learning Federation,1544.71, 29-May-2019
461,Revenue,CAHD,Academy Resource Base Funding,Other Public Bodies,Cabot Learning Federation,1172.69, 30-May-2019
462,Revenue,CAHD,Academy Resource Base Funding,Other Public Bodies,Cabot Learning Federation,1172.69, 30-May-2019
463,Revenue,CAHD,Academy Resource Base Funding,Other Public Bodies,Cabot Learning Federation,1172.69, 30-May-2019
464,Revenue,CAHD,Academy Resource Base Funding,Other Public Bodies,Cabot Learning Federation,1698.31, 30-May-2019
465,Revenue,CAHD,Academy Resource Base Funding,Other Public Bodies,Cabot Learning Federation,1536.63, 30-May-2019
466,Revenue,CAHD,Academy Resource Base Funding,Other Public Bodies,Cabot Learning Federation,1536.63, 30-May-2019
467,Revenue,CAHD,Academy Resource Base Funding,Other Public Bodies,Cabot Learning Federation,1172.69, 30-May-2019
468,Revenue,CAHD,Academy Resource Base Funding,Other Public Bodies,Cabot Learning Federation,1172.69, 30-May-2019
469,Revenue,CAHD,Academy Resource Base Funding,Other Public Bodies,Cabot Learning Federation,1698.31, 30-May-2019
470,Revenue,CAHD,Academy Resource Base Funding,Other Public Bodies,Cabot Learning Federation,1698.31, 30-May-2019
471,Revenue,CAHD,Academy Resource Base Funding,Other Public Bodies,Cabot Learning Federation,945.71, 30-May-2019
472,Revenue,CAHD,Academy Resource Base Funding,Other Public Bodies,Cabot Learning Federation,1536.63, 30-May-2019
473,Revenue,CAHD,Academy Resource Base Funding,Other Public Bodies,Cabot Learning Federation,889.61, 30-May-2019
474,Revenue,CAHD,Schools Block Growth Contingency,Other Public Bodies,Cabot Learning Federation,20833.33, 30-May-2019
475,Revenue,CAHD,Schools Block Growth Contingency,Other Public Bodies,Cabot Learning Federation,53196.13, 30-May-2019
476,Revenue,CAHD,Schools Block Growth Contingency,Other Public Bodies,Cabot Learning Federation,23425.38, 30-May-2019
477,Revenue,CAHD,Statemented Support Payments to OLAs,Other L.A.'s - General,Cabot Learning Federation,518.83, 29-May-2019
478,Revenue,CAHD,Statemented Support Academies,Schools Funding,Cabot Learning Federation,613.17, 29-May-2019
479,Revenue,CAHD,Statemented Support Academies,Schools Funding,Cabot Learning Federation,518.83, 29-May-2019
480,Revenue,CAHD,Statemented Support Academies,Schools Funding,Cabot Learning Federation,554.21, 29-May-2019
481,Revenue,CAHD,Statemented Support Academies,Schools Funding,Cabot Learning Federation,566.00, 29-May-2019
482,Revenue,CAHD,Statemented Support Payments to OLAs,Other L.A.'s - General,Cabot Learning Federation,1014.08, 29-May-2019
483,Revenue,CAHD,Statemented Support Academies,Schools Funding,Cabot Learning Federation,695.71, 29-May-2019
484,Revenue,CAHD,Statemented Support Payments to OLAs,Other L.A.'s - General,Cabot Learning Federation,872.58, 29-May-2019
485,Revenue,CAHD,Statemented Support Academies,Schools Funding,Cabot Learning Federation,613.17, 29-May-2019
486,Revenue,CAHD,Statemented Support Academies,Schools Funding,Cabot Learning Federation,566.00, 29-May-2019
487,Revenue,CAHD,Statemented Support Academies,Schools Funding,Cabot Learning Federation,554.21, 29-May-2019
488,Revenue,CAHD,Statemented Support Academies,Schools Funding,Cabot Learning Federation,742.88, 29-May-2019
489,Revenue,CAHD,Statemented Support Academies,Schools Funding,Cabot Learning Federation,943.33, 29-May-2019
490,Revenue,CAHD,Statemented Support Academies,Schools Funding,Cabot Learning Federation,813.63, 29-May-2019
491,Revenue,CAHD,Statemented Support Payments to OLAs,Other L.A.'s - General,Cabot Learning Federation,601.38, 29-May-2019
492,Revenue,CAHD,Statemented Support Academies,Schools Funding,Cabot Learning Federation,589.58, 29-May-2019
493,Revenue,CAHD,Statemented Support Academies,Schools Funding,Cabot Learning Federation,801.83, 29-May-2019
494,Revenue,CAHD,Statemented Support Academies,Schools Funding,Cabot Learning Federation,719.29, 29-May-2019
495,Revenue,CAHD,Statemented Support Academies,Schools Funding,Cabot Learning Federation,731.08, 29-May-2019
496,Revenue,CAHD,Statemented Support Academies,Schools Funding,Cabot Learning Federation,907.96, 29-May-2019
497,Revenue,CAHD,Statemented Support Academies,Schools Funding,Cabot Learning Federation,672.13, 29-May-2019
498,Revenue,CAHD,Statemented Support Academies,Schools Funding,Cabot Learning Federation,742.88, 29-May-2019
499,Revenue,CAHD,Statemented Support Academies,Schools Funding,Cabot Learning Federation,907.96, 29-May-2019
500,Revenue,CAHD,Statemented Support Payments to OLAs,Other L.A.'s - General,Cabot Learning Federation,601.38, 29-May-2019
501,Revenue,CAHD,Statemented Support Payments to OLAs,Other L.A.'s - General,Cabot Learning Federation,1073.04, 29-May-2019
502,Revenue,CAHD,Statemented Support Payments to OLAs,Other L.A.'s - General,Cabot Learning Federation,589.58, 29-May-2019
503,Revenue,CAHD,Statemented Support Academies,Schools Funding,Cabot Learning Federation,1297.08, 29-May-2019
504,Revenue,CAHD,Early Years High Needs Support,Other Private Contractors,Caerleon Childcare,515.74, 28-May-2019
505,Revenue,CAHD,Cambrian Green Day Service,Catering,Cambrian Court Dining,506.00, 03-May-2019
506,Revenue,CAHD,Cambrian Green Day Service,Catering,Cambrian Court Dining,599.50, 03-May-2019
507,Revenue,CAHD,Cambrian Green Day Service,Catering,Cambrian Court Dining,577.50, 17-May-2019
508,Revenue,CAHD,Cambrian Green Day Service,Catering,Cambrian Court Dining,594.00, 31-May-2019
509,Revenue,CAHD,Cambrian Green Day Service,Catering,Cambrian Court Dining,544.50, 03-May-2019
510,Revenue,CAHD,Home Care - Elderly - North,Day Care / Social Activities,Camphill Communities Thornbury Limited,844.44, 03-May-2019
511,Revenue,CAHD,Home Care - Elderly - North,Other Small Contracts,Camphill Communities Thornbury Limited,167.98, 03-May-2019
512,Revenue,CAHD,Home Care - Elderly - North,Supported Living,Camphill Communities Thornbury Limited,1016.96, 03-May-2019
513,Revenue,CAHD,Home Care - Elderly - North,Day Care / Social Activities,Camphill Communities Thornbury Limited,989.72, 10-May-2019
514,Revenue,CAHD,Home Care - Elderly - North,Other Small Contracts,Camphill Communities Thornbury Limited,163.44, 10-May-2019
515,Revenue,CAHD,Home Care - Elderly - North,Supported Living,Camphill Communities Thornbury Limited,1030.58, 10-May-2019
516,Revenue,CAHD,Home Care - Elderly - North,Day Care / Social Activities,Camphill Communities Thornbury Limited,955.46, 17-May-2019
517,Revenue,CAHD,Home Care - Elderly - North,Other Small Contracts,Camphill Communities Thornbury Limited,170.28, 17-May-2019
518,Revenue,CAHD,Home Care - Elderly - North,Supported Living,Camphill Communities Thornbury Limited,1059.52, 17-May-2019
519,Revenue,CAHD,Home Care - Elderly - North,Day Care / Social Activities,Camphill Communities Thornbury Limited,297.99, 24-May-2019
520,Revenue,CAHD,Home Care - Elderly - North,Supported Living,Camphill Communities Thornbury Limited,340.56, 24-May-2019
521,Revenue,CAHD,Home Care - Elderly - North,Day Care / Social Activities,Camphill Communities Thornbury Limited,865.59, 31-May-2019
522,Revenue,CAHD,Home Care - Elderly - North,Supported Living,Camphill Communities Thornbury Limited,591.25, 31-May-2019
523,Revenue,CAHD,Bed Purchasing - Elderly S117- North,Permanent Residential,Canjayor,2527.68, 07-May-2019
524,Revenue,CAHD,Alexandra Way,Refuse Collection Charges,Cannon Hygiene Limited,547.80, 03-May-2019
525,Revenue,CAHD,Homecare - Central,Other Small Contracts,Care 1st Homecare,2925.56, 17-May-2019
526,Revenue,CAHD,Homecare - Central,Other Small Contracts,Care 1st Homecare,2921.20, 17-May-2019
527,Revenue,CAHD,Homecare - Central,Other Small Contracts,Care 1st Homecare,2929.92, 17-May-2019
528,Revenue,CAHD,Homecare - Central,Other Small Contracts,Care 1st Homecare,2929.92, 17-May-2019
529,Revenue,CAHD,Homecare - Central,Other Small Contracts,Care 1st Homecare,2929.92, 29-May-2019
530,Revenue,CAHD,18-25 Year Olds,Other Small Contracts,Care Horizons Limited,57.96, 03-May-2019
531,Revenue,CAHD,Homecare - Central,Other Small Contracts,Care Horizons Limited,502.32, 03-May-2019
532,Revenue,CAHD,Home Care - Elderly - South,Other Small Contracts,Care Horizons Limited,251.16, 03-May-2019
533,Revenue,CAHD,Home Care - Elderly - North,Day Care / Social Activities,Care Horizons Limited,270.48, 03-May-2019
534,Revenue,CAHD,Home Care - Elderly - North,Other Small Contracts,Care Horizons Limited,362.25, 03-May-2019
535,Revenue,CAHD,Younger MH non-res purchasing,Other Small Contracts,Care Horizons Limited,280.14, 03-May-2019
536,Revenue,CAHD,Homecare - Central,Other Small Contracts,Care Horizons Limited,661.71, 22-May-2019
537,Revenue,CAHD,Home Care - Elderly - South,Other Small Contracts,Care Horizons Limited,251.16, 22-May-2019
538,Revenue,CAHD,Home Care - Elderly - North,Day Care / Social Activities,Care Horizons Limited,410.55, 22-May-2019
539,Revenue,CAHD,Home Care - Elderly - North,Other Small Contracts,Care Horizons Limited,294.63, 22-May-2019
540,Revenue,CAHD,Younger MH non-res purchasing,Other Small Contracts,Care Horizons Limited,91.77, 22-May-2019
541,Revenue,CAHD,Homecare - Central,Other Small Contracts,Care Horizons Limited,874.23, 17-May-2019
542,Revenue,CAHD,Home Care - Elderly - South,Other Small Contracts,Care Horizons Limited,251.16, 17-May-2019
543,Revenue,CAHD,Home Care - Elderly - North,Day Care / Social Activities,Care Horizons Limited,405.72, 17-May-2019
544,Revenue,CAHD,Home Care - Elderly - North,Other Small Contracts,Care Horizons Limited,352.59, 17-May-2019
545,Revenue,CAHD,Younger MH non-res purchasing,Other Small Contracts,Care Horizons Limited,207.69, 17-May-2019
546,Revenue,CAHD,Homecare - Central,Other Small Contracts,Care Horizons Limited,676.20, 22-May-2019
547,Revenue,CAHD,Home Care - Elderly - South,Other Small Contracts,Care Horizons Limited,251.16, 22-May-2019
548,Revenue,CAHD,Home Care - Elderly - North,Day Care / Social Activities,Care Horizons Limited,405.72, 22-May-2019
549,Revenue,CAHD,Home Care - Elderly - North,Other Small Contracts,Care Horizons Limited,342.93, 22-May-2019
550,Revenue,CAHD,Younger MH non-res purchasing,Other Small Contracts,Care Horizons Limited,96.60, 22-May-2019
551,Revenue,CAHD,SLA Grants - Support Serv,Grants to Voluntary Bodies,Carers Support Centre,12275.00, 07-May-2019
552,Revenue,CAHD,SLA Grants - Support Serv,Grants to Voluntary Bodies,Carers Support Centre,25275.00, 07-May-2019
553,Revenue,CAHD,Health Inequalities,Other Small Contracts,Carers Support Centre,60477.00, 07-May-2019
554,Revenue,CAHD,Home Care - Elderly - South,Other Small Contracts,Caring Comes 1st Limited,925.65, 28-May-2019
555,Revenue,CAHD,Home Care - Elderly - South,Other Small Contracts,Caring Comes 1st Limited,1391.28, 13-May-2019
556,Revenue,CAHD,Home Care - Elderly - South,Other Small Contracts,Caring Comes 1st Limited,617.10, 13-May-2019
557,Revenue,CAHD,Home Care - Elderly - South,Other Small Contracts,Caring Comes 1st Limited,561.00, 15-May-2019
558,Revenue,CAHD,Home Care - Elderly - South,Other Small Contracts,Caring Comes 1st Limited,2838.66, 23-May-2019
559,Revenue,CAHD,Home Care - Elderly - South,Other Small Contracts,Caring Comes 1st Limited,942.48, 23-May-2019
560,Revenue,CAHD,Home Care - Elderly - South,Other Small Contracts,Caring Comes 1st Limited,628.32, 28-May-2019
561,Revenue,CAHD,Home Care - Elderly - South,Other Small Contracts,Caring Comes 1st Limited,875.16, 24-May-2019
562,Revenue,CAHD,Home Care - Elderly - South,Other Small Contracts,Caring Comes 1st Limited,617.10, 15-May-2019
563,Revenue,CAHD,Home Care - Elderly - South,Other Small Contracts,Caring Comes 1st Limited,628.32, 28-May-2019
564,Revenue,CAHD,Homecare - Central,Supported Living,Cartrefi Cymru Co Operative,1340.32, 07-May-2019
565,Revenue,CAHD,Statemented Support Academies,Schools Funding,Castle School Education Trust,518.83, 29-May-2019
566,Revenue,CAHD,Statemented Support Academies,Schools Funding,Castle School Education Trust,566.00, 29-May-2019
567,Revenue,CAHD,Statemented Support Academies,Schools Funding,Castle School Education Trust,778.25, 29-May-2019
568,Revenue,CAHD,Statemented Support Academies,Schools Funding,Castle School Education Trust,931.54, 29-May-2019
569,Revenue,CAHD,Statemented Support Academies,Schools Funding,Castle School Education Trust,542.42, 29-May-2019
570,Revenue,CAHD,Statemented Support Academies,Schools Funding,Castle School Education Trust,672.13, 29-May-2019
571,Revenue,CAHD,Statemented Support Academies,Other Public Bodies,Castle School Education Trust,1010.16, 29-May-2019
572,Revenue,CAHD,Statemented Support Academies,Schools Funding,Castle School Education Trust,860.79, 29-May-2019
573,Revenue,CAHD,Statemented Support Academies,Schools Funding,Castle School Education Trust,1462.17, 29-May-2019
574,Revenue,CAHD,Statemented Support Academies,Schools Funding,Castle School Education Trust,860.79, 29-May-2019
575,Revenue,CAHD,Statemented Support Academies,Schools Funding,Castle School Education Trust,1002.29, 29-May-2019
576,Revenue,CAHD,Statemented Support Academies,Schools Funding,Castle School Education Trust,1120.21, 29-May-2019
577,Revenue,CAHD,Statemented Support Academies,Schools Funding,Castle School Education Trust,507.04, 29-May-2019
578,Revenue,CAHD,Statemented Support Academies,Schools Funding,Castle School Education Trust,589.58, 29-May-2019
579,Revenue,CAHD,Statemented Support Academies,Schools Funding,Castle School Education Trust,955.13, 29-May-2019
580,Revenue,CAHD,Statemented Support Academies,Schools Funding,Castle School Education Trust,577.79, 29-May-2019
581,Revenue,CAHD,Statemented Support Academies,Schools Funding,Castle School Education Trust,624.96, 29-May-2019
582,Revenue,CAHD,Statemented Support Academies,Schools Funding,Castle School Education Trust,825.42, 29-May-2019
583,Revenue,CAHD,Statemented Support Academies,Schools Funding,Castle School Education Trust,707.50, 29-May-2019
584,Revenue,CAHD,Statemented Support Academies,Schools Funding,Castle School Education Trust,849.00, 29-May-2019
585,Revenue,CAHD,Statemented Support Academies,Schools Funding,Castle School Education Trust,1238.13, 29-May-2019
586,Revenue,CAHD,Statemented Support Academies,Schools Funding,Castle School Education Trust,1061.25, 29-May-2019
587,Revenue,CAHD,Statemented Support Academies,Schools Funding,Castle School Education Trust,518.83, 29-May-2019
588,Revenue,CAHD,Statemented Support Academies,Schools Funding,Castle School Education Trust,577.79, 29-May-2019
589,Revenue,CAHD,Statemented Support Academies,Schools Funding,Castle School Education Trust,1143.79, 29-May-2019
590,Revenue,CAHD,Academy Resource Base Funding,Other Public Bodies,Castle School Education Trust,1698.31, 30-May-2019
591,Revenue,CAHD,Academy Resource Base Funding,Other Public Bodies,Castle School Education Trust,1698.31, 30-May-2019
592,Revenue,CAHD,Academy Resource Base Funding,Other Public Bodies,Castle School Education Trust,1698.31, 30-May-2019
593,Revenue,CAHD,Academy Resource Base Funding,Other Public Bodies,Castle School Education Trust,1698.31, 30-May-2019
594,Revenue,CAHD,Academy Resource Base Funding,Other Public Bodies,Castle School Education Trust,1698.31, 30-May-2019
595,Revenue,CAHD,Academy Resource Base Funding,Other Public Bodies,Castle School Education Trust,1698.31, 30-May-2019
596,Revenue,CAHD,Academy Resource Base Funding,Other Public Bodies,Castle School Education Trust,1698.31, 30-May-2019
597,Revenue,CAHD,Schools Block Growth Contingency,Other Public Bodies,Castle School Education Trust,33318.63, 30-May-2019
598,Revenue,CAHD,Statemented Support Academies,Schools Funding,Castle School Education Trust,1485.75, 29-May-2019
599,Revenue,CAHD,Statemented Support Academies,Schools Funding,Castle School Education Trust,672.13, 29-May-2019
600,Revenue,CAHD,Statemented Support Academies,Schools Funding,Castle School Education Trust,872.58, 29-May-2019
601,Revenue,CAHD,Statemented Support Academies,Schools Funding,Castle School Education Trust,849.00, 29-May-2019
602,Revenue,CAHD,Statemented Support Academies,Schools Funding,Castle School Education Trust,907.96, 29-May-2019
603,Revenue,CAHD,Statemented Support Academies,Schools Funding,Castle School Education Trust,1190.96, 29-May-2019
604,Revenue,CAHD,Statemented Support Academies,Schools Funding,Castle School Education Trust,1556.50, 29-May-2019
605,Revenue,CAHD,Statemented Support Academies,Schools Funding,Castle School Education Trust,1025.88, 29-May-2019
606,Revenue,CAHD,Statemented Support Academies,Schools Funding,Castle School Education Trust,1473.96, 29-May-2019
607,Revenue,CAHD,Statemented Support Academies,Schools Funding,Castle School Education Trust,778.25, 29-May-2019
608,Revenue,CAHD,Statemented Support Academies,Schools Funding,Castle School Education Trust,613.17, 29-May-2019
609,Revenue,CAHD,Statemented Support Academies,Other Public Bodies,Castle School Education Trust,630.58, 29-May-2019
610,Revenue,CAHD,Post 16 High Needs Placements,Other Private Contractors,Catch 22 Charity Ltd,16990.00, 10-May-2019
611,Revenue,CAHD,Social Lettings Agency,Fees - General,Individual,10.53, 01-May-2019
612,Revenue,CAHD,Social Lettings Agency,Fees & Charges Income - General,Individual,595.11, 01-May-2019
613,Revenue,CAHD,Social Lettings Agency,Fees - General,Individual,10.53, 31-May-2019
614,Revenue,CAHD,Social Lettings Agency,Fees & Charges Income - General,Individual,595.11, 31-May-2019
615,Revenue,CAHD,Home Care - Elderly - North,Day Care / Social Activities,Causeway House,1422.64, 07-May-2019
616,Revenue,CAHD,Homecare - Central,Day Care / Social Activities,Causeway House,1136.76, 07-May-2019
617,Revenue,CAHD,Home Care - Elderly - South,Day Care / Social Activities,Causeway House,5253.12, 07-May-2019
618,Revenue,CAHD,18-25 Year Olds,Day Care / Social Activities,Causeway House,7274.40, 07-May-2019
619,Revenue,CAHD,18-25 Year Olds,Day Care / Social Activities,Causeway House,1418.72, 07-May-2019
620,Revenue,CAHD,18-25 Year Olds,Day Care / Social Activities,Causeway House,4414.64, 07-May-2019
621,Revenue,CAHD,Homecare - Central,Day Care / Social Activities,Causeway House,3891.60, 07-May-2019
622,Revenue,CAHD,Homecare - Central,Day Care / Social Activities,Causeway House,1704.96, 07-May-2019
623,Revenue,CAHD,Home Care - Elderly - North,Day Care / Social Activities,Causeway House,3226.20, 07-May-2019
624,Revenue,CAHD,Home Care - Elderly - North,Day Care / Social Activities,Causeway House,4806.44, 07-May-2019
625,Revenue,CAHD,Homecare - Central,Day Care / Social Activities,Causeway House,3652.12, 07-May-2019
626,Revenue,CAHD,Home Care - Elderly - North,Day Care / Social Activities,Causeway House,3149.08, 07-May-2019
627,Revenue,CAHD,Home Care - Elderly - North,Day Care / Social Activities,Causeway House,568.32, 07-May-2019
628,Revenue,CAHD,CSC - Adoption Support Fund,Post Adoption,CCS Adoption,780.00, 20-May-2019
629,Revenue,CAHD,Bed Purchasing - South,Permanent Nursing,Cedar Care Homes Limited,3095.92, 07-May-2019
630,Revenue,CAHD,Bed Purchasing - South,Fees & Charges Income - General,Cedar Care Homes Limited,1411.03, 07-May-2019
631,Revenue,CAHD,Discretionary Housing Payment,Other Supplies & Services,Individual,1900.00, 22-May-2019
632,Revenue,CAHD,Bed Purchasing - South,Permanent Residential,Challenge House,2834.44, 07-May-2019
633,Revenue,CAHD,Bed Purchasing - Elderly S117- North,Permanent Residential,Challenge House,2571.40, 07-May-2019
634,Revenue,CAHD,Bed Purchasing - North,Permanent Residential,Challenge House,2233.00, 07-May-2019
635,Revenue,CAHD,Bed Purchasing - North,Permanent Residential,Challenge House,2370.72, 07-May-2019
636,Revenue,CAHD,Bed Purchasing - Central,Respite Emergency - Residential,Challenge House,2310.16, 07-May-2019
637,Revenue,CAHD,Bed Purchasing - Central,Respite Emergency - Residential,Challenge House,1072.57, 07-May-2019
638,Revenue,CAHD,Bed Purchasing - Central,Permanent Residential,Challenge House,2062.64, 07-May-2019
639,Revenue,CAHD,Bed Purchasing - Central,Permanent Residential,Challenge House,1182.80, 07-May-2019
640,Revenue,CAHD,Bed Purchasing - Central,Permanent Residential,Challenge House,1182.80, 07-May-2019
641,Revenue,CAHD,Bed Purchasing - Central,Permanent Residential,Challenge House,1350.51, 07-May-2019
642,Revenue,CAHD,Bed Purchasing - Central,Permanent Residential,Challenge House,1012.89, 07-May-2019
643,Revenue,CAHD,Bed Purchasing - North,Permanent Residential,Challenge House,2363.40, 07-May-2019
644,Revenue,CAHD,Bed Purchasing - North,Permanent Residential,Challenge House,1181.70, 07-May-2019
645,Revenue,CAHD,Bed Purchasing - Central,Respite Emergency - Residential,Challenge House,6623.43, 07-May-2019
646,Revenue,CAHD,Bed Purchasing - Central,Respite Emergency - Residential,Challenge House,2834.44, 07-May-2019
647,Revenue,CAHD,Bed Purchasing - Central,Respite Emergency - Residential,Challenge House,1417.22, 07-May-2019
648,Revenue,CAHD,Bed Purchasing - North,Permanent Residential,Challenge House,2768.00, 07-May-2019
649,Revenue,CAHD,Bed Purchasing - North,Permanent Residential,Challenge House,1417.20, 07-May-2019
650,Revenue,CAHD,Bed Purchasing - North,Permanent Residential,Challenge House,1417.20, 07-May-2019
651,Revenue,CAHD,Bed Purchasing - North,Permanent Residential,Challenge House,1417.20, 07-May-2019
652,Revenue,CAHD,Bed Purchasing - North,Fees & Charges Income - General,Challenge House,532.67, 07-May-2019
653,Revenue,CAHD,Bed Purchasing - North,Permanent Nursing,Challenge House,3130.36, 07-May-2019
654,Revenue,CAHD,Bed Purchasing - Central,Permanent Nursing,Challenge House,3000.00, 07-May-2019
655,Revenue,CAHD,Bed Purchasing - Central,Permanent Nursing,Challenge House,535.71, 07-May-2019
656,Revenue,CAHD,Bed Purchasing - Elderly S117- North,Permanent Nursing,Challenge House,2395.80, 07-May-2019
657,Revenue,CAHD,Bed Purchasing - North,Permanent Residential,Challenge House,2399.96, 07-May-2019
658,Revenue,CAHD,Bed Purchasing - Central,Permanent Nursing,Challenge House,3056.00, 07-May-2019
659,Revenue,CAHD,Bed Purchasing - Central,Permanent Nursing,Challenge House,1418.86, 07-May-2019
660,Revenue,CAHD,Bed Purchasing - North,Permanent Nursing,Challenge House,2571.40, 07-May-2019
661,Revenue,CAHD,Bed Purchasing - North,Respite Planned - Nursing,Challenge House,2250.00, 07-May-2019
662,Revenue,CAHD,Bed Purchasing - North,Respite Planned - Nursing,Challenge House,768.00, 07-May-2019
663,Revenue,CAHD,Bed Purchasing - North,Permanent Nursing,Challenge House,2395.80, 07-May-2019
664,Revenue,CAHD,Bed Purchasing - Central,Respite Planned - Nursing,Challenge House,2250.00, 07-May-2019
665,Revenue,CAHD,Bed Purchasing - Central,Respite Planned - Nursing,Challenge House,2250.00, 07-May-2019
666,Revenue,CAHD,Bed Purchasing - North,Permanent Nursing,Challenge House,3130.36, 07-May-2019
667,Revenue,CAHD,Bed Purchasing - North,Permanent Nursing,Challenge House,1588.21, 07-May-2019
668,Revenue,CAHD,South Glos Users in South Glos Homes,Permanent Nursing,Challenge House,1158.92, 07-May-2019
669,Revenue,CAHD,South Glos Users in South Glos Homes,Permanent Nursing,Challenge House,1158.92, 07-May-2019
670,Revenue,CAHD,South Glos Users in South Glos Homes,Permanent Nursing,Challenge House,1158.92, 07-May-2019
671,Revenue,CAHD,South Glos Users in South Glos Homes,Permanent Nursing,Challenge House,1158.92, 07-May-2019
672,Revenue,CAHD,South Glos Users in South Glos Homes,Permanent Nursing,Challenge House,1158.92, 07-May-2019
673,Revenue,CAHD,South Glos Users in South Glos Homes,Permanent Nursing,Challenge House,1158.92, 07-May-2019
674,Revenue,CAHD,Bed Purchasing - South,Permanent Nursing,Challenge House,4326.30, 07-May-2019
675,Revenue,CAHD,South Glos Users in South Glos Homes,Permanent Nursing,Challenge House,1158.92, 07-May-2019
676,Revenue,CAHD,Bed Purchasing - South,Permanent Nursing,Challenge House,2011.86, 07-May-2019
677,Revenue,CAHD,Bed Purchasing - North,Permanent Nursing,Challenge House,4812.72, 07-May-2019
678,Revenue,CAHD,South Glos Users in South Glos Homes,Permanent Nursing,Challenge House,1158.92, 07-May-2019
679,Revenue,CAHD,Bed Purchasing - North,Permanent Nursing,Challenge House,2238.03, 07-May-2019
680,Revenue,CAHD,South Glos Users in South Glos Homes,Permanent Nursing,Challenge House,1158.92, 07-May-2019
681,Revenue,CAHD,Bed Purchasing - North,Permanent Nursing,Challenge House,5008.26, 07-May-2019
682,Revenue,CAHD,Bed Purchasing - North,Permanent Nursing,Challenge House,2329.00, 07-May-2019
683,Revenue,CAHD,South Glos Users in South Glos Homes,Permanent Nursing,Challenge House,1158.92, 07-May-2019
684,Revenue,CAHD,South Glos Users in South Glos Homes,Permanent Nursing,Challenge House,1158.92, 07-May-2019
685,Revenue,CAHD,South Glos Users in South Glos Homes,Permanent Nursing,Challenge House,1158.92, 07-May-2019
686,Revenue,CAHD,South Glos Users in South Glos Homes,Permanent Nursing,Challenge House,1158.92, 07-May-2019
687,Revenue,CAHD,South Glos Users in South Glos Homes,Permanent Nursing,Challenge House,1158.92, 07-May-2019
688,Revenue,CAHD,South Glos Users in South Glos Homes,Permanent Nursing,Challenge House,1158.92, 07-May-2019
689,Revenue,CAHD,South Glos Users in South Glos Homes,Permanent Nursing,Challenge House,1158.92, 07-May-2019
690,Revenue,CAHD,South Glos Users in South Glos Homes,Permanent Nursing,Challenge House,1158.92, 07-May-2019
691,Revenue,CAHD,South Glos Users in South Glos Homes,Permanent Nursing,Challenge House,1158.92, 07-May-2019
692,Revenue,CAHD,South Glos Users in South Glos Homes,Permanent Nursing,Challenge House,1158.92, 07-May-2019
693,Revenue,CAHD,South Glos Users in South Glos Homes,Permanent Nursing,Challenge House,1158.92, 07-May-2019
694,Revenue,CAHD,South Glos Users in South Glos Homes,Permanent Nursing,Challenge House,1158.92, 07-May-2019
695,Revenue,CAHD,South Glos Users in South Glos Homes,Permanent Nursing,Challenge House,1158.92, 07-May-2019
696,Revenue,CAHD,Bed Purchasing - North,Permanent Nursing,Challenge House,4241.28, 07-May-2019
697,Revenue,CAHD,Bed Purchasing - North,Permanent Nursing,Challenge House,1972.31, 07-May-2019
698,Revenue,CAHD,South Glos Users in South Glos Homes,Permanent Nursing,Challenge House,1158.92, 07-May-2019
699,Revenue,CAHD,Bed Purchasing - North,Permanent Nursing,Challenge House,5008.26, 07-May-2019
700,Revenue,CAHD,Bed Purchasing - North,Permanent Nursing,Challenge House,2329.00, 07-May-2019
701,Revenue,CAHD,South Glos Users in South Glos Homes,Permanent Nursing,Challenge House,1158.92, 07-May-2019
702,Revenue,CAHD,South Glos Users in South Glos Homes,Permanent Nursing,Challenge House,1158.92, 07-May-2019
703,Revenue,CAHD,Bed Purchasing - North,Permanent Nursing,Challenge House,4241.28, 07-May-2019
704,Revenue,CAHD,Bed Purchasing - North,Permanent Nursing,Challenge House,1972.31, 07-May-2019
705,Revenue,CAHD,South Glos Users in South Glos Homes,Permanent Nursing,Challenge House,1158.92, 07-May-2019
706,Revenue,CAHD,South Glos Users in South Glos Homes,Permanent Nursing,Challenge House,1158.92, 07-May-2019
707,Revenue,CAHD,Bed Purchasing - North,Permanent Nursing,Challenge House,4895.76, 07-May-2019
708,Revenue,CAHD,Bed Purchasing - North,Permanent Nursing,Challenge House,2276.69, 07-May-2019
709,Revenue,CAHD,South Glos Users in South Glos Homes,Permanent Nursing,Challenge House,1158.92, 07-May-2019
710,Revenue,CAHD,CSC - Vinney Green Secure Unit,External Lecturers Fees,Changing Tunes,720.00, 03-May-2019
711,Revenue,CAHD,Alexandra Way,"Provisions (Food, etc)",Charles Saunders Limited,503.06, 30-May-2019
712,Revenue,CAHD,Mental Capacity Act / DOLS,Legal Fees,Charley Pattison,562.50, 10-May-2019
713,Revenue,CAHD,Training - Adult Services,Training Expenses,Chartered Institute of Environmental Health,857.50, 09-May-2019
714,Revenue,CAHD,Homecare - Central,Other Small Contracts,Cherish Able Care Limited,1642.91, 03-May-2019
715,Revenue,CAHD,Home Care - Elderly - South,Other Small Contracts,Cherish Able Care Limited,5521.53, 03-May-2019
716,Revenue,CAHD,Home Care - Elderly - North,Other Small Contracts,Cherish Able Care Limited,1513.60, 03-May-2019
717,Revenue,CAHD,Homecare - Central,Other Small Contracts,Cherish Able Care Limited,1612.61, 17-May-2019
718,Revenue,CAHD,Home Care - Elderly - South,Other Small Contracts,Cherish Able Care Limited,5461.86, 17-May-2019
719,Revenue,CAHD,Home Care - Elderly - North,Other Small Contracts,Cherish Able Care Limited,1495.01, 17-May-2019
720,Revenue,CAHD,Homecare - Central,Other Small Contracts,Cherish Able Care Limited,1638.66, 22-May-2019
721,Revenue,CAHD,Home Care - Elderly - South,Other Small Contracts,Cherish Able Care Limited,5388.64, 22-May-2019
722,Revenue,CAHD,Home Care - Elderly - North,Other Small Contracts,Cherish Able Care Limited,1513.60, 22-May-2019
723,Revenue,CAHD,Homecare - Central,Other Small Contracts,Cherish Able Care Limited,2241.22, 22-May-2019
724,Revenue,CAHD,Home Care - Elderly - South,Other Small Contracts,Cherish Able Care Limited,5223.59, 22-May-2019
725,Revenue,CAHD,Home Care - Elderly - North,Other Small Contracts,Cherish Able Care Limited,1608.20, 22-May-2019
726,Revenue,CAHD,Home Care - Elderly - South,Supported Living,Cherry Orchards,2476.38, 28-May-2019
727,Revenue,CAHD,Home Care - Elderly - South,Supported Living,Cherry Orchards,2648.80, 28-May-2019
728,Revenue,CAHD,Home Care - Elderly - South,Other Small Contracts,Cherry Orchards,6007.68, 10-May-2019
729,Revenue,CAHD,18-25 Year Olds,Other Small Contracts,Cherry Orchards,858.24, 28-May-2019
730,Revenue,CAHD,18-25 Year Olds,Other Small Contracts,Cherry Orchards,5900.40, 24-May-2019
731,Revenue,CAHD,18-25 Year Olds,Other Small Contracts,Cherry Orchards,6357.12, 24-May-2019
732,Revenue,CAHD,18-25 Year Olds,Other Small Contracts,Cherry Orchards,6007.68, 30-May-2019
733,Revenue,CAHD,18-25 Year Olds,Other Small Contracts,Cherry Orchards,6357.12, 24-May-2019
734,Revenue,CAHD,Bed purchasing - S28A Under 65 - South,Permanent Residential,Chescombe Lodge,9764.44, 07-May-2019
735,Revenue,CAHD,CSC - LAC Placements,"Holidays, Outings & Visits",Childrens Contact Services Ltd,704.00, 15-May-2019
736,Revenue,CAHD,CSC - LAC Placements,"Holidays, Outings & Visits",Childrens Contact Services Ltd,1975.65, 21-May-2019
737,Revenue,CAHD,CSC - LAC Placements,Client Transport,Childrens Contact Services Ltd,1002.90, 24-May-2019
738,Revenue,CAHD,CSC - LAC Placements,Client Transport,Childrens Contact Services Ltd,716.70, 15-May-2019
739,Revenue,CAHD,Early Years Inclusion Fund,Other Public Bodies,Christchurch Pre School,600.00, 03-May-2019
740,Revenue,CAHD,CSC - Legal Fees,Legal Fees,Christopher Reynolds,900.00, 30-May-2019
741,Revenue,CAHD,CSC - Vinney Green Secure Unit,Service Contracts (Premises),Chubb Systems Limited,679.68, 23-May-2019
742,Revenue,CAHD,18-25 Year Olds,Other Small Contracts,Cintre,107.36, 03-May-2019
743,Revenue,CAHD,Homecare - Central,Other Small Contracts,Cintre,390.40, 03-May-2019
744,Revenue,CAHD,Home Care - Elderly - South,Other Small Contracts,Cintre,839.36, 03-May-2019
745,Revenue,CAHD,18-25 Year Olds,Other Small Contracts,Cintre,107.36, 17-May-2019
746,Revenue,CAHD,Homecare - Central,Other Small Contracts,Cintre,390.40, 17-May-2019
747,Revenue,CAHD,Home Care - Elderly - South,Other Small Contracts,Cintre,761.28, 17-May-2019
748,Revenue,CAHD,18-25 Year Olds,Other Small Contracts,Cintre,107.36, 17-May-2019
749,Revenue,CAHD,Homecare - Central,Other Small Contracts,Cintre,273.28, 17-May-2019
750,Revenue,CAHD,Home Care - Elderly - South,Other Small Contracts,Cintre,761.28, 17-May-2019
751,Revenue,CAHD,18-25 Year Olds,Other Small Contracts,Cintre,97.60, 22-May-2019
752,Revenue,CAHD,Homecare - Central,Other Small Contracts,Cintre,273.28, 22-May-2019
753,Revenue,CAHD,Home Care - Elderly - South,Other Small Contracts,Cintre,810.08, 22-May-2019
754,Revenue,CAHD,CSC - Fostering Carer Support,Sporting Expenses,Circadian Trust,750.25, 22-May-2019
755,Revenue,CAHD,Learning Difficulties,Premises Hire,Circadian Trust,607.50, 10-May-2019
756,Revenue,CAHD,MH Purchasing - Younger,Permanent Residential,Claro Homes,2870.88, 07-May-2019
757,Revenue,CAHD,Section 117 Placements MH Younger,Permanent Residential,Claro Homes,3554.60, 07-May-2019
758,Revenue,CAHD,Bed Purchasing - North,Permanent Nursing,Claro Homes,3318.20, 07-May-2019
759,Revenue,CAHD,Bed Purchasing - North,Permanent Nursing,Claro Homes,1659.10, 07-May-2019
760,Revenue,CAHD,Bed Purchasing - North,Fees & Charges Income - General,Claro Homes,1825.89, 07-May-2019
761,Revenue,CAHD,Bed Purchasing - South,Permanent Residential,Cleeve Lodge,3686.40, 07-May-2019
762,Revenue,CAHD,Bed Purchasing - South,Permanent Residential,Cleeve Lodge,3686.40, 07-May-2019
763,Revenue,CAHD,Bed Purchasing - South,Permanent Residential,Cleeve Lodge,1308.44, 07-May-2019
764,Revenue,CAHD,Bed Purchasing - South,Permanent Residential,Cleeve Lodge,2921.68, 07-May-2019
765,Revenue,CAHD,Bed Purchasing - South,Permanent Residential,Cleeve Lodge,3086.48, 07-May-2019
766,Revenue,CAHD,Bed Purchasing - South,Permanent Residential,Cleeve Lodge,2893.00, 07-May-2019
767,Revenue,CAHD,Bed Purchasing - South,Permanent Residential,Cleeve Lodge,2635.60, 07-May-2019
768,Revenue,CAHD,Independent Special Placements - Pre 16,Other Private Contractors,Clifton College,8140.00, 09-May-2019
769,Revenue,CAHD,CSC - Adoption Support Fund,Post Adoption,Clinical Partners Ltd,1320.00, 28-May-2019
770,Revenue,CAHD,NHS Health Checks,Other Small Contracts,Close Farm Surgery,1895.05, 29-May-2019
771,Revenue,CAHD,Sexual Health,Other Small Contracts,Close Farm Surgery,1383.38, 13-May-2019
772,Revenue,CAHD,Home Care - Elderly - North,Other Small Contracts,Clover Health and Home Care Ltd,1895.88, 03-May-2019
773,Revenue,CAHD,Homecare - Central,Other Small Contracts,Clover Health and Home Care Ltd,1932.84, 15-May-2019
774,Revenue,CAHD,Home Care - Elderly - North,Other Small Contracts,Clover Health and Home Care Ltd,2643.48, 08-May-2019
775,Revenue,CAHD,Homecare - Central,Other Small Contracts,Clover Health and Home Care Ltd,1011.29, 03-May-2019
776,Revenue,CAHD,Winter Incentive Payments,Other Small Contracts,Clover Health and Home Care Ltd,1000.00, 03-May-2019
777,Revenue,CAHD,CSC - Vinney Green Secure Unit,R & M by Departments,Clover Technical Services,4025.00, 16-May-2019
778,Revenue,CAHD,Training - Adult Services,Training Expenses,College of Occupational Therapists Ltd,1722.60, 20-May-2019
779,Revenue,CAHD,Bed Purchasing - South,Permanent Residential,Collingwood Care Home,2826.24, 07-May-2019
780,Revenue,CAHD,Bed Purchasing - South,Permanent Residential,Collingwood Care Home,2241.28, 07-May-2019
781,Revenue,CAHD,Bed Purchasing - South,Permanent Residential,Collingwood Care Home,2420.80, 07-May-2019
782,Revenue,CAHD,Bed Purchasing - South,Permanent Residential,Collingwood Care Home,2504.28, 07-May-2019
783,Revenue,CAHD,NHS Health Checks,Other Small Contracts,Concord Medical Centre,3704.00, 29-May-2019
784,Revenue,CAHD,Sexual Health,Other Small Contracts,Concord Medical Centre,2093.00, 13-May-2019
785,Revenue,CAHD,Sexual Health,Other Small Contracts,Concord Medical Centre,2173.50, 01-May-2019
786,Revenue,CAHD,Sexual Health,Other Small Contracts,Concord Medical Centre,2395.08, 13-May-2019
787,Revenue,CAHD,NHS Health Checks,Other Small Contracts,Coniston Medical Practice,875.00, 29-May-2019
788,Revenue,CAHD,Sexual Health,Other Small Contracts,Coniston Medical Practice,825.90, 13-May-2019
789,Revenue,CAHD,Bed and Breakfast,Bed & Breakfast,Connolly & Callaghan Limited,539.00, 22-May-2019
790,Revenue,CAHD,Bed and Breakfast,Bed & Breakfast,Connolly & Callaghan Limited,623.00, 20-May-2019
791,Revenue,CAHD,Bed and Breakfast,Bed & Breakfast,Connolly & Callaghan Limited,455.00, 20-May-2019
792,Revenue,CAHD,Bed and Breakfast,Bed & Breakfast,Connolly & Callaghan Limited,805.00, 21-May-2019
793,Revenue,CAHD,Bed and Breakfast,Bed & Breakfast,Connolly & Callaghan Limited,574.00, 22-May-2019
794,Revenue,CAHD,Bed and Breakfast,Bed & Breakfast,Connolly & Callaghan Limited,490.00, 22-May-2019
795,Revenue,CAHD,Bed and Breakfast,Bed & Breakfast,Connolly & Callaghan Limited,455.00, 20-May-2019
796,Revenue,CAHD,Bed and Breakfast,Bed & Breakfast,Connolly & Callaghan Limited,665.00, 22-May-2019
797,Revenue,CAHD,Bed and Breakfast,Bed & Breakfast,Connolly & Callaghan Limited,504.00, 21-May-2019
798,Revenue,CAHD,Bed and Breakfast,Bed & Breakfast,Connolly & Callaghan Limited,497.00, 22-May-2019
799,Revenue,CAHD,Bed and Breakfast,Bed & Breakfast,Connolly & Callaghan Limited,423.00, 20-May-2019
800,Revenue,CAHD,Bed and Breakfast,Bed & Breakfast,Connolly & Callaghan Limited,455.00, 02-May-2019
801,Revenue,CAHD,Bed and Breakfast,Bed & Breakfast,Connolly & Callaghan Limited,462.00, 01-May-2019
802,Revenue,CAHD,Bed and Breakfast,Bed & Breakfast,Connolly & Callaghan Limited,539.00, 07-May-2019
803,Revenue,CAHD,Bed and Breakfast,Bed & Breakfast,Connolly & Callaghan Limited,623.00, 07-May-2019
804,Revenue,CAHD,Bed and Breakfast,Bed & Breakfast,Connolly & Callaghan Limited,455.00, 07-May-2019
805,Revenue,CAHD,Bed and Breakfast,Bed & Breakfast,Connolly & Callaghan Limited,441.00, 07-May-2019
806,Revenue,CAHD,Bed and Breakfast,Bed & Breakfast,Connolly & Callaghan Limited,805.00, 07-May-2019
807,Revenue,CAHD,Bed and Breakfast,Bed & Breakfast,Connolly & Callaghan Limited,623.00, 07-May-2019
808,Revenue,CAHD,Bed and Breakfast,Bed & Breakfast,Connolly & Callaghan Limited,574.00, 07-May-2019
809,Revenue,CAHD,Bed and Breakfast,Bed & Breakfast,Connolly & Callaghan Limited,490.00, 07-May-2019
810,Revenue,CAHD,Bed and Breakfast,Bed & Breakfast,Connolly & Callaghan Limited,490.00, 10-May-2019
811,Revenue,CAHD,Bed and Breakfast,Bed & Breakfast,Connolly & Callaghan Limited,455.00, 07-May-2019
812,Revenue,CAHD,Bed and Breakfast,Bed & Breakfast,Connolly & Callaghan Limited,665.00, 07-May-2019
813,Revenue,CAHD,Bed and Breakfast,Bed & Breakfast,Connolly & Callaghan Limited,539.00, 07-May-2019
814,Revenue,CAHD,Bed and Breakfast,Bed & Breakfast,Connolly & Callaghan Limited,497.00, 07-May-2019
815,Revenue,CAHD,Bed and Breakfast,Bed & Breakfast,Connolly & Callaghan Limited,623.00, 07-May-2019
816,Revenue,CAHD,Bed and Breakfast,Bed & Breakfast,Connolly & Callaghan Limited,532.00, 07-May-2019
817,Revenue,CAHD,Bed and Breakfast,Bed & Breakfast,Connolly & Callaghan Limited,539.00, 09-May-2019
818,Revenue,CAHD,Bed and Breakfast,Bed & Breakfast,Connolly & Callaghan Limited,623.00, 09-May-2019
819,Revenue,CAHD,Bed and Breakfast,Bed & Breakfast,Connolly & Callaghan Limited,455.00, 09-May-2019
820,Revenue,CAHD,Bed and Breakfast,Bed & Breakfast,Connolly & Callaghan Limited,441.00, 09-May-2019
821,Revenue,CAHD,Bed and Breakfast,Bed & Breakfast,Connolly & Callaghan Limited,805.00, 09-May-2019
822,Revenue,CAHD,Bed and Breakfast,Bed & Breakfast,Connolly & Callaghan Limited,623.00, 09-May-2019
823,Revenue,CAHD,Bed and Breakfast,Bed & Breakfast,Connolly & Callaghan Limited,574.00, 09-May-2019
824,Revenue,CAHD,Bed and Breakfast,Bed & Breakfast,Connolly & Callaghan Limited,490.00, 09-May-2019
825,Revenue,CAHD,Bed and Breakfast,Bed & Breakfast,Connolly & Callaghan Limited,490.00, 10-May-2019
826,Revenue,CAHD,Bed and Breakfast,Bed & Breakfast,Connolly & Callaghan Limited,455.00, 10-May-2019
827,Revenue,CAHD,Bed and Breakfast,Bed & Breakfast,Connolly & Callaghan Limited,665.00, 09-May-2019
828,Revenue,CAHD,Bed and Breakfast,Bed & Breakfast,Connolly & Callaghan Limited,539.00, 09-May-2019
829,Revenue,CAHD,Bed and Breakfast,Bed & Breakfast,Connolly & Callaghan Limited,497.00, 09-May-2019
830,Revenue,CAHD,Bed and Breakfast,Bed & Breakfast,Connolly & Callaghan Limited,623.00, 09-May-2019
831,Revenue,CAHD,Bed and Breakfast,Bed & Breakfast,Connolly & Callaghan Limited,420.00, 09-May-2019
832,Revenue,CAHD,Bed and Breakfast,Bed & Breakfast,Connolly & Callaghan Limited,532.00, 09-May-2019
833,Revenue,CAHD,Bed and Breakfast,Bed & Breakfast,Connolly & Callaghan Limited,539.00, 16-May-2019
834,Revenue,CAHD,Bed and Breakfast,Bed & Breakfast,Connolly & Callaghan Limited,455.00, 16-May-2019
835,Revenue,CAHD,Bed and Breakfast,Bed & Breakfast,Connolly & Callaghan Limited,441.00, 16-May-2019
836,Revenue,CAHD,Bed and Breakfast,Bed & Breakfast,Connolly & Callaghan Limited,460.00, 21-May-2019
837,Revenue,CAHD,Bed and Breakfast,Bed & Breakfast,Connolly & Callaghan Limited,623.00, 16-May-2019
838,Revenue,CAHD,Bed and Breakfast,Bed & Breakfast,Connolly & Callaghan Limited,574.00, 16-May-2019
839,Revenue,CAHD,Bed and Breakfast,Bed & Breakfast,Connolly & Callaghan Limited,539.00, 16-May-2019
840,Revenue,CAHD,Bed and Breakfast,Bed & Breakfast,Connolly & Callaghan Limited,490.00, 16-May-2019
841,Revenue,CAHD,Bed and Breakfast,Bed & Breakfast,Connolly & Callaghan Limited,665.00, 23-May-2019
842,Revenue,CAHD,Bed and Breakfast,Bed & Breakfast,Connolly & Callaghan Limited,539.00, 16-May-2019
843,Revenue,CAHD,Bed and Breakfast,Bed & Breakfast,Connolly & Callaghan Limited,497.00, 16-May-2019
844,Revenue,CAHD,Bed and Breakfast,Bed & Breakfast,Connolly & Callaghan Limited,623.00, 16-May-2019
845,Revenue,CAHD,Bed and Breakfast,Bed & Breakfast,Connolly & Callaghan Limited,490.00, 16-May-2019
846,Revenue,CAHD,Bed and Breakfast,Bed & Breakfast,Connolly & Callaghan Limited,532.00, 16-May-2019
847,Revenue,CAHD,Bed and Breakfast,Bed & Breakfast,Connolly & Callaghan Limited,539.00, 23-May-2019
848,Revenue,CAHD,Bed and Breakfast,Bed & Breakfast,Connolly & Callaghan Limited,455.00, 23-May-2019
849,Revenue,CAHD,Bed and Breakfast,Bed & Breakfast,Connolly & Callaghan Limited,441.00, 23-May-2019
850,Revenue,CAHD,Bed and Breakfast,Bed & Breakfast,Connolly & Callaghan Limited,623.00, 23-May-2019
851,Revenue,CAHD,Bed and Breakfast,Bed & Breakfast,Connolly & Callaghan Limited,539.00, 23-May-2019
852,Revenue,CAHD,Bed and Breakfast,Bed & Breakfast,Connolly & Callaghan Limited,490.00, 23-May-2019
853,Revenue,CAHD,Bed and Breakfast,Bed & Breakfast,Connolly & Callaghan Limited,665.00, 24-May-2019
854,Revenue,CAHD,Bed and Breakfast,Bed & Breakfast,Connolly & Callaghan Limited,539.00, 23-May-2019
855,Revenue,CAHD,Bed and Breakfast,Bed & Breakfast,Connolly & Callaghan Limited,539.00, 23-May-2019
856,Revenue,CAHD,Bed and Breakfast,Bed & Breakfast,Connolly & Callaghan Limited,497.00, 23-May-2019
857,Revenue,CAHD,Bed and Breakfast,Bed & Breakfast,Connolly & Callaghan Limited,623.00, 23-May-2019
858,Revenue,CAHD,Bed and Breakfast,Bed & Breakfast,Connolly & Callaghan Limited,490.00, 23-May-2019
859,Revenue,CAHD,Bed and Breakfast,Bed & Breakfast,Connolly & Callaghan Limited,532.00, 23-May-2019
860,Revenue,CAHD,Bed and Breakfast,Bed & Breakfast,Connolly & Callaghan Limited,539.00, 31-May-2019
861,Revenue,CAHD,Bed and Breakfast,Bed & Breakfast,Connolly & Callaghan Limited,504.00, 31-May-2019
862,Revenue,CAHD,Bed and Breakfast,Bed & Breakfast,Connolly & Callaghan Limited,455.00, 31-May-2019
863,Revenue,CAHD,Bed and Breakfast,Bed & Breakfast,Connolly & Callaghan Limited,441.00, 31-May-2019
864,Revenue,CAHD,Bed and Breakfast,Bed & Breakfast,Connolly & Callaghan Limited,623.00, 31-May-2019
865,Revenue,CAHD,Bed and Breakfast,Bed & Breakfast,Connolly & Callaghan Limited,539.00, 31-May-2019
866,Revenue,CAHD,Bed and Breakfast,Bed & Breakfast,Connolly & Callaghan Limited,490.00, 31-May-2019
867,Revenue,CAHD,Bed and Breakfast,Bed & Breakfast,Connolly & Callaghan Limited,497.00, 31-May-2019
868,Revenue,CAHD,Bed and Breakfast,Bed & Breakfast,Connolly & Callaghan Limited,539.00, 31-May-2019
869,Revenue,CAHD,Bed and Breakfast,Bed & Breakfast,Connolly & Callaghan Limited,539.00, 31-May-2019
870,Revenue,CAHD,Bed and Breakfast,Bed & Breakfast,Connolly & Callaghan Limited,497.00, 31-May-2019
871,Revenue,CAHD,Bed and Breakfast,Bed & Breakfast,Connolly & Callaghan Limited,623.00, 31-May-2019
872,Revenue,CAHD,Bed and Breakfast,Bed & Breakfast,Connolly & Callaghan Limited,490.00, 31-May-2019
873,Revenue,CAHD,Bed and Breakfast,Bed & Breakfast,Connolly & Callaghan Limited,532.00, 31-May-2019
874,Revenue,CAHD,CSC - Fostering Carer Support,Agency Staff (Admin/Support Staff) Pay,Core Assets Expert Services Ltd T/A Carter Brown,1200.00, 31-May-2019
875,Revenue,CAHD,CSC - Fostering Carer Support,Agency Staff (Admin/Support Staff) Pay,Core Assets Expert Services Ltd T/A Carter Brown,460.05, 10-May-2019
876,Revenue,CAHD,Alexandra Way,Cleaning & Domestic Services,Countrywide Healthcare Supplies Ltd,761.85, 13-May-2019
877,Revenue,CAHD,Alexandra Way,Cleaning & Domestic Services,Countrywide Healthcare Supplies Ltd,765.00, 31-May-2019
878,Revenue,CAHD,Alexandra Way,Cleaning & Domestic Services,Countrywide Healthcare Supplies Ltd,2230.05, 13-May-2019
879,Revenue,CAHD,NHS Health Checks,Other Small Contracts,Courtside Surgery,1128.00, 29-May-2019
880,Revenue,CAHD,Sexual Health,Other Small Contracts,Courtside Surgery,1771.00, 13-May-2019
881,Revenue,CAHD,Sexual Health,Other Small Contracts,Courtside Surgery,2002.80, 13-May-2019
882,Revenue,CAHD,Bed Purchasing - North,Permanent Residential,Cream Iii Ltd,8644.00, 07-May-2019
883,Revenue,CAHD,Bed purchasing - S28A Under 65 - South,Permanent Residential,Creedy Court,10597.96, 07-May-2019
884,Revenue,CAHD,Bed purchasing - S28A Under 65 - South,Permanent Residential,Creedy Court,8904.92, 07-May-2019
885,Revenue,CAHD,Bed Purchasing - North,Permanent Residential,Creedy Court,14054.00, 07-May-2019
886,Revenue,CAHD,Training Budget - Children`s Social Serv,Training Expenses,Cruidin Training and Consultancy Ltd,1264.32, 17-May-2019
887,Revenue,CAHD,CSC - Vinney Green Secure Unit,R & M by Departments,Dale Power Solutions Ltd,1515.50, 31-May-2019
888,Revenue,CAHD,Bed Purchasing - South,Permanent Residential,Daneswood,12268.80, 07-May-2019
889,Revenue,CAHD,Home Care - Elderly - South,Day Care / Social Activities,Daneswood,1413.28, 07-May-2019
890,Revenue,CAHD,Bed Purchasing - North,Permanent Residential,Daneswood,10264.00, 07-May-2019
891,Revenue,CAHD,Bed Purchasing - South,One-off Planned Direct Payment,Individual,2230.45, 17-May-2019
892,Revenue,CAHD,Bed Purchasing - Elderly S117- North,Permanent Nursing,Danshell Healthcare Group,10872.28, 07-May-2019
893,Revenue,CAHD,Jointly Funded H&SC Packages,Permanent Nursing,Danshell Healthcare Group,1613.28, 07-May-2019
894,Revenue,CAHD,Learning Difficulties PSL,Other Supplies & Services,Individual,2400.00, 22-May-2019
895,Revenue,CAHD,Training Budget - Children`s Social Serv,Training Expenses,Dartington Hall Trust,12000.00, 28-May-2019
896,Revenue,CAHD,Children Centres - South Locality,Printing & Stationery,De Lage Landen Leasing Ltd,2234.45, 31-May-2019
897,Revenue,CAHD,CSC - Adoption Support Fund,Post Adoption,Individual,1328.00, 20-May-2019
898,Revenue,CAHD,HQ Office & Communications (ICT),Membership Fees,Derbyshire County Council,500.00, 09-May-2019
899,Revenue,CAHD,Post 16 High Needs Placements,Other Private Contractors,Derwen College,17183.37, 10-May-2019
900,Revenue,CAHD,Home Care - Elderly - South,Supported Living,Design House,2661.20, 07-May-2019
901,Revenue,CAHD,Home Care - Elderly - South,Supported Living,Design House,3063.00, 07-May-2019
902,Revenue,CAHD,Home Care - Elderly - South,Supported Living,Design House,3132.76, 07-May-2019
903,Revenue,CAHD,Home Care - Elderly - South,Supported Living,Design House,2993.28, 07-May-2019
904,Revenue,CAHD,Home Care - Elderly - South,Day Care / Social Activities,Design House,516.32, 07-May-2019
905,Revenue,CAHD,18-25 Year Olds,Supported Living,Design House,823.56, 07-May-2019
906,Revenue,CAHD,18-25 Year Olds,Supported Living,Design House,823.56, 07-May-2019
907,Revenue,CAHD,Homecare - Central,Day Care / Social Activities,Design House,2440.84, 07-May-2019
908,Revenue,CAHD,Home Care - Elderly - South,Day Care / Social Activities,Design House,921.28, 07-May-2019
909,Revenue,CAHD,Home Care - Elderly - South,Supported Living,Design House,2638.60, 07-May-2019
910,Revenue,CAHD,Home Care - Elderly - South,Supported Living,Design House,2638.60, 07-May-2019
911,Revenue,CAHD,Home Care - Elderly - South,Supported Living,Design House,2149.32, 07-May-2019
912,Revenue,CAHD,Home Care - Elderly - South,Day Care / Social Activities,Design House,516.32, 07-May-2019
913,Revenue,CAHD,Home Care - Elderly - South,Supported Living,Design House,1896.52, 07-May-2019
914,Revenue,CAHD,Home Care - Elderly - South,Supported Living,Design House,2516.60, 07-May-2019
915,Revenue,CAHD,Home Care - Elderly - South,Supported Living,Design House,4307.12, 07-May-2019
916,Revenue,CAHD,Home Care - Elderly - North,Supported Living,Design House,3054.24, 07-May-2019
917,Revenue,CAHD,Home Care - Elderly - South,Day Care / Social Activities,Design House,1505.96, 07-May-2019
918,Revenue,CAHD,Home Care - Elderly - South,Supported Living,Design House,2924.68, 07-May-2019
919,Revenue,CAHD,Home Care - Elderly - South,Supported Living,Design House,2542.80, 07-May-2019
920,Revenue,CAHD,Home Care - Elderly - South,Supported Living,Design House,2257.48, 07-May-2019
921,Revenue,CAHD,Home Care - Elderly - South,Supported Living,Design House,2257.48, 07-May-2019
922,Revenue,CAHD,Homecare - Central,Other Small Contracts,Dhek Bhal,42.16, 17-May-2019
923,Revenue,CAHD,Home Care - Elderly - South,Day Care / Social Activities,Dhek Bhal,42.16, 17-May-2019
924,Revenue,CAHD,Home Care - Elderly - South,Other Small Contracts,Dhek Bhal,453.22, 17-May-2019
925,Revenue,CAHD,Homecare - Central,Other Small Contracts,Dhek Bhal,42.16, 17-May-2019
926,Revenue,CAHD,Home Care - Elderly - South,Other Small Contracts,Dhek Bhal,495.38, 17-May-2019
927,Revenue,CAHD,Home Care - Elderly - South,Supported Living,Dimensions  Suite 2,1903.12, 07-May-2019
928,Revenue,CAHD,Home Care - Elderly - South,Supported Living,Dimensions  Suite 2,1902.28, 07-May-2019
929,Revenue,CAHD,Home Care - Elderly - South,Supported Living,Dimensions  Suite 2,1902.28, 07-May-2019
930,Revenue,CAHD,Home Care - Elderly - South,Supported Living,Dimensions  Suite 2,1902.28, 07-May-2019
931,Revenue,CAHD,Bed Purchasing - South,Permanent Residential,Dimensions  Suite 2,5630.76, 07-May-2019
932,Revenue,CAHD,Bed Purchasing - South,Permanent Residential,Dimensions  Suite 2,2806.12, 07-May-2019
933,Revenue,CAHD,Bed Purchasing - South,Permanent Residential,Dimensions  Suite 2,1403.06, 07-May-2019
934,Revenue,CAHD,Homecare - Central,Other Small Contracts,DoCare Limited,13518.15, 17-May-2019
935,Revenue,CAHD,Home Care - Elderly - South,Day Care / Social Activities,DoCare Limited,32.40, 17-May-2019
936,Revenue,CAHD,Home Care - Elderly - South,Other Small Contracts,DoCare Limited,413.40, 17-May-2019
937,Revenue,CAHD,Home Care - Elderly - North,Day Care / Social Activities,DoCare Limited,295.74, 17-May-2019
938,Revenue,CAHD,Home Care - Elderly - North,Other Small Contracts,DoCare Limited,4951.98, 17-May-2019
939,Revenue,CAHD,Homecare - Central,Other Small Contracts,DoCare Limited,12844.79, 17-May-2019
940,Revenue,CAHD,Home Care - Elderly - South,Day Care / Social Activities,DoCare Limited,32.40, 17-May-2019
941,Revenue,CAHD,Home Care - Elderly - South,Other Small Contracts,DoCare Limited,408.00, 17-May-2019
942,Revenue,CAHD,Home Care - Elderly - North,Day Care / Social Activities,DoCare Limited,195.30, 17-May-2019
943,Revenue,CAHD,Home Care - Elderly - North,Other Small Contracts,DoCare Limited,5186.35, 17-May-2019
944,Revenue,CAHD,Homecare - Central,Other Small Contracts,DoCare Limited,12937.54, 17-May-2019
945,Revenue,CAHD,Home Care - Elderly - South,Day Care / Social Activities,DoCare Limited,75.60, 17-May-2019
946,Revenue,CAHD,Home Care - Elderly - South,Other Small Contracts,DoCare Limited,408.15, 17-May-2019
947,Revenue,CAHD,Home Care - Elderly - North,Other Small Contracts,DoCare Limited,5268.62, 17-May-2019
948,Revenue,CAHD,Bed Purchasing - North,Permanent Residential,Dorset Limited,3320.22, 07-May-2019
949,Revenue,CAHD,Family and Young People Support North,Legal Fees,Douglas Leach,1000.00, 21-May-2019
950,Revenue,CAHD,NHS Health Checks,Other Small Contracts,Downend Health Group,5382.51, 29-May-2019
951,Revenue,CAHD,Sexual Health,Other Small Contracts,Downend Health Group,2673.82, 13-May-2019
952,Revenue,CAHD,Schools Block Growth Contingency,Other Public Bodies,Downend School,53196.13, 30-May-2019
953,Revenue,CAHD,Statemented Support Academies,Schools Funding,Downend School,978.71, 29-May-2019
954,Revenue,CAHD,Statemented Support Academies,Schools Funding,Downend School,1025.88, 29-May-2019
955,Revenue,CAHD,Statemented Support Academies,Schools Funding,Downend School,1014.08, 29-May-2019
956,Revenue,CAHD,Statemented Support Academies,Schools Funding,Downend School,801.83, 29-May-2019
957,Revenue,CAHD,Statemented Support Academies,Schools Funding,Downend School,530.63, 29-May-2019
958,Revenue,CAHD,Statemented Support Academies,Schools Funding,Downend School,1108.42, 29-May-2019
959,Revenue,CAHD,Statemented Support Academies,Schools Funding,Downend School,554.21, 29-May-2019
960,Revenue,CAHD,Statemented Support Academies,Schools Funding,Downend School,1709.79, 29-May-2019
961,Revenue,CAHD,Social Lettings Agency,Other Supplies & Services,Individual,605.64, 24-May-2019
962,Revenue,CAHD,NHS Health Checks,Other Small Contracts,Dr W J Foubister & Partners,4783.44, 29-May-2019
963,Revenue,CAHD,Sexual Health,Other Small Contracts,Dr W J Foubister & Partners,644.00, 13-May-2019
964,Revenue,CAHD,South Glos Users in South Glos Homes,Permanent Nursing,Drakes Court,662.24, 07-May-2019
965,Revenue,CAHD,South Glos Users in South Glos Homes,Permanent Nursing,Drakes Court,662.24, 07-May-2019
966,Revenue,CAHD,Bed Purchasing - Central,Fees & Charges Income - General,Drakes Court,651.34, 07-May-2019
967,Revenue,CAHD,South Glos Users in South Glos Homes,Permanent Nursing,Drakes Court,662.24, 07-May-2019
968,Revenue,CAHD,Bed Purchasing - Central,Fees & Charges Income - General,Drakes Court,533.97, 07-May-2019
969,Revenue,CAHD,South Glos Users in South Glos Homes,Permanent Nursing,Drakes Court,662.24, 07-May-2019
970,Revenue,CAHD,Bed Purchasing - Central,Permanent Nursing,Drakes Court,2367.48, 07-May-2019
971,Revenue,CAHD,South Glos Users in South Glos Homes,Permanent Nursing,Drakes Court,662.24, 07-May-2019
972,Revenue,CAHD,South Glos Users in South Glos Homes,Permanent Nursing,Drakes Court,662.24, 07-May-2019
973,Revenue,CAHD,South Glos Users in South Glos Homes,Permanent Nursing,Drakes Court,662.24, 07-May-2019
974,Revenue,CAHD,South Glos Users in South Glos Homes,Permanent Nursing,Drakes Court,662.24, 07-May-2019
975,Revenue,CAHD,South Glos Users in South Glos Homes,Permanent Nursing,Drakes Court,662.24, 07-May-2019
976,Revenue,CAHD,South Glos Users in South Glos Homes,Permanent Nursing,Drakes Court,662.24, 07-May-2019
977,Revenue,CAHD,Bed Purchasing - South,Permanent Nursing,Drakes Court,2846.72, 07-May-2019
978,Revenue,CAHD,South Glos Users in South Glos Homes,Permanent Nursing,Drakes Court,662.24, 07-May-2019
979,Revenue,CAHD,South Glos Users in South Glos Homes,Permanent Nursing,Drakes Court,662.24, 07-May-2019
980,Revenue,CAHD,South Glos Users in South Glos Homes,Permanent Nursing,Drakes Court,662.24, 07-May-2019
981,Revenue,CAHD,Independent Special Placements - Pre 16,Other Private Contractors,Durham School,8216.45, 01-May-2019
982,Revenue,CAHD,Bed and Breakfast,Bed & Breakfast,Individual,511.00, 07-May-2019
983,Revenue,CAHD,Bed and Breakfast,Bed & Breakfast,Individual,418.25, 02-May-2019
984,Revenue,CAHD,Bed and Breakfast,Bed & Breakfast,Individual,706.65, 02-May-2019
985,Revenue,CAHD,Bed and Breakfast,Bed & Breakfast,Individual,598.50, 02-May-2019
986,Revenue,CAHD,Bed and Breakfast,Bed & Breakfast,Individual,526.40, 02-May-2019
987,Revenue,CAHD,Bed and Breakfast,Bed & Breakfast,Individual,418.25, 09-May-2019
988,Revenue,CAHD,Bed and Breakfast,Bed & Breakfast,Individual,706.65, 09-May-2019
989,Revenue,CAHD,Bed and Breakfast,Bed & Breakfast,Individual,598.50, 09-May-2019
990,Revenue,CAHD,Bed and Breakfast,Bed & Breakfast,Individual,418.25, 15-May-2019
991,Revenue,CAHD,Bed and Breakfast,Bed & Breakfast,Individual,706.65, 14-May-2019
992,Revenue,CAHD,Bed and Breakfast,Bed & Breakfast,Individual,598.50, 17-May-2019
993,Revenue,CAHD,Bed and Breakfast,Bed & Breakfast,Individual,418.25, 22-May-2019
994,Revenue,CAHD,Bed and Breakfast,Bed & Breakfast,Individual,706.65, 22-May-2019
995,Revenue,CAHD,Bed and Breakfast,Bed & Breakfast,Individual,598.50, 22-May-2019
996,Revenue,CAHD,Bed and Breakfast,Bed & Breakfast,Individual,418.25, 29-May-2019
997,Revenue,CAHD,Bed and Breakfast,Bed & Breakfast,Individual,706.65, 29-May-2019
998,Revenue,CAHD,Bed and Breakfast,Bed & Breakfast,Individual,598.50, 29-May-2019
999,Revenue,CAHD,Bed Purchasing - North,Permanent Residential,East Court,2763.56, 07-May-2019
1000,Revenue,CAHD,Bed Purchasing - South,Permanent Residential,Edgecumbe Lodge,2662.40, 07-May-2019
1001,Revenue,CAHD,Bed Purchasing - South,Permanent Residential,Edgecumbe Lodge,2662.40, 07-May-2019
1002,Revenue,CAHD,Bed Purchasing - South,Permanent Residential,Edgecumbe Lodge,2230.32, 07-May-2019
1003,Revenue,CAHD,Bed Purchasing - Elderly S117- North,Permanent Residential,Edgecumbe Lodge,2719.76, 07-May-2019
1004,Revenue,CAHD,Bed Purchasing - South,Permanent Residential,Edgecumbe Lodge,2662.40, 07-May-2019
1005,Revenue,CAHD,Bed Purchasing - South,Respite Planned - Residential,Edgecumbe Lodge,650.00, 07-May-2019
1006,Revenue,CAHD,Bed Purchasing - South,Permanent Residential,Edgecumbe Lodge,2662.40, 07-May-2019
1007,Revenue,CAHD,Bed Purchasing - South,Permanent Residential,Edgecumbe Lodge,2303.60, 07-May-2019
1008,Revenue,CAHD,Bed Purchasing - South,Permanent Residential,Edgecumbe Lodge,2504.28, 07-May-2019
1009,Revenue,CAHD,Bed Purchasing - South,Permanent Residential,Edgecumbe Lodge,2536.84, 07-May-2019
1010,Revenue,CAHD,Bed Purchasing - South,Permanent Residential,Edgecumbe Lodge,2662.40, 07-May-2019
1011,Revenue,CAHD,Bed Purchasing - South,Permanent Residential,Edgecumbe Lodge,1331.20, 07-May-2019
1012,Revenue,CAHD,Bed Purchasing - Southmead Hospital,Fees & Charges Income - General,Edgecumbe Lodge,559.98, 07-May-2019
1013,Revenue,CAHD,Bed Purchasing - Southmead Hospital,Respite Emergency - Residential,Edgemont House Ltd,13701.43, 07-May-2019
1014,Revenue,CAHD,Bed Purchasing - South,Respite Emergency - Residential,Edgemont House Ltd,2826.24, 07-May-2019
1015,Revenue,CAHD,Bed Purchasing - South,Respite Emergency - Residential,Edgemont House Ltd,1413.12, 07-May-2019
1016,Revenue,CAHD,Bed Purchasing - South,Permanent Residential,Edgemont House Ltd,2022.76, 07-May-2019
1017,Revenue,CAHD,South Glos Users in South Glos Homes,Permanent Nursing,Edgemont View Nursing Home,662.24, 07-May-2019
1018,Revenue,CAHD,Bed Purchasing - South,Permanent Nursing,Edgemont View Nursing Home,3584.00, 07-May-2019
1019,Revenue,CAHD,Bed Purchasing - Southmead Hospital,Fees & Charges Income - General,Edgemont View Nursing Home,1024.00, 07-May-2019
1020,Revenue,CAHD,Bed Purchasing - Southmead Hospital,Permanent Nursing,Edgemont View Nursing Home,3375.00, 07-May-2019
1021,Revenue,CAHD,Bed Purchasing - Southmead Hospital,Fees & Charges Income - General,Edgemont View Nursing Home,768.00, 07-May-2019
1022,Revenue,CAHD,Bed Purchasing - Southmead Hospital,Permanent Nursing,Edgemont View Nursing Home,1792.00, 07-May-2019
1023,Revenue,CAHD,Bed Purchasing - South,Permanent Nursing,Edgemont View Nursing Home,1792.00, 07-May-2019
1024,Revenue,CAHD,Bed Purchasing - Southmead Hospital,Fees & Charges Income - General,Edgemont View Nursing Home,512.94, 07-May-2019
1025,Revenue,CAHD,South Glos Users in South Glos Homes,Permanent Nursing,Edgemont View Nursing Home,662.24, 07-May-2019
1026,Revenue,CAHD,South Glos Users in South Glos Homes,Permanent Nursing,Edgemont View Nursing Home,662.24, 07-May-2019
1027,Revenue,CAHD,Bed Purchasing - South,Permanent Nursing,Edgemont View Nursing Home,2560.00, 07-May-2019
1028,Revenue,CAHD,South Glos Users in South Glos Homes,Permanent Nursing,Edgemont View Nursing Home,662.24, 07-May-2019
1029,Revenue,CAHD,Bed Purchasing - South,Permanent Nursing,Edgemont View Nursing Home,4129.44, 07-May-2019
1030,Revenue,CAHD,South Glos Users in South Glos Homes,Permanent Nursing,Edgemont View Nursing Home,662.24, 07-May-2019
1031,Revenue,CAHD,Bed Purchasing - South,Permanent Nursing,Edgemont View Nursing Home,2064.72, 07-May-2019
1032,Revenue,CAHD,South Glos Users in South Glos Homes,Permanent Nursing,Edgemont View Nursing Home,662.24, 07-May-2019
1033,Revenue,CAHD,South Glos Users in South Glos Homes,Permanent Nursing,Edgemont View Nursing Home,662.24, 07-May-2019
1034,Revenue,CAHD,South Glos Users in South Glos Homes,Permanent Nursing,Edgemont View Nursing Home,662.24, 07-May-2019
1035,Revenue,CAHD,Bed Purchasing - South,Permanent Nursing,Edgemont View Nursing Home,3005.16, 07-May-2019
1036,Revenue,CAHD,South Glos Users in South Glos Homes,Permanent Nursing,Edgemont View Nursing Home,662.24, 07-May-2019
1037,Revenue,CAHD,South Glos Users in South Glos Homes,Permanent Nursing,Edgemont View Nursing Home,662.24, 07-May-2019
1038,Revenue,CAHD,South Glos Users in South Glos Homes,Permanent Nursing,Edgemont View Nursing Home,662.24, 07-May-2019
1039,Revenue,CAHD,South Glos Users in South Glos Homes,Permanent Nursing,Edgemont View Nursing Home,662.24, 07-May-2019
1040,Revenue,CAHD,South Glos Users in South Glos Homes,Permanent Nursing,Edgemont View Nursing Home,2282.02, 07-May-2019
1041,Revenue,CAHD,South Glos Users in South Glos Homes,Permanent Nursing,Edgemont View Nursing Home,662.24, 07-May-2019
1042,Revenue,CAHD,South Glos Users in South Glos Homes,Permanent Nursing,Edgemont View Nursing Home,662.24, 07-May-2019
1043,Revenue,CAHD,Bed Purchasing - South,Permanent Nursing,Edgemont View Nursing Home,3005.16, 07-May-2019
1044,Revenue,CAHD,South Glos Users in South Glos Homes,Permanent Nursing,Edgemont View Nursing Home,662.24, 07-May-2019
1045,Revenue,CAHD,South Glos Users in South Glos Homes,Permanent Nursing,Edgemont View Nursing Home,662.24, 07-May-2019
1046,Revenue,CAHD,Bed Purchasing - South,Permanent Nursing,Edgemont View Nursing Home,3584.00, 07-May-2019
1047,Revenue,CAHD,South Glos Users in South Glos Homes,Permanent Nursing,Edgemont View Nursing Home,662.24, 07-May-2019
1048,Revenue,CAHD,South Glos Users in South Glos Homes,Permanent Nursing,Edgemont View Nursing Home,2349.81, 07-May-2019
1049,Revenue,CAHD,South Glos Users in South Glos Homes,Permanent Nursing,Edgemont View Nursing Home,662.24, 07-May-2019
1050,Revenue,CAHD,Planning & Development,Consultants Fees,Efeedback Research Ltd t/a Cognisant Research,12014.17, 13-May-2019
1051,Revenue,CAHD,Training Budget - Children`s Social Serv,Training Expenses,EG People Development,532.15, 03-May-2019
1052,Revenue,CAHD,Planning and Partnerships Procurement,Other Supplies & Services,Eldercare,2992.05, 30-May-2019
1053,Revenue,CAHD,Planning and Partnerships Procurement,Other Supplies & Services,Eldercare,2477.84, 30-May-2019
1054,Revenue,CAHD,Supporting People Programme,Grants to Voluntary Bodies,Elim Housing Association Limited,5372.63, 01-May-2019
1055,Revenue,CAHD,Supporting People Programme,Grants to Voluntary Bodies,Elim Housing Association Limited,5372.63, 31-May-2019
1056,Revenue,CAHD,Winter Incentive Payments,Other Small Contracts,Elite Home Care Ltd,3300.00, 03-May-2019
1057,Revenue,CAHD,Home Care - Elderly - South,Day Care / Social Activities,Elite Home Care Ltd,203.36, 03-May-2019
1058,Revenue,CAHD,Home Care - Elderly - South,Other Small Contracts,Elite Home Care Ltd,7610.55, 03-May-2019
1059,Revenue,CAHD,Home Care - Elderly - North,Other Small Contracts,Elite Home Care Ltd,410.48, 03-May-2019
1060,Revenue,CAHD,Home Care - Elderly - South,Day Care / Social Activities,Elite Home Care Ltd,198.40, 17-May-2019
1061,Revenue,CAHD,Home Care - Elderly - South,Other Small Contracts,Elite Home Care Ltd,7661.23, 17-May-2019
1062,Revenue,CAHD,Home Care - Elderly - North,Other Small Contracts,Elite Home Care Ltd,282.72, 17-May-2019
1063,Revenue,CAHD,Home Care - Elderly - South,Day Care / Social Activities,Elite Home Care Ltd,198.40, 17-May-2019
1064,Revenue,CAHD,Home Care - Elderly - South,Other Small Contracts,Elite Home Care Ltd,7600.75, 17-May-2019
1065,Revenue,CAHD,Home Care - Elderly - North,Other Small Contracts,Elite Home Care Ltd,287.68, 17-May-2019
1066,Revenue,CAHD,Home Care - Elderly - South,Day Care / Social Activities,Elite Home Care Ltd,203.36, 17-May-2019
1067,Revenue,CAHD,Home Care - Elderly - South,Other Small Contracts,Elite Home Care Ltd,7713.12, 17-May-2019
1068,Revenue,CAHD,Home Care - Elderly - North,Other Small Contracts,Elite Home Care Ltd,282.72, 17-May-2019
1069,Revenue,CAHD,CSC - Legal Fees,Legal Fees,Elizabeth Harris,500.00, 24-May-2019
1070,Revenue,CAHD,NHS Health Checks,Other Small Contracts,Emersons Green Medical Centre,851.00, 29-May-2019
1071,Revenue,CAHD,Sexual Health,Other Small Contracts,Emersons Green Medical Centre,966.00, 13-May-2019
1072,Revenue,CAHD,Sexual Health,Other Small Contracts,Emersons Green Medical Centre,856.86, 13-May-2019
1073,Revenue,CAHD,Special ISB,Other Public Bodies,Enable Trust,646.93, 30-May-2019
1074,Revenue,CAHD,Special ISB,Other Public Bodies,Enable Trust,1172.69, 30-May-2019
1075,Revenue,CAHD,Special ISB,Other Public Bodies,Enable Trust,1172.69, 30-May-2019
1076,Revenue,CAHD,Special ISB,Other Public Bodies,Enable Trust,1172.69, 30-May-2019
1077,Revenue,CAHD,Special ISB,Other Public Bodies,Enable Trust,1172.69, 30-May-2019
1078,Revenue,CAHD,Special ISB,Other Public Bodies,Enable Trust,1172.69, 30-May-2019
1079,Revenue,CAHD,Special ISB,Other Public Bodies,Enable Trust,1172.69, 30-May-2019
1080,Revenue,CAHD,Special ISB,Other Public Bodies,Enable Trust,646.93, 30-May-2019
1081,Revenue,CAHD,Special ISB,Other Public Bodies,Enable Trust,889.61, 30-May-2019
1082,Revenue,CAHD,Special ISB,Other Public Bodies,Enable Trust,1536.63, 30-May-2019
1083,Revenue,CAHD,Special ISB,Other Public Bodies,Enable Trust,889.61, 30-May-2019
1084,Revenue,CAHD,Special ISB,Other Public Bodies,Enable Trust,2183.55, 30-May-2019
1085,Revenue,CAHD,Special ISB,Other Public Bodies,Enable Trust,1536.63, 30-May-2019
1086,Revenue,CAHD,Special ISB,Other Public Bodies,Enable Trust,1172.69, 30-May-2019
1087,Revenue,CAHD,Special ISB,Other Public Bodies,Enable Trust,1172.69, 30-May-2019
1088,Revenue,CAHD,Special ISB,Other Public Bodies,Enable Trust,889.61, 30-May-2019
1089,Revenue,CAHD,Special ISB,Other Public Bodies,Enable Trust,1172.69, 30-May-2019
1090,Revenue,CAHD,Special ISB,Other Public Bodies,Enable Trust,1172.69, 30-May-2019
1091,Revenue,CAHD,Special ISB,Other Public Bodies,Enable Trust,646.93, 30-May-2019
1092,Revenue,CAHD,Special ISB,Other Public Bodies,Enable Trust,1172.69, 30-May-2019
1093,Revenue,CAHD,Special ISB,Other Public Bodies,Enable Trust,1536.63, 30-May-2019
1094,Revenue,CAHD,Special ISB,Other Public Bodies,Enable Trust,1172.69, 30-May-2019
1095,Revenue,CAHD,Special ISB,Other Public Bodies,Enable Trust,889.61, 30-May-2019
1096,Revenue,CAHD,Special ISB,Other Public Bodies,Enable Trust,1536.63, 30-May-2019
1097,Revenue,CAHD,Special ISB,Other Public Bodies,Enable Trust,889.61, 30-May-2019
1098,Revenue,CAHD,Special ISB,Other Public Bodies,Enable Trust,1536.63, 30-May-2019
1099,Revenue,CAHD,Special ISB,Other Public Bodies,Enable Trust,646.93, 30-May-2019
1100,Revenue,CAHD,Special ISB,Other Public Bodies,Enable Trust,1172.69, 30-May-2019
1101,Revenue,CAHD,Special ISB,Other Public Bodies,Enable Trust,1172.69, 30-May-2019
1102,Revenue,CAHD,Special ISB,Other Public Bodies,Enable Trust,889.61, 30-May-2019
1103,Revenue,CAHD,Special ISB,Other Public Bodies,Enable Trust,1536.63, 30-May-2019
1104,Revenue,CAHD,Special ISB,Other Public Bodies,Enable Trust,1172.69, 30-May-2019
1105,Revenue,CAHD,Special ISB,Other Public Bodies,Enable Trust,1172.69, 30-May-2019
1106,Revenue,CAHD,Special ISB,Other Public Bodies,Enable Trust,1172.69, 30-May-2019
1107,Revenue,CAHD,Special ISB,Other Public Bodies,Enable Trust,1536.63, 30-May-2019
1108,Revenue,CAHD,Special ISB,Other Public Bodies,Enable Trust,1172.69, 30-May-2019
1109,Revenue,CAHD,Special ISB,Other Public Bodies,Enable Trust,889.61, 30-May-2019
1110,Revenue,CAHD,Special ISB,Other Public Bodies,Enable Trust,1536.63, 30-May-2019
1111,Revenue,CAHD,Special ISB,Other Public Bodies,Enable Trust,1536.63, 30-May-2019
1112,Revenue,CAHD,Special ISB,Other Public Bodies,Enable Trust,889.61, 30-May-2019
1113,Revenue,CAHD,Special ISB,Other Public Bodies,Enable Trust,889.61, 30-May-2019
1114,Revenue,CAHD,Special ISB,Other Public Bodies,Enable Trust,1172.69, 30-May-2019
1115,Revenue,CAHD,Special ISB,Other Public Bodies,Enable Trust,889.61, 30-May-2019
1116,Revenue,CAHD,Special ISB,Other Public Bodies,Enable Trust,889.61, 30-May-2019
1117,Revenue,CAHD,Special ISB,Other Public Bodies,Enable Trust,1172.69, 30-May-2019
1118,Revenue,CAHD,Special ISB,Other Public Bodies,Enable Trust,1172.69, 30-May-2019
1119,Revenue,CAHD,Special ISB,Other Public Bodies,Enable Trust,1172.69, 30-May-2019
1120,Revenue,CAHD,Special ISB,Other Public Bodies,Enable Trust,1536.63, 30-May-2019
1121,Revenue,CAHD,Special ISB,Other Public Bodies,Enable Trust,1172.69, 30-May-2019
1122,Revenue,CAHD,Special ISB,Other Public Bodies,Enable Trust,889.61, 30-May-2019
1123,Revenue,CAHD,Special ISB,Other Public Bodies,Enable Trust,1536.63, 30-May-2019
1124,Revenue,CAHD,Special ISB,Other Public Bodies,Enable Trust,1172.69, 30-May-2019
1125,Revenue,CAHD,Special ISB,Other Public Bodies,Enable Trust,1172.69, 30-May-2019
1126,Revenue,CAHD,Special ISB,Other Public Bodies,Enable Trust,1536.63, 30-May-2019
1127,Revenue,CAHD,Special ISB,Other Public Bodies,Enable Trust,889.61, 30-May-2019
1128,Revenue,CAHD,Special ISB,Other Public Bodies,Enable Trust,889.61, 30-May-2019
1129,Revenue,CAHD,Special ISB,Other Public Bodies,Enable Trust,1172.69, 30-May-2019
1130,Revenue,CAHD,Special ISB,Other Public Bodies,Enable Trust,1536.63, 30-May-2019
1131,Revenue,CAHD,Special ISB,Other Public Bodies,Enable Trust,1172.69, 30-May-2019
1132,Revenue,CAHD,Special ISB,Other Public Bodies,Enable Trust,1536.63, 30-May-2019
1133,Revenue,CAHD,Special ISB,Other Public Bodies,Enable Trust,1536.63, 30-May-2019
1134,Revenue,CAHD,Schools Specific Grant Income - from OLA,Other Public Bodies,Enable Trust,500.00, 30-May-2019
1135,Revenue,CAHD,Schools Specific Grant Income - from OLA,Other Public Bodies,Enable Trust,500.00, 30-May-2019
1136,Revenue,CAHD,Schools Specific Grant Income - from OLA,Other Public Bodies,Enable Trust,666.00, 30-May-2019
1137,Revenue,CAHD,Special ISB,Other Public Bodies,Enable Trust,1698.31, 30-May-2019
1138,Revenue,CAHD,Special ISB,Other Public Bodies,Enable Trust,889.61, 30-May-2019
1139,Revenue,CAHD,Special ISB,Other Public Bodies,Enable Trust,1172.69, 30-May-2019
1140,Revenue,CAHD,Special ISB,Other Public Bodies,Enable Trust,2183.55, 30-May-2019
1141,Revenue,CAHD,Special ISB,Other Public Bodies,Enable Trust,2183.55, 30-May-2019
1142,Revenue,CAHD,Special ISB,Other Public Bodies,Enable Trust,2507.01, 30-May-2019
1143,Revenue,CAHD,Special ISB,Other Public Bodies,Enable Trust,4129.10, 30-May-2019
1144,Revenue,CAHD,Special ISB,Other Public Bodies,Enable Trust,1504.21, 30-May-2019
1145,Revenue,CAHD,Special ISB,Other Public Bodies,Enable Trust,1698.31, 30-May-2019
1146,Revenue,CAHD,Special ISB,Other Public Bodies,Enable Trust,889.61, 30-May-2019
1147,Revenue,CAHD,Special ISB,Other Public Bodies,Enable Trust,889.61, 30-May-2019
1148,Revenue,CAHD,Special ISB,Other Public Bodies,Enable Trust,1172.69, 30-May-2019
1149,Revenue,CAHD,Special ISB,Other Public Bodies,Enable Trust,1172.69, 30-May-2019
1150,Revenue,CAHD,Special ISB,Other Public Bodies,Enable Trust,1172.69, 30-May-2019
1151,Revenue,CAHD,Special ISB,Other Public Bodies,Enable Trust,1172.69, 30-May-2019
1152,Revenue,CAHD,Special ISB,Other Public Bodies,Enable Trust,889.61, 30-May-2019
1153,Revenue,CAHD,Special ISB,Other Public Bodies,Enable Trust,1698.31, 30-May-2019
1154,Revenue,CAHD,Special ISB,Other Public Bodies,Enable Trust,889.61, 30-May-2019
1155,Revenue,CAHD,Special ISB,Other Public Bodies,Enable Trust,1698.31, 30-May-2019
1156,Revenue,CAHD,Special ISB,Other Public Bodies,Enable Trust,1172.69, 30-May-2019
1157,Revenue,CAHD,Special ISB,Other Public Bodies,Enable Trust,2183.55, 30-May-2019
1158,Revenue,CAHD,Special ISB,Other Public Bodies,Enable Trust,2507.01, 30-May-2019
1159,Revenue,CAHD,Special ISB,Other Public Bodies,Enable Trust,889.61, 30-May-2019
1160,Revenue,CAHD,Special ISB,Other Public Bodies,Enable Trust,889.61, 30-May-2019
1161,Revenue,CAHD,Special ISB,Other Public Bodies,Enable Trust,1698.31, 30-May-2019
1162,Revenue,CAHD,Special ISB,Other Public Bodies,Enable Trust,1504.21, 30-May-2019
1163,Revenue,CAHD,Special ISB,Other Public Bodies,Enable Trust,1172.69, 30-May-2019
1164,Revenue,CAHD,Special ISB,Other Public Bodies,Enable Trust,1172.69, 30-May-2019
1165,Revenue,CAHD,Special ISB,Other Public Bodies,Enable Trust,1172.69, 30-May-2019
1166,Revenue,CAHD,Special ISB,Other Public Bodies,Enable Trust,1698.31, 30-May-2019
1167,Revenue,CAHD,Special ISB,Other Public Bodies,Enable Trust,1698.31, 30-May-2019
1168,Revenue,CAHD,Special ISB,Other Public Bodies,Enable Trust,1172.69, 30-May-2019
1169,Revenue,CAHD,Special ISB,Other Public Bodies,Enable Trust,1172.69, 30-May-2019
1170,Revenue,CAHD,Special ISB,Other Public Bodies,Enable Trust,889.61, 30-May-2019
1171,Revenue,CAHD,Special ISB,Other Public Bodies,Enable Trust,1172.69, 30-May-2019
1172,Revenue,CAHD,Special ISB,Other Public Bodies,Enable Trust,1172.69, 30-May-2019
1173,Revenue,CAHD,Special ISB,Other Public Bodies,Enable Trust,1172.69, 30-May-2019
1174,Revenue,CAHD,Special ISB,Other Public Bodies,Enable Trust,1698.31, 30-May-2019
1175,Revenue,CAHD,Special ISB,Other Public Bodies,Enable Trust,1698.31, 30-May-2019
1176,Revenue,CAHD,Special ISB,Other Public Bodies,Enable Trust,889.61, 30-May-2019
1177,Revenue,CAHD,Special ISB,Other Public Bodies,Enable Trust,1172.69, 30-May-2019
1178,Revenue,CAHD,Special ISB,Other Public Bodies,Enable Trust,889.61, 30-May-2019
1179,Revenue,CAHD,Special ISB,Other Public Bodies,Enable Trust,1172.69, 30-May-2019
1180,Revenue,CAHD,Special ISB,Other Public Bodies,Enable Trust,1172.69, 30-May-2019
1181,Revenue,CAHD,Special ISB,Other Public Bodies,Enable Trust,1172.69, 30-May-2019
1182,Revenue,CAHD,Special ISB,Other Public Bodies,Enable Trust,1010.95, 30-May-2019
1183,Revenue,CAHD,Special ISB,Other Public Bodies,Enable Trust,1172.69, 30-May-2019
1184,Revenue,CAHD,Special ISB,Other Public Bodies,Enable Trust,889.61, 30-May-2019
1185,Revenue,CAHD,Special ISB,Other Public Bodies,Enable Trust,1172.69, 30-May-2019
1186,Revenue,CAHD,Special ISB,Other Public Bodies,Enable Trust,1172.69, 30-May-2019
1187,Revenue,CAHD,Special ISB,Other Public Bodies,Enable Trust,2183.55, 30-May-2019
1188,Revenue,CAHD,Special ISB,Other Public Bodies,Enable Trust,1698.31, 30-May-2019
1189,Revenue,CAHD,Special ISB,Other Public Bodies,Enable Trust,889.61, 30-May-2019
1190,Revenue,CAHD,Special ISB,Other Public Bodies,Enable Trust,1172.69, 30-May-2019
1191,Revenue,CAHD,Special ISB,Other Public Bodies,Enable Trust,889.61, 30-May-2019
1192,Revenue,CAHD,Special ISB,Other Public Bodies,Enable Trust,1172.69, 30-May-2019
1193,Revenue,CAHD,Special ISB,Other Public Bodies,Enable Trust,646.93, 30-May-2019
1194,Revenue,CAHD,Special ISB,Other Public Bodies,Enable Trust,1698.31, 30-May-2019
1195,Revenue,CAHD,Special ISB,Other Public Bodies,Enable Trust,1698.31, 30-May-2019
1196,Revenue,CAHD,Special ISB,Other Public Bodies,Enable Trust,1536.63, 30-May-2019
1197,Revenue,CAHD,Special ISB,Other Public Bodies,Enable Trust,889.61, 30-May-2019
1198,Revenue,CAHD,Special ISB,Other Public Bodies,Enable Trust,1172.69, 30-May-2019
1199,Revenue,CAHD,Special ISB,Other Public Bodies,Enable Trust,1172.69, 30-May-2019
1200,Revenue,CAHD,Special ISB,Other Public Bodies,Enable Trust,1172.69, 30-May-2019
1201,Revenue,CAHD,Special ISB,Other Public Bodies,Enable Trust,1172.69, 30-May-2019
1202,Revenue,CAHD,Special ISB,Other Public Bodies,Enable Trust,889.61, 30-May-2019
1203,Revenue,CAHD,Special ISB,Other Public Bodies,Enable Trust,889.61, 30-May-2019
1204,Revenue,CAHD,Special ISB,Other Public Bodies,Enable Trust,889.61, 30-May-2019
1205,Revenue,CAHD,Special ISB,Other Public Bodies,Enable Trust,1172.69, 30-May-2019
1206,Revenue,CAHD,Special ISB,Other Public Bodies,Enable Trust,889.61, 30-May-2019
1207,Revenue,CAHD,Special ISB,Other Public Bodies,Enable Trust,889.61, 30-May-2019
1208,Revenue,CAHD,Special ISB,Other Public Bodies,Enable Trust,889.61, 30-May-2019
1209,Revenue,CAHD,Special ISB,Other Public Bodies,Enable Trust,1172.69, 30-May-2019
1210,Revenue,CAHD,Special ISB,Other Public Bodies,Enable Trust,1698.31, 30-May-2019
1211,Revenue,CAHD,Special ISB,Other Public Bodies,Enable Trust,1698.31, 30-May-2019
1212,Revenue,CAHD,Special ISB,Other Public Bodies,Enable Trust,2183.55, 30-May-2019
1213,Revenue,CAHD,Special ISB,Other Public Bodies,Enable Trust,889.61, 30-May-2019
1214,Revenue,CAHD,Special ISB,Other Public Bodies,Enable Trust,1172.69, 30-May-2019
1215,Revenue,CAHD,Special ISB,Other Public Bodies,Enable Trust,2183.55, 30-May-2019
1216,Revenue,CAHD,Special ISB,Other Public Bodies,Enable Trust,1698.31, 30-May-2019
1217,Revenue,CAHD,Special ISB,Other Public Bodies,Enable Trust,889.61, 30-May-2019
1218,Revenue,CAHD,Special ISB,Other Public Bodies,Enable Trust,889.61, 30-May-2019
1219,Revenue,CAHD,Special ISB,Other Public Bodies,Enable Trust,1172.69, 30-May-2019
1220,Revenue,CAHD,Special ISB,Other Public Bodies,Enable Trust,1698.31, 30-May-2019
1221,Revenue,CAHD,Special ISB,Other Public Bodies,Enable Trust,1698.31, 30-May-2019
1222,Revenue,CAHD,Special ISB,Other Public Bodies,Enable Trust,83333.00, 30-May-2019
1223,Revenue,CAHD,Bed Purchasing - South,Permanent Nursing,Epworth House,3072.00, 07-May-2019
1224,Revenue,CAHD,Bed Purchasing - South,Permanent Nursing,Epworth House,3072.00, 07-May-2019
1225,Revenue,CAHD,Bed Purchasing - Elderly S117- North,Permanent Residential,Evolve House,4915.20, 07-May-2019
1226,Revenue,CAHD,Bed Purchasing - Elderly S117- North,Permanent Residential,Evolve House,1600.00, 07-May-2019
1227,Revenue,CAHD,Bed Purchasing - South,Permanent Residential,Evolve House,3928.38, 07-May-2019
1228,Revenue,CAHD,Bed Purchasing - South,Permanent Residential,Evolve House,2681.76, 07-May-2019
1229,Revenue,CAHD,Bed Purchasing - South,Permanent Residential,Evolve House,1340.88, 07-May-2019
1230,Revenue,CAHD,Placements OLA Special Schools and RB,Other L.A.'s - General,Excalibur Academies Trust T/A,1511.83, 28-May-2019
1231,Revenue,CAHD,Homeless - Private Sector Leasing,Prop.Serv. General Repairs,Express Property Services Limited,954.95, 30-May-2019
1232,Revenue,CAHD,Homeless - Private Sector Leasing,Prop.Serv. General Repairs,Express Property Services Limited,7755.40, 20-May-2019
1233,Revenue,CAHD,Homeless - Private Sector Leasing,Prop.Serv. General Repairs,Express Property Services Limited,5094.67, 21-May-2019
1234,Revenue,CAHD,Extra Care Housing,Private & Voluntary Home Care,Extra Care Charitable Trust,30382.22, 13-May-2019
1235,Revenue,CAHD,Bed Purchasing - North,Permanent Residential,Eyre Court,3719.16, 07-May-2019
1236,Revenue,CAHD,Post 16 High Needs Placements,Other Private Contractors,Fairfield Farm Trust,11548.00, 21-May-2019
1237,Revenue,CAHD,Bed Purchasing - South,Permanent Nursing,Fairview Court,3810.56, 07-May-2019
1238,Revenue,CAHD,South Glos Users in South Glos Homes,Permanent Nursing,Fairview Court,662.24, 07-May-2019
1239,Revenue,CAHD,Bed Purchasing - South,Permanent Nursing,Fairview Court,1905.28, 07-May-2019
1240,Revenue,CAHD,South Glos Users in South Glos Homes,Permanent Nursing,Fairview Court,662.24, 07-May-2019
1241,Revenue,CAHD,South Glos Users in South Glos Homes,Permanent Nursing,Fairview Court,662.24, 07-May-2019
1242,Revenue,CAHD,Bed Purchasing - South,Permanent Nursing,Fairview Court,3810.56, 07-May-2019
1243,Revenue,CAHD,South Glos Users in South Glos Homes,Permanent Nursing,Fairview Court,662.24, 07-May-2019
1244,Revenue,CAHD,Bed Purchasing - South,Permanent Nursing,Fairview Court,1905.28, 07-May-2019
1245,Revenue,CAHD,South Glos Users in South Glos Homes,Permanent Nursing,Fairview Court,662.24, 07-May-2019
1246,Revenue,CAHD,Bed Purchasing - South,Permanent Nursing,Fairview Court,3810.56, 07-May-2019
1247,Revenue,CAHD,South Glos Users in South Glos Homes,Permanent Nursing,Fairview Court,662.24, 07-May-2019
1248,Revenue,CAHD,Bed Purchasing - South,Permanent Nursing,Fairview Court,1905.28, 07-May-2019
1249,Revenue,CAHD,Bed Purchasing - Southmead Hospital,Fees & Charges Income - General,Fairview Court,536.40, 07-May-2019
1250,Revenue,CAHD,South Glos Users in South Glos Homes,Permanent Nursing,Fairview Court,662.24, 07-May-2019
1251,Revenue,CAHD,South Glos Users in South Glos Homes,Permanent Nursing,Fairview Court,662.24, 07-May-2019
1252,Revenue,CAHD,Bed Purchasing - South,Permanent Nursing,Fairview Court,3547.76, 07-May-2019
1253,Revenue,CAHD,South Glos Users in South Glos Homes,Permanent Nursing,Fairview Court,662.24, 07-May-2019
1254,Revenue,CAHD,Bed Purchasing - South,Permanent Nursing,Fairview Court,3810.56, 07-May-2019
1255,Revenue,CAHD,South Glos Users in South Glos Homes,Permanent Nursing,Fairview Court,2010.89, 07-May-2019
1256,Revenue,CAHD,South Glos Users in South Glos Homes,Permanent Nursing,Fairview Court,662.24, 07-May-2019
1257,Revenue,CAHD,Bed Purchasing - South,Permanent Nursing,Fairview Court,3810.56, 07-May-2019
1258,Revenue,CAHD,South Glos Users in South Glos Homes,Permanent Nursing,Fairview Court,662.24, 07-May-2019
1259,Revenue,CAHD,Bed Purchasing - South,Permanent Nursing,Fairview Court,3506.00, 07-May-2019
1260,Revenue,CAHD,South Glos Users in South Glos Homes,Permanent Nursing,Fairview Court,662.24, 07-May-2019
1261,Revenue,CAHD,South Glos Users in South Glos Homes,Permanent Nursing,Fairview Court,662.24, 07-May-2019
1262,Revenue,CAHD,South Glos Users in South Glos Homes,Permanent Nursing,Fairview Court,662.24, 07-May-2019
1263,Revenue,CAHD,Bed purchasing - Elderly S117 - South,Permanent Nursing,Fairview Court,4173.84, 07-May-2019
1264,Revenue,CAHD,South Glos Users in South Glos Homes,Permanent Nursing,Fairview Court,662.24, 07-May-2019
1265,Revenue,CAHD,South Glos Users in South Glos Homes,Permanent Nursing,Fairview Court,662.24, 07-May-2019
1266,Revenue,CAHD,Bed Purchasing - South,Permanent Nursing,Fairview Court,3382.48, 07-May-2019
1267,Revenue,CAHD,South Glos Users in South Glos Homes,Permanent Nursing,Fairview Court,662.24, 07-May-2019
1268,Revenue,CAHD,Bed Purchasing - South,Fees & Charges Income - General,Fairview Court,2471.86, 07-May-2019
1269,Revenue,CAHD,South Glos Users in South Glos Homes,Permanent Nursing,Fairview Court,662.24, 07-May-2019
1270,Revenue,CAHD,South Glos Users in South Glos Homes,Permanent Nursing,Fairview Court,662.24, 07-May-2019
1271,Revenue,CAHD,Bed Purchasing - South,Permanent Nursing,Fairview Court,3810.56, 07-May-2019
1272,Revenue,CAHD,South Glos Users in South Glos Homes,Permanent Nursing,Fairview Court,662.24, 07-May-2019
1273,Revenue,CAHD,South Glos Users in South Glos Homes,Permanent Nursing,Fairview Court,662.24, 07-May-2019
1274,Revenue,CAHD,South Glos Users in South Glos Homes,Permanent Nursing,Fairview Court,662.24, 07-May-2019
1275,Revenue,CAHD,South Glos Users in South Glos Homes,Permanent Nursing,Fairview Court,662.24, 07-May-2019
1276,Revenue,CAHD,South Glos Users in South Glos Homes,Permanent Nursing,Fairview Court,662.24, 07-May-2019
1277,Revenue,CAHD,South Glos Users in South Glos Homes,Permanent Nursing,Fairview Court,662.24, 07-May-2019
1278,Revenue,CAHD,South Glos Users in South Glos Homes,Permanent Nursing,Fairview Court,662.24, 07-May-2019
1279,Revenue,CAHD,Bed Purchasing - South,Permanent Nursing,Fairview Court,3810.56, 07-May-2019
1280,Revenue,CAHD,South Glos Users in South Glos Homes,Permanent Nursing,Fairview Court,662.24, 07-May-2019
1281,Revenue,CAHD,South Glos Users in South Glos Homes,Permanent Nursing,Fairview Court,662.24, 07-May-2019
1282,Revenue,CAHD,South Glos Users in South Glos Homes,Permanent Nursing,Fairview Court,1649.38, 07-May-2019
1283,Revenue,CAHD,South Glos Users in South Glos Homes,Permanent Nursing,Fairview Court,662.24, 07-May-2019
1284,Revenue,CAHD,South Glos Users in South Glos Homes,Permanent Nursing,Fairview Court,662.24, 07-May-2019
1285,Revenue,CAHD,South Glos Users in South Glos Homes,Permanent Nursing,Fairview Court,662.24, 07-May-2019
1286,Revenue,CAHD,South Glos Users in South Glos Homes,Permanent Nursing,Fairview Court,662.24, 07-May-2019
1287,Revenue,CAHD,Bed Purchasing - North,Permanent Nursing,Fairview Court,3547.76, 07-May-2019
1288,Revenue,CAHD,South Glos Users in South Glos Homes,Permanent Nursing,Fairview Court,662.24, 07-May-2019
1289,Revenue,CAHD,Bed Purchasing - South,Permanent Nursing,Fairview Court,4048.64, 07-May-2019
1290,Revenue,CAHD,Bed Purchasing - South,Permanent Nursing,Fairview Court,2313.55, 07-May-2019
1291,Revenue,CAHD,South Glos Users in South Glos Homes,Permanent Nursing,Fairview Court,1739.76, 07-May-2019
1292,Revenue,CAHD,Bed Purchasing - South,Permanent Nursing,Fairview Court,1497.01, 07-May-2019
1293,Revenue,CAHD,South Glos Users in South Glos Homes,Permanent Nursing,Fairview Court,662.24, 07-May-2019
1294,Revenue,CAHD,Bed Purchasing - South,Permanent Nursing,Fairview Court,1905.28, 07-May-2019
1295,Revenue,CAHD,South Glos Users in South Glos Homes,Permanent Nursing,Fairview Court,662.24, 07-May-2019
1296,Revenue,CAHD,Bed Purchasing - South,Permanent Residential,Fairview Court,4048.64, 07-May-2019
1297,Revenue,CAHD,Bed Purchasing - South,Permanent Residential,Fairview Court,1590.54, 07-May-2019
1298,Revenue,CAHD,South Glos Users in South Glos Homes,Permanent Nursing,Fairview Court,662.24, 07-May-2019
1299,Revenue,CAHD,South Glos Users in South Glos Homes,Permanent Nursing,Fairview Court,662.24, 07-May-2019
1300,Revenue,CAHD,Bed Purchasing - North,Permanent Residential,Fairview Court,3256.32, 07-May-2019
1301,Revenue,CAHD,Bed Purchasing - South,Permanent Nursing,Fairview Court,3483.68, 07-May-2019
1302,Revenue,CAHD,South Glos Users in South Glos Homes,Permanent Nursing,Fairview Court,662.24, 07-May-2019
1303,Revenue,CAHD,Bed Purchasing - North,Permanent Nursing,Fairview Court,3810.56, 07-May-2019
1304,Revenue,CAHD,South Glos Users in South Glos Homes,Permanent Nursing,Fairview Court,662.24, 07-May-2019
1305,Revenue,CAHD,Bed Purchasing - South,Permanent Nursing,Fairview Court,3130.36, 07-May-2019
1306,Revenue,CAHD,South Glos Users in South Glos Homes,Permanent Nursing,Fairview Court,662.24, 07-May-2019
1307,Revenue,CAHD,Bed Purchasing - South,Permanent Nursing,Fairview Court,3810.56, 07-May-2019
1308,Revenue,CAHD,South Glos Users in South Glos Homes,Permanent Nursing,Fairview Court,662.24, 07-May-2019
1309,Revenue,CAHD,Bed Purchasing - South,Permanent Nursing,Fairview Court,3547.76, 07-May-2019
1310,Revenue,CAHD,South Glos Users in South Glos Homes,Permanent Nursing,Fairview Court,662.24, 07-May-2019
1311,Revenue,CAHD,South Glos Users in South Glos Homes,Permanent Nursing,Fairview Court,662.24, 07-May-2019
1312,Revenue,CAHD,South Glos Users in South Glos Homes,Permanent Nursing,Fairview Court,662.24, 07-May-2019
1313,Revenue,CAHD,Bed purchasing - Elderly S117 - South,Permanent Residential,Fairview House,2272.48, 07-May-2019
1314,Revenue,CAHD,Bed Purchasing - South,Permanent Residential,Fairview House,2303.52, 07-May-2019
1315,Revenue,CAHD,Bed Purchasing - North,Permanent Residential,Fairview House,2846.72, 07-May-2019
1316,Revenue,CAHD,Bed Purchasing - South,Permanent Residential,Fairview House,2846.72, 07-May-2019
1317,Revenue,CAHD,Bed Purchasing - South,Permanent Residential,Fairview House,1423.36, 07-May-2019
1318,Revenue,CAHD,Bed Purchasing - Southmead Hospital,Fees & Charges Income - General,Fairview House,657.74, 07-May-2019
1319,Revenue,CAHD,Bed Purchasing - South,Permanent Residential,Fairview House,2303.52, 07-May-2019
1320,Revenue,CAHD,Bed Purchasing - South,Permanent Residential,Fairview House,2230.32, 07-May-2019
1321,Revenue,CAHD,Bed Purchasing - South,Permanent Residential,Fairview House,2230.40, 07-May-2019
1322,Revenue,CAHD,Bed Purchasing - South,Permanent Residential,Fairview House,2608.68, 07-May-2019
1323,Revenue,CAHD,Bed Purchasing - North,Permanent Residential,Faith House,3297.28, 07-May-2019
1324,Revenue,CAHD,Bed Purchasing - North,Fees & Charges Income - General,Faith House,3669.51, 07-May-2019
1325,Revenue,CAHD,Bed Purchasing - North,Permanent Residential,Faith House,2805.76, 07-May-2019
1326,Revenue,CAHD,Bed Purchasing - North,Permanent Residential,Faith House,2805.76, 07-May-2019
1327,Revenue,CAHD,Bed Purchasing - North,Permanent Residential,Faith House,1402.88, 07-May-2019
1328,Revenue,CAHD,Bed Purchasing - Southmead Hospital,Fees & Charges Income - General,Faith House,738.32, 07-May-2019
1329,Revenue,CAHD,Bed Purchasing - Central,Permanent Residential,Faith House,12461.43, 07-May-2019
1330,Revenue,CAHD,Bed Purchasing - Central,Permanent Residential,Faith House,2928.64, 07-May-2019
1331,Revenue,CAHD,Bed Purchasing - Central,Permanent Residential,Faith House,1464.32, 07-May-2019
1332,Revenue,CAHD,Bed Purchasing - Central,Fees & Charges Income - General,Faith House,814.23, 07-May-2019
1333,Revenue,CAHD,Bed Purchasing - South,Permanent Residential,Faith House,2805.76, 07-May-2019
1334,Revenue,CAHD,CSC - Fostering Carer Support,Agency Staff (Admin/Support Staff) Pay,Individual,1800.00, 31-May-2019
1335,Revenue,CAHD,Bed Purchasing - Central,Permanent Nursing,Festival House,3055.04, 07-May-2019
1336,Revenue,CAHD,"Education, Learning and Skills",Fees - General,FFT Education Ltd,10070.04, 01-May-2019
1337,Revenue,CAHD,"Education, Learning and Skills",Fees - General,FFT Education Ltd,1277.92, 10-May-2019
1338,Revenue,CAHD,"Education, Learning and Skills",Fees - General,FFT Education Ltd,743.31, 16-May-2019
1339,Revenue,CAHD,Bed Purchasing - North,Permanent Nursing,Field House Care Home,2216.32, 07-May-2019
1340,Revenue,CAHD,Bed Purchasing - North,Permanent Nursing,Field House Care Home,3522.56, 07-May-2019
1341,Revenue,CAHD,South Glos Users in South Glos Homes,Permanent Nursing,Field House Care Home,662.24, 07-May-2019
1342,Revenue,CAHD,Bed Purchasing - North,Permanent Nursing,Field House Care Home,3522.56, 07-May-2019
1343,Revenue,CAHD,Bed Purchasing - North,Permanent Nursing,Field House Care Home,3403.60, 07-May-2019
1344,Revenue,CAHD,Bed Purchasing - North,Permanent Nursing,Field House Care Home,3589.48, 07-May-2019
1345,Revenue,CAHD,Bed Purchasing - North,Permanent Nursing,Field House Care Home,3422.52, 07-May-2019
1346,Revenue,CAHD,Bed Purchasing - North,Permanent Nursing,Field House Care Home,3600.00, 07-May-2019
1347,Revenue,CAHD,Bed Purchasing - North,Permanent Nursing,Field House Care Home,900.00, 07-May-2019
1348,Revenue,CAHD,Bed Purchasing - North,Permanent Nursing,Field House Care Home,3422.52, 07-May-2019
1349,Revenue,CAHD,Bed Purchasing - Southmead Hospital,Permanent Nursing,Field House Care Home,3085.71, 07-May-2019
1350,Revenue,CAHD,Bed Purchasing - North,Permanent Nursing,Field House Care Home,2216.32, 07-May-2019
1351,Revenue,CAHD,Bed Purchasing - North,Permanent Nursing,Field House Care Home,1108.16, 07-May-2019
1352,Revenue,CAHD,South Glos Users in South Glos Homes,Permanent Nursing,Field House Care Home,662.24, 07-May-2019
1353,Revenue,CAHD,Bed Purchasing - North,Permanent Nursing,Field House Care Home,2216.32, 07-May-2019
1354,Revenue,CAHD,Bed Purchasing - North,Permanent Nursing,Field House Care Home,3506.00, 07-May-2019
1355,Revenue,CAHD,Bed Purchasing - North,Permanent Nursing,Field House Care Home,3506.00, 07-May-2019
1356,Revenue,CAHD,Bed Purchasing - Central,Permanent Residential,Fieldview,3481.60, 07-May-2019
1357,Revenue,CAHD,Bed Purchasing - North,Permanent Residential,Fieldview,3756.44, 07-May-2019
1358,Revenue,CAHD,MH Purchasing - Younger,Permanent Nursing,Fieldview,5496.52, 07-May-2019
1359,Revenue,CAHD,Bed Purchasing - South,Permanent Residential,Fig House,2959.64, 07-May-2019
1360,Revenue,CAHD,Statemented Support Payments to OLAs,Other L.A.'s - General,Filton Avenue Primary School,1132.00, 29-May-2019
1361,Revenue,CAHD,Statemented Support Payments to OLAs,Other L.A.'s - General,Filton Avenue Primary School,1332.46, 29-May-2019
1362,Revenue,CAHD,CSC - Agency Fostering,Foster Parent Allowances,Five Rivers Child Care Limited,3336.60, 01-May-2019
1363,Revenue,CAHD,CSC - Agency Fostering,Foster Parent Allowances,Five Rivers Child Care Limited,3336.60, 01-May-2019
1364,Revenue,CAHD,CSC - Agency Fostering,Foster Parent Allowances,Five Rivers Child Care Limited,3938.57, 01-May-2019
1365,Revenue,CAHD,CSC - Agency Fostering,Foster Parent Allowances,Five Rivers Child Care Limited,4152.86, 01-May-2019
1366,Revenue,CAHD,CSC - Agency Fostering,Foster Parent Allowances,Five Rivers Child Care Limited,3404.70, 01-May-2019
1367,Revenue,CAHD,CSC - Agency Fostering,Foster Parent Allowances,Five Rivers Child Care Limited,3510.00, 01-May-2019
1368,Revenue,CAHD,CSC - Agency Fostering,Foster Parent Allowances,Five Rivers Child Care Limited,3552.86, 30-May-2019
1369,Revenue,CAHD,CSC - Agency Fostering,Foster Parent Allowances,Five Rivers Child Care Limited,2363.14, 01-May-2019
1370,Revenue,CAHD,CSC - Agency Fostering,Foster Parent Allowances,Five Rivers Child Care Limited,3938.57, 01-May-2019
1371,Revenue,CAHD,CSC - Agency Fostering,Foster Parent Allowances,Foster Care Associates Limited,4131.68, 24-May-2019
1372,Revenue,CAHD,CSC - Asylum Seekers - Unaccompanied,Foster Parent Allowances,Foster Care Associates Limited,2406.22, 24-May-2019
1373,Revenue,CAHD,CSC - Asylum Seekers - Unaccompanied,Foster Parent Allowances,Foster Care Associates Limited,3295.50, 15-May-2019
1374,Revenue,CAHD,CSC - Fostering Carer Support,Membership Fees,Fostering Network,4048.00, 03-May-2019
1375,Revenue,CAHD,Homecare - Central,Other Small Contracts,Fourways Care Limited,318.00, 03-May-2019
1376,Revenue,CAHD,Home Care - Elderly - South,Other Small Contracts,Fourways Care Limited,1220.08, 03-May-2019
1377,Revenue,CAHD,Home Care - Elderly - North,Other Small Contracts,Fourways Care Limited,10228.48, 03-May-2019
1378,Revenue,CAHD,Homecare - Central,Other Small Contracts,Fourways Care Limited,318.00, 17-May-2019
1379,Revenue,CAHD,Home Care - Elderly - South,Other Small Contracts,Fourways Care Limited,1278.64, 17-May-2019
1380,Revenue,CAHD,Home Care - Elderly - North,Other Small Contracts,Fourways Care Limited,10765.28, 17-May-2019
1381,Revenue,CAHD,Homecare - Central,Other Small Contracts,Fourways Care Limited,318.00, 17-May-2019
1382,Revenue,CAHD,Home Care - Elderly - South,Other Small Contracts,Fourways Care Limited,1325.20, 17-May-2019
1383,Revenue,CAHD,Home Care - Elderly - North,Other Small Contracts,Fourways Care Limited,10301.68, 17-May-2019
1384,Revenue,CAHD,Homecare - Central,Other Small Contracts,Fourways Care Limited,324.00, 22-May-2019
1385,Revenue,CAHD,Home Care - Elderly - South,Other Small Contracts,Fourways Care Limited,1453.20, 22-May-2019
1386,Revenue,CAHD,Home Care - Elderly - North,Other Small Contracts,Fourways Care Limited,11692.48, 22-May-2019
1387,Revenue,CAHD,Pathway 1 - Re-Ablement Home Care,Other Small Contracts,Fourways Care Limited,5229.74, 23-May-2019
1388,Revenue,CAHD,Winter Incentive Payments,Other Small Contracts,Fourways Care Limited,1900.00, 03-May-2019
1389,Revenue,CAHD,Supporting People Programme,Grants to Voluntary Bodies,Freeways Trust Limited,6250.18, 01-May-2019
1390,Revenue,CAHD,Supporting People Programme,Grants to Voluntary Bodies,Freeways Trust Limited,6250.18, 31-May-2019
1391,Revenue,CAHD,Freeways,Permanent Residential,Freeways Trust Limited,2945.33, 13-May-2019
1392,Revenue,CAHD,Freeways,Permanent Residential,Freeways Trust Limited,823.53, 13-May-2019
1393,Revenue,CAHD,Freeways,Permanent Residential,Freeways Trust Limited,1894.20, 13-May-2019
1394,Revenue,CAHD,Freeways,Permanent Residential,Freeways Trust Limited,529.99, 13-May-2019
1395,Revenue,CAHD,Freeways,Permanent Residential,Freeways Trust Limited,1894.20, 13-May-2019
1396,Revenue,CAHD,Freeways,Permanent Residential,Freeways Trust Limited,529.99, 13-May-2019
1397,Revenue,CAHD,Freeways,Permanent Residential,Freeways Trust Limited,2756.10, 13-May-2019
1398,Revenue,CAHD,Freeways,Permanent Residential,Freeways Trust Limited,770.69, 13-May-2019
1399,Revenue,CAHD,Freeways,Permanent Residential,Freeways Trust Limited,1894.20, 13-May-2019
1400,Revenue,CAHD,Freeways,Permanent Residential,Freeways Trust Limited,529.99, 13-May-2019
1401,Revenue,CAHD,Freeways,Permanent Residential,Freeways Trust Limited,2791.99, 13-May-2019
1402,Revenue,CAHD,Freeways,Permanent Residential,Freeways Trust Limited,778.87, 13-May-2019
1403,Revenue,CAHD,Freeways,Permanent Residential,Freeways Trust Limited,2101.53, 13-May-2019
1404,Revenue,CAHD,Freeways,Permanent Residential,Freeways Trust Limited,586.10, 13-May-2019
1405,Revenue,CAHD,Freeways,Permanent Residential,Freeways Trust Limited,2922.61, 13-May-2019
1406,Revenue,CAHD,Freeways,Permanent Residential,Freeways Trust Limited,817.19, 13-May-2019
1407,Revenue,CAHD,Freeways,Permanent Residential,Freeways Trust Limited,1781.53, 13-May-2019
1408,Revenue,CAHD,Freeways,Permanent Residential,Freeways Trust Limited,2237.02, 13-May-2019
1409,Revenue,CAHD,Freeways,Permanent Residential,Freeways Trust Limited,625.73, 13-May-2019
1410,Revenue,CAHD,Freeways,Permanent Residential,Freeways Trust Limited,2215.56, 13-May-2019
1411,Revenue,CAHD,Freeways,Permanent Residential,Freeways Trust Limited,618.75, 13-May-2019
1412,Revenue,CAHD,Freeways,Permanent Residential,Freeways Trust Limited,2501.18, 13-May-2019
1413,Revenue,CAHD,Freeways,Permanent Residential,Freeways Trust Limited,699.51, 13-May-2019
1414,Revenue,CAHD,Freeways,Permanent Residential,Freeways Trust Limited,1894.20, 13-May-2019
1415,Revenue,CAHD,Freeways,Permanent Residential,Freeways Trust Limited,529.99, 13-May-2019
1416,Revenue,CAHD,Freeways,Respite Planned - Residential,Freeways Trust Limited,824.53, 13-May-2019
1417,Revenue,CAHD,Freeways,Respite Planned - Residential,Freeways Trust Limited,562.88, 13-May-2019
1418,Revenue,CAHD,Freeways,Respite Planned - Residential,Freeways Trust Limited,824.53, 13-May-2019
1419,Revenue,CAHD,Freeways,Respite Planned - Residential,Freeways Trust Limited,1190.99, 13-May-2019
1420,Revenue,CAHD,Freeways,Respite Planned - Residential,Freeways Trust Limited,562.88, 13-May-2019
1421,Revenue,CAHD,Freeways,Respite Planned - Residential,Freeways Trust Limited,2107.13, 13-May-2019
1422,Revenue,CAHD,Homecare - Central,Other Small Contracts,Freeways Trust Limited,676.80, 30-May-2019
1423,Revenue,CAHD,Home Care - Elderly - South,Day Care / Social Activities,Freeways Trust Limited,780.20, 29-May-2019
1424,Revenue,CAHD,Home Care - Elderly - South,Day Care / Social Activities,Freeways Trust Limited,1015.20, 29-May-2019
1425,Revenue,CAHD,Homecare - Central,Other Small Contracts,Freeways Trust Limited,676.80, 14-May-2019
1426,Revenue,CAHD,Home Care - Elderly - South,Day Care / Social Activities,Freeways Trust Limited,1036.48, 29-May-2019
1427,Revenue,CAHD,Home Care - Elderly - North,Supported Living,Freeways Trust Ltd,845.52, 07-May-2019
1428,Revenue,CAHD,Bed purchasing - S28A Under 65 - South,Permanent Residential,Freeways Trust Ltd,3886.64, 07-May-2019
1429,Revenue,CAHD,Bed Purchasing - North,Permanent Residential,Freeways Trust Ltd,3763.40, 07-May-2019
1430,Revenue,CAHD,Bed Purchasing - South,Permanent Residential,Freeways Trust Ltd,3991.40, 07-May-2019
1431,Revenue,CAHD,Bed Purchasing - North,Permanent Residential,Freeways Trust Ltd,3013.84, 07-May-2019
1432,Revenue,CAHD,Bed Purchasing - South,Permanent Residential,Freeways Trust Ltd,3175.92, 07-May-2019
1433,Revenue,CAHD,Bed Purchasing - North,Permanent Residential,Freeways Trust Ltd,3328.60, 07-May-2019
1434,Revenue,CAHD,Bed Purchasing - North,Permanent Residential,Freeways Trust Ltd,3984.12, 07-May-2019
1435,Revenue,CAHD,18-25 Year Olds,Permanent Residential,Freeways Trust Ltd,3680.48, 07-May-2019
1436,Revenue,CAHD,Section 117 Placements MH Younger,Permanent Residential,Freeways Trust Ltd,3339.04, 07-May-2019
1437,Revenue,CAHD,Homecare - Central,Day Care / Social Activities,Frenchay Beckspool Building,1895.60, 07-May-2019
1438,Revenue,CAHD,Home Care - Elderly - South,Day Care / Social Activities,Frenchay Beckspool Building,902.68, 07-May-2019
1439,Revenue,CAHD,Home Care - Elderly - South,Day Care / Social Activities,Frenchay Beckspool Building,640.08, 07-May-2019
1440,Revenue,CAHD,Pathway 3 - (Complex Beds),Permanent Nursing,Frenchay House,3304.00, 17-May-2019
1441,Revenue,CAHD,Bed Purchasing - North,Permanent Nursing,Frenchay Park Nursing Home,3481.60, 07-May-2019
1442,Revenue,CAHD,Bed Purchasing - North,Permanent Nursing,Frenchay Park Nursing Home,1740.80, 07-May-2019
1443,Revenue,CAHD,Bed Purchasing - Southmead Hospital,Permanent Nursing,Frenchay Park Nursing Home,3268.57, 07-May-2019
1444,Revenue,CAHD,Bed Purchasing - Central,Permanent Nursing,Frenchay Park Nursing Home,3481.60, 07-May-2019
1445,Revenue,CAHD,Bed Purchasing - Central,Permanent Nursing,Frenchay Park Nursing Home,1740.80, 07-May-2019
1446,Revenue,CAHD,Bed Purchasing - Central,Permanent Nursing,Frenchay Park Nursing Home,1700.00, 07-May-2019
1447,Revenue,CAHD,Bed Purchasing - North,Permanent Nursing,Frenchay Park Nursing Home,3481.60, 07-May-2019
1448,Revenue,CAHD,Bed Purchasing - Southmead Hospital,Permanent Nursing,Frenchay Park Nursing Home,3400.00, 07-May-2019
1449,Revenue,CAHD,Bed Purchasing - Southmead Hospital,Permanent Nursing,Frenchay Park Nursing Home,607.14, 07-May-2019
1450,Revenue,CAHD,Bed Purchasing - North,Permanent Nursing,Frenchay Park Nursing Home,3339.04, 07-May-2019
1451,Revenue,CAHD,NHS Health Checks,Other Small Contracts,Frome Valley Medical Centre,2735.04, 29-May-2019
1452,Revenue,CAHD,Sexual Health,Other Small Contracts,Frome Valley Medical Centre,2817.50, 13-May-2019
1453,Revenue,CAHD,Sexual Health,Other Small Contracts,Frome Valley Medical Centre,1383.36, 13-May-2019
1454,Revenue,CAHD,Tobacco Control,Other Small Contracts,Frome Valley Medical Centre,510.00, 01-May-2019
1455,Revenue,CAHD,CSC - Social Work Team - CENTRAL,Agency Staff (Admin/Support Staff) Pay,Frontline Staffing Ltd,1403.70, 01-May-2019
1456,Revenue,CAHD,CSC - Through & Leaving Care Team,Agency Staff (Admin/Support Staff) Pay,Frontline Staffing Ltd,1497.28, 01-May-2019
1457,Revenue,CAHD,CSC - Social Work Team - CENTRAL,Agency Staff (Admin/Support Staff) Pay,Frontline Staffing Ltd,818.83, 01-May-2019
1458,Revenue,CAHD,CSC - Social Work Team - SOUTH,Agency Staff (Admin/Support Staff) Pay,Frontline Staffing Ltd,1544.07, 08-May-2019
1459,Revenue,CAHD,CSC - Social Work Team - NORTH,Agency Staff (Admin/Support Staff) Pay,Frontline Staffing Ltd,1403.70, 08-May-2019
1460,Revenue,CAHD,CSC - Social Work Team - NORTH,Agency Staff (Admin/Support Staff) Pay,Frontline Staffing Ltd,1731.23, 08-May-2019
1461,Revenue,CAHD,CSC - Social Work Team - SOUTH,Agency Staff (Admin/Support Staff) Pay,Frontline Staffing Ltd,1497.28, 08-May-2019
1462,Revenue,CAHD,CSC - Social Work Team - CENTRAL,Agency Staff (Admin/Support Staff) Pay,Frontline Staffing Ltd,1403.70, 08-May-2019
1463,Revenue,CAHD,CSC - Through & Leaving Care Team,Agency Staff (Admin/Support Staff) Pay,Frontline Staffing Ltd,1778.02, 08-May-2019
1464,Revenue,CAHD,CSC - Social Work Team - CENTRAL,Agency Staff (Admin/Support Staff) Pay,Frontline Staffing Ltd,1427.10, 08-May-2019
1465,Revenue,CAHD,CSC - Social Work Team - SOUTH,Agency Staff (Admin/Support Staff) Pay,Frontline Staffing Ltd,1029.38, 14-May-2019
1466,Revenue,CAHD,CSC - Social Work Team - CENTRAL,Agency Staff (Admin/Support Staff) Pay,Frontline Staffing Ltd,1754.63, 14-May-2019
1467,Revenue,CAHD,CSC - Through & Leaving Care Team,Agency Staff (Admin/Support Staff) Pay,Frontline Staffing Ltd,1731.23, 14-May-2019
1468,Revenue,CAHD,CSC - Social Work Team - CENTRAL,Agency Staff (Admin/Support Staff) Pay,Frontline Staffing Ltd,1731.23, 14-May-2019
1469,Revenue,CAHD,CSC - Social Work Team - NORTH,Agency Staff (Admin/Support Staff) Pay,Frontline Staffing Ltd,1871.60, 15-May-2019
1470,Revenue,CAHD,CSC - Social Work Team - NORTH,Agency Staff (Admin/Support Staff) Pay,Frontline Staffing Ltd,1731.23, 16-May-2019
1471,Revenue,CAHD,CSC - Social Work Team - NORTH,Agency Staff (Admin/Support Staff) Pay,Frontline Staffing Ltd,1731.23, 20-May-2019
1472,Revenue,CAHD,CSC - Through & Leaving Care Team,Agency Staff (Admin/Support Staff) Pay,Frontline Staffing Ltd,1731.23, 20-May-2019
1473,Revenue,CAHD,CSC - Social Work Team - CENTRAL,Agency Staff (Admin/Support Staff) Pay,Frontline Staffing Ltd,1380.31, 20-May-2019
1474,Revenue,CAHD,CSC - Social Work Team - CENTRAL,Agency Staff (Admin/Support Staff) Pay,Frontline Staffing Ltd,1427.10, 21-May-2019
1475,Revenue,CAHD,CSC - Social Work Team - NORTH,Agency Staff (Admin/Support Staff) Pay,Frontline Staffing Ltd,1871.60, 22-May-2019
1476,Revenue,CAHD,CSC - Social Work Team - SOUTH,Agency Staff (Admin/Support Staff) Pay,Frontline Staffing Ltd,1555.77, 24-May-2019
1477,Revenue,CAHD,CSC - Social Work Team - SOUTH,Agency Staff (Admin/Support Staff) Pay,Frontline Staffing Ltd,1871.60, 24-May-2019
1478,Revenue,CAHD,CSC - Social Work Team - SOUTH,Agency Staff (Admin/Support Staff) Pay,Frontline Staffing Ltd,772.04, 24-May-2019
1479,Revenue,CAHD,CSC - Social Work Team - SOUTH,Agency Staff (Admin/Support Staff) Pay,Frontline Staffing Ltd,1871.60, 24-May-2019
1480,Revenue,CAHD,CSC - Social Work Team - SOUTH,Agency Staff (Admin/Support Staff) Pay,Frontline Staffing Ltd,1789.72, 24-May-2019
1481,Revenue,CAHD,CSC - Social Work Team - SOUTH,Agency Staff (Admin/Support Staff) Pay,Frontline Staffing Ltd,1871.60, 24-May-2019
1482,Revenue,CAHD,CSC - Social Work Team - CENTRAL,Agency Staff (Admin/Support Staff) Pay,Frontline Staffing Ltd,1520.68, 30-May-2019
1483,Revenue,CAHD,CSC - Social Work Team - CENTRAL,Agency Staff (Admin/Support Staff) Pay,Frontline Staffing Ltd,1731.23, 29-May-2019
1484,Revenue,CAHD,CSC - Through & Leaving Care Team,Agency Staff (Admin/Support Staff) Pay,Frontline Staffing Ltd,2105.55, 30-May-2019
1485,Revenue,CAHD,Bed Purchasing - South,Permanent Nursing,Fshc  1St Floor,2735.08, 07-May-2019
1486,Revenue,CAHD,South Glos Users in South Glos Homes,Permanent Nursing,Fshc  1St Floor,662.24, 07-May-2019
1487,Revenue,CAHD,Bed Purchasing - South,Permanent Nursing,Fshc  1St Floor,2398.00, 07-May-2019
1488,Revenue,CAHD,Bed Purchasing - South,Permanent Nursing,Fshc  1St Floor,2398.00, 07-May-2019
1489,Revenue,CAHD,South Glos Users in South Glos Homes,Permanent Nursing,Fshc  1St Floor,662.24, 07-May-2019
1490,Revenue,CAHD,Bed Purchasing - South,Permanent Nursing,Fshc  1St Floor,2398.00, 07-May-2019
1491,Revenue,CAHD,South Glos Users in South Glos Homes,Permanent Nursing,Fshc  1St Floor,662.24, 07-May-2019
1492,Revenue,CAHD,Bed Purchasing - South,Permanent Nursing,Fshc  1St Floor,1199.00, 07-May-2019
1493,Revenue,CAHD,Bed Purchasing - South,Permanent Residential,Fshc  1St Floor,2462.56, 07-May-2019
1494,Revenue,CAHD,Bed Purchasing - South,Permanent Nursing,Fshc  1St Floor,2621.44, 07-May-2019
1495,Revenue,CAHD,South Glos Users in South Glos Homes,Permanent Nursing,Fshc  1St Floor,662.24, 07-May-2019
1496,Revenue,CAHD,South Glos Users in South Glos Homes,Permanent Nursing,Fshc  1St Floor,662.24, 07-May-2019
1497,Revenue,CAHD,Bed Purchasing - North,Permanent Nursing,Fshc  1St Floor,2891.76, 07-May-2019
1498,Revenue,CAHD,South Glos Users in South Glos Homes,Permanent Nursing,Fshc  1St Floor,662.24, 07-May-2019
1499,Revenue,CAHD,South Glos Users in South Glos Homes,Permanent Nursing,Fshc  1St Floor,662.24, 07-May-2019
1500,Revenue,CAHD,Bed Purchasing - South,Permanent Nursing,Fshc  1St Floor,2662.40, 07-May-2019
1501,Revenue,CAHD,South Glos Users in South Glos Homes,Permanent Nursing,Fshc  1St Floor,662.24, 07-May-2019
1502,Revenue,CAHD,South Glos Users in South Glos Homes,Permanent Nursing,Fshc  1St Floor,662.24, 07-May-2019
1503,Revenue,CAHD,South Glos Users in South Glos Homes,Permanent Nursing,Fshc  1St Floor,1084.53, 07-May-2019
1504,Revenue,CAHD,South Glos Users in South Glos Homes,Permanent Nursing,Fshc  1St Floor,662.24, 07-May-2019
1505,Revenue,CAHD,South Glos Users in South Glos Homes,Permanent Nursing,Fshc  1St Floor,662.24, 07-May-2019
1506,Revenue,CAHD,Bed Purchasing - South,Permanent Nursing,Fshc  1St Floor,2891.76, 07-May-2019
1507,Revenue,CAHD,Bed Purchasing - South,Permanent Nursing,Fshc  1St Floor,2621.44, 07-May-2019
1508,Revenue,CAHD,South Glos Users in South Glos Homes,Permanent Nursing,Fshc  1St Floor,662.24, 07-May-2019
1509,Revenue,CAHD,South Glos Users in South Glos Homes,Permanent Nursing,Fshc  1St Floor,662.24, 07-May-2019
1510,Revenue,CAHD,Bed Purchasing - South,Permanent Residential,Fshc  1St Floor,3203.04, 07-May-2019
1511,Revenue,CAHD,South Glos Users in South Glos Homes,Permanent Nursing,Fshc  1St Floor,662.24, 07-May-2019
1512,Revenue,CAHD,South Glos Users in South Glos Homes,Permanent Nursing,Fshc  1St Floor,662.24, 07-May-2019
1513,Revenue,CAHD,South Glos Users in South Glos Homes,Permanent Nursing,Fshc  1St Floor,662.24, 07-May-2019
1514,Revenue,CAHD,Bed Purchasing - South,Permanent Nursing,Fshc  1St Floor,2867.20, 07-May-2019
1515,Revenue,CAHD,Bed Purchasing - North,Respite Planned - Nursing,Fshc  1St Floor,2985.71, 07-May-2019
1516,Revenue,CAHD,Bed Purchasing - South,Permanent Nursing,Fshc  1St Floor,2398.00, 07-May-2019
1517,Revenue,CAHD,South Glos Users in South Glos Homes,Permanent Nursing,Fshc  1St Floor,662.24, 07-May-2019
1518,Revenue,CAHD,Bed Purchasing - South,Permanent Nursing,Fshc  1St Floor,2462.56, 07-May-2019
1519,Revenue,CAHD,South Glos Users in South Glos Homes,Permanent Nursing,Fshc  1St Floor,662.24, 07-May-2019
1520,Revenue,CAHD,Bed Purchasing - South,Permanent Nursing,Fshc  1St Floor,2398.00, 07-May-2019
1521,Revenue,CAHD,South Glos Users in South Glos Homes,Permanent Nursing,Fshc  1St Floor,662.24, 07-May-2019
1522,Revenue,CAHD,Bed Purchasing - South,Permanent Nursing,Fshc  1St Floor,2398.00, 07-May-2019
1523,Revenue,CAHD,South Glos Users in South Glos Homes,Permanent Nursing,Fshc  1St Floor,662.24, 07-May-2019
1524,Revenue,CAHD,Bed Purchasing - South,Permanent Nursing,Fshc  1St Floor,2398.00, 07-May-2019
1525,Revenue,CAHD,South Glos Users in South Glos Homes,Permanent Nursing,Fshc  1St Floor,662.24, 07-May-2019
1526,Revenue,CAHD,Bed Purchasing - South,Permanent Nursing,Fshc  1St Floor,3145.72, 07-May-2019
1527,Revenue,CAHD,South Glos Users in South Glos Homes,Permanent Nursing,Fshc  1St Floor,662.24, 07-May-2019
1528,Revenue,CAHD,Bed Purchasing - South,Permanent Nursing,Fshc  1St Floor,2398.00, 07-May-2019
1529,Revenue,CAHD,South Glos Users in South Glos Homes,Permanent Nursing,Fshc  1St Floor,662.24, 07-May-2019
1530,Revenue,CAHD,South Glos Users in South Glos Homes,Permanent Nursing,Fshc  1St Floor,662.24, 07-May-2019
1531,Revenue,CAHD,Bed Purchasing - South,Permanent Nursing,Fshc  1St Floor,3172.12, 07-May-2019
1532,Revenue,CAHD,South Glos Users in South Glos Homes,Permanent Nursing,Fshc  1St Floor,662.24, 07-May-2019
1533,Revenue,CAHD,Bed Purchasing - Central,Respite Emergency - Residential,Fshc  1St Floor,1667.66, 07-May-2019
1534,Revenue,CAHD,Bed Purchasing - South,Permanent Nursing,Fshc  1St Floor,2462.56, 07-May-2019
1535,Revenue,CAHD,South Glos Users in South Glos Homes,Permanent Nursing,Fshc  1St Floor,662.24, 07-May-2019
1536,Revenue,CAHD,Bed Purchasing - South,Permanent Nursing,Fshc  1St Floor,2933.00, 07-May-2019
1537,Revenue,CAHD,Bed Purchasing - North,Permanent Residential,Fshc  1St Floor,2891.76, 07-May-2019
1538,Revenue,CAHD,South Glos Users in South Glos Homes,Permanent Nursing,Fshc  1St Floor,662.24, 07-May-2019
1539,Revenue,CAHD,Bed Purchasing - Central,Permanent Nursing,Fshc  1St Floor,2398.00, 07-May-2019
1540,Revenue,CAHD,South Glos Users in South Glos Homes,Permanent Nursing,Fshc  1St Floor,662.24, 07-May-2019
1541,Revenue,CAHD,Bed Purchasing - Central,Permanent Nursing,Fshc  1St Floor,2398.00, 07-May-2019
1542,Revenue,CAHD,South Glos Users in South Glos Homes,Permanent Nursing,Fshc  1St Floor,662.24, 07-May-2019
1543,Revenue,CAHD,Bed Purchasing - Central,Permanent Nursing,Fshc  1St Floor,2398.00, 07-May-2019
1544,Revenue,CAHD,South Glos Users in South Glos Homes,Permanent Nursing,Fshc  1St Floor,662.24, 07-May-2019
1545,Revenue,CAHD,South Glos Users in South Glos Homes,Permanent Nursing,Fshc  1St Floor,662.24, 07-May-2019
1546,Revenue,CAHD,Bed Purchasing - Central,Permanent Residential,Fshc  1St Floor,2764.80, 07-May-2019
1547,Revenue,CAHD,Bed Purchasing - Central,Permanent Residential,Fshc  1St Floor,2764.80, 07-May-2019
1548,Revenue,CAHD,Bed Purchasing - Central,Permanent Residential,Fshc  1St Floor,2230.32, 07-May-2019
1549,Revenue,CAHD,South Glos Users in South Glos Homes,Permanent Nursing,Fshc  1St Floor,662.24, 07-May-2019
1550,Revenue,CAHD,South Glos Users in South Glos Homes,Permanent Nursing,Fshc  1St Floor,662.24, 07-May-2019
1551,Revenue,CAHD,Bed Purchasing - Central,Permanent Nursing,Fshc  1St Floor,2439.16, 07-May-2019
1552,Revenue,CAHD,Bed Purchasing - South,Permanent Residential,Fshc  1St Floor,2817.36, 07-May-2019
1553,Revenue,CAHD,Bed Purchasing - North,Permanent Nursing,Fshc  1St Floor,2398.00, 07-May-2019
1554,Revenue,CAHD,South Glos Users in South Glos Homes,Permanent Nursing,Fshc  1St Floor,662.24, 07-May-2019
1555,Revenue,CAHD,Bed Purchasing - Central,Permanent Nursing,Fshc  1St Floor,2398.00, 07-May-2019
1556,Revenue,CAHD,South Glos Users in South Glos Homes,Permanent Nursing,Fshc  1St Floor,662.24, 07-May-2019
1557,Revenue,CAHD,Bed Purchasing - Central,Permanent Nursing,Fshc  1St Floor,2398.00, 07-May-2019
1558,Revenue,CAHD,South Glos Users in South Glos Homes,Permanent Nursing,Fshc  1St Floor,662.24, 07-May-2019
1559,Revenue,CAHD,Bed Purchasing - North,Permanent Nursing,Fshc  1St Floor,2398.00, 07-May-2019
1560,Revenue,CAHD,South Glos Users in South Glos Homes,Permanent Nursing,Fshc  1St Floor,662.24, 07-May-2019
1561,Revenue,CAHD,South Glos Users in South Glos Homes,Permanent Nursing,Fshc  1St Floor,662.24, 07-May-2019
1562,Revenue,CAHD,Bed Purchasing - Central,Permanent Residential,Fshc  1St Floor,2764.80, 07-May-2019
1563,Revenue,CAHD,Bed Purchasing - North,Permanent Nursing,Fshc  1St Floor,2398.00, 07-May-2019
1564,Revenue,CAHD,South Glos Users in South Glos Homes,Permanent Nursing,Fshc  1St Floor,662.24, 07-May-2019
1565,Revenue,CAHD,Bed Purchasing - North,Permanent Nursing,Fshc  1St Floor,2398.00, 07-May-2019
1566,Revenue,CAHD,South Glos Users in South Glos Homes,Permanent Nursing,Fshc  1St Floor,662.24, 07-May-2019
1567,Revenue,CAHD,South Glos Users in South Glos Homes,Permanent Nursing,Fshc  1St Floor,662.24, 07-May-2019
1568,Revenue,CAHD,South Glos Users in South Glos Homes,Permanent Nursing,Fshc  1St Floor,662.24, 07-May-2019
1569,Revenue,CAHD,Bed Purchasing - North,Permanent Nursing,Fshc  1St Floor,2439.16, 07-May-2019
1570,Revenue,CAHD,South Glos Users in South Glos Homes,Permanent Nursing,Fshc  1St Floor,662.24, 07-May-2019
1571,Revenue,CAHD,South Glos Users in South Glos Homes,Permanent Nursing,Fshc  1St Floor,662.24, 07-May-2019
1572,Revenue,CAHD,Bed Purchasing - Central,Permanent Nursing,Fshc  1St Floor,1944.03, 07-May-2019
1573,Revenue,CAHD,Bed Purchasing - North,Permanent Residential,Fshc  1St Floor,2439.16, 07-May-2019
1574,Revenue,CAHD,South Glos Users in South Glos Homes,Permanent Nursing,Fshc  1St Floor,662.24, 07-May-2019
1575,Revenue,CAHD,South Glos Users in South Glos Homes,Permanent Nursing,Fshc  1St Floor,1559.01, 07-May-2019
1576,Revenue,CAHD,South Glos Users in South Glos Homes,Permanent Nursing,Fshc  1St Floor,662.24, 07-May-2019
1577,Revenue,CAHD,South Glos Users in South Glos Homes,Permanent Nursing,Fshc  1St Floor,662.24, 07-May-2019
1578,Revenue,CAHD,Bed Purchasing - Central,Permanent Nursing,Fshc  1St Floor,2382.00, 07-May-2019
1579,Revenue,CAHD,Bed Purchasing - Central,Permanent Nursing,Fshc  1St Floor,595.50, 07-May-2019
1580,Revenue,CAHD,South Glos Users in South Glos Homes,Permanent Nursing,Fshc  1St Floor,662.24, 07-May-2019
1581,Revenue,CAHD,Bed Purchasing - Central,Permanent Nursing,Fshc  1St Floor,2398.00, 07-May-2019
1582,Revenue,CAHD,South Glos Users in South Glos Homes,Permanent Nursing,Fshc  1St Floor,662.24, 07-May-2019
1583,Revenue,CAHD,South Glos Users in South Glos Homes,Permanent Nursing,Fshc  1St Floor,8084.75, 07-May-2019
1584,Revenue,CAHD,South Glos Users in South Glos Homes,Permanent Nursing,Fshc  1St Floor,7004.23, 07-May-2019
1585,Revenue,CAHD,South Glos Users in South Glos Homes,Permanent Nursing,Fshc  1St Floor,1473.21, 07-May-2019
1586,Revenue,CAHD,Bed Purchasing - Central,Permanent Nursing,Fshc  1St Floor,5955.00, 07-May-2019
1587,Revenue,CAHD,Bed Purchasing - Central,Permanent Nursing,Fshc  1St Floor,2439.16, 07-May-2019
1588,Revenue,CAHD,Bed Purchasing - Central,Permanent Nursing,Fshc  1St Floor,1219.58, 07-May-2019
1589,Revenue,CAHD,South Glos Users in South Glos Homes,Permanent Nursing,Fshc  1St Floor,662.24, 07-May-2019
1590,Revenue,CAHD,Bed Purchasing - North,Permanent Nursing,Fshc  1St Floor,2398.00, 07-May-2019
1591,Revenue,CAHD,South Glos Users in South Glos Homes,Permanent Nursing,Fshc  1St Floor,662.24, 07-May-2019
1592,Revenue,CAHD,South Glos Users in South Glos Homes,Permanent Nursing,Fshc  1St Floor,662.24, 07-May-2019
1593,Revenue,CAHD,Bed Purchasing - Elderly S117- North,Permanent Nursing,Fshc  1St Floor,2470.44, 07-May-2019
1594,Revenue,CAHD,South Glos Users in South Glos Homes,Permanent Nursing,Fshc  1St Floor,662.24, 07-May-2019
1595,Revenue,CAHD,South Glos Users in South Glos Homes,Permanent Nursing,Fshc  1St Floor,662.24, 07-May-2019
1596,Revenue,CAHD,South Glos Users in South Glos Homes,Permanent Nursing,Fshc  1St Floor,662.24, 07-May-2019
1597,Revenue,CAHD,Bed Purchasing - Central,Permanent Nursing,Fshc  1St Floor,2398.00, 07-May-2019
1598,Revenue,CAHD,South Glos Users in South Glos Homes,Permanent Nursing,Fshc  1St Floor,662.24, 07-May-2019
1599,Revenue,CAHD,Bed Purchasing - Central,Permanent Nursing,Fshc  1St Floor,2398.00, 07-May-2019
1600,Revenue,CAHD,South Glos Users in South Glos Homes,Permanent Nursing,Fshc  1St Floor,662.24, 07-May-2019
1601,Revenue,CAHD,Bed Purchasing - North,Permanent Nursing,Fshc  1St Floor,2437.12, 07-May-2019
1602,Revenue,CAHD,South Glos Users in South Glos Homes,Permanent Nursing,Fshc  1St Floor,662.24, 07-May-2019
1603,Revenue,CAHD,Bed Purchasing - Central,Permanent Nursing,Fshc  1St Floor,2366.68, 07-May-2019
1604,Revenue,CAHD,Bed Purchasing - Central,Permanent Nursing,Fshc  1St Floor,2398.00, 07-May-2019
1605,Revenue,CAHD,Bed Purchasing - Central,Permanent Nursing,Fshc  1St Floor,1199.00, 07-May-2019
1606,Revenue,CAHD,Bed Purchasing - Central,Permanent Residential,Fshc  1St Floor,2834.44, 07-May-2019
1607,Revenue,CAHD,Bed Purchasing - North,Permanent Nursing,Fshc  1St Floor,2398.00, 07-May-2019
1608,Revenue,CAHD,South Glos Users in South Glos Homes,Permanent Nursing,Fshc  1St Floor,662.24, 07-May-2019
1609,Revenue,CAHD,Bed Purchasing - Southmead Hospital,Respite Planned - Residential,Fshc  1St Floor,2834.44, 07-May-2019
1610,Revenue,CAHD,Bed Purchasing - Southmead Hospital,Respite Planned - Residential,Fshc  1St Floor,1417.22, 07-May-2019
1611,Revenue,CAHD,Bed Purchasing - North,Permanent Nursing,Fshc  1St Floor,2398.00, 07-May-2019
1612,Revenue,CAHD,South Glos Users in South Glos Homes,Permanent Nursing,Fshc  1St Floor,662.24, 07-May-2019
1613,Revenue,CAHD,South Glos Users in South Glos Homes,Permanent Nursing,Fshc  1St Floor,662.24, 07-May-2019
1614,Revenue,CAHD,Bed Purchasing - Central,Permanent Nursing,Fshc  1St Floor,2398.00, 07-May-2019
1615,Revenue,CAHD,South Glos Users in South Glos Homes,Permanent Nursing,Fshc  1St Floor,662.24, 07-May-2019
1616,Revenue,CAHD,Bed Purchasing - North,Permanent Nursing,Fshc  1St Floor,2471.44, 07-May-2019
1617,Revenue,CAHD,South Glos Users in South Glos Homes,Permanent Nursing,Fshc  1St Floor,662.24, 07-May-2019
1618,Revenue,CAHD,South Glos Users in South Glos Homes,Permanent Nursing,Fshc  1St Floor,662.24, 07-May-2019
1619,Revenue,CAHD,Bed Purchasing - North,Permanent Nursing,Fshc  1St Floor,2356.60, 07-May-2019
1620,Revenue,CAHD,South Glos Users in South Glos Homes,Permanent Nursing,Fshc  1St Floor,662.24, 07-May-2019
1621,Revenue,CAHD,Bed Purchasing - North,Permanent Nursing,Fshc  1St Floor,2471.44, 07-May-2019
1622,Revenue,CAHD,South Glos Users in South Glos Homes,Permanent Nursing,Fshc  1St Floor,662.24, 07-May-2019
1623,Revenue,CAHD,Bed Purchasing - Central,Permanent Nursing,Fshc  1St Floor,2486.12, 07-May-2019
1624,Revenue,CAHD,South Glos Users in South Glos Homes,Permanent Nursing,Fshc  1St Floor,662.24, 07-May-2019
1625,Revenue,CAHD,Bed Purchasing - North,Permanent Nursing,Fshc  1St Floor,2398.00, 07-May-2019
1626,Revenue,CAHD,South Glos Users in South Glos Homes,Permanent Nursing,Fshc  1St Floor,662.24, 07-May-2019
1627,Revenue,CAHD,Bed Purchasing - Central,Permanent Nursing,Fshc  1St Floor,3234.72, 07-May-2019
1628,Revenue,CAHD,Bed Purchasing - Central,Permanent Nursing,Fshc  1St Floor,1617.36, 07-May-2019
1629,Revenue,CAHD,South Glos Users in South Glos Homes,Permanent Nursing,Fshc  1St Floor,662.24, 07-May-2019
1630,Revenue,CAHD,Bed Purchasing - Central,Permanent Nursing,Fshc  1St Floor,3472.44, 07-May-2019
1631,Revenue,CAHD,South Glos Users in South Glos Homes,Permanent Nursing,Fshc  1St Floor,662.24, 07-May-2019
1632,Revenue,CAHD,Bed Purchasing - Central,Permanent Nursing,Fshc  1St Floor,15542.86, 07-May-2019
1633,Revenue,CAHD,Bed Purchasing - Central,Permanent Nursing,Fshc  1St Floor,746.06, 07-May-2019
1634,Revenue,CAHD,South Glos Users in South Glos Homes,Permanent Nursing,Fshc  1St Floor,662.24, 07-May-2019
1635,Revenue,CAHD,South Glos Users in South Glos Homes,Permanent Nursing,Fshc  1St Floor,662.24, 07-May-2019
1636,Revenue,CAHD,South Glos Users in South Glos Homes,Permanent Nursing,Fshc  1St Floor,662.24, 07-May-2019
1637,Revenue,CAHD,Bed Purchasing - Elderly S117- North,Respite Planned - Nursing,Fshc  1St Floor,3187.91, 07-May-2019
1638,Revenue,CAHD,Bed Purchasing - Elderly S117- North,Respite Planned - Nursing,Fshc  1St Floor,1028.36, 07-May-2019
1639,Revenue,CAHD,South Glos Users in South Glos Homes,Permanent Nursing,Fshc  1St Floor,662.24, 07-May-2019
1640,Revenue,CAHD,Bed Purchasing - Central,Permanent Nursing,Fshc  1St Floor,2731.36, 07-May-2019
1641,Revenue,CAHD,South Glos Users in South Glos Homes,Permanent Nursing,Fshc  1St Floor,662.24, 07-May-2019
1642,Revenue,CAHD,Bed Purchasing - Central,Permanent Nursing,Fshc  1St Floor,2936.16, 07-May-2019
1643,Revenue,CAHD,South Glos Users in South Glos Homes,Permanent Nursing,Fshc  1St Floor,662.24, 07-May-2019
1644,Revenue,CAHD,Bed Purchasing - Central,Permanent Nursing,Fshc  1St Floor,2997.60, 07-May-2019
1645,Revenue,CAHD,South Glos Users in South Glos Homes,Permanent Nursing,Fshc  1St Floor,662.24, 07-May-2019
1646,Revenue,CAHD,South Glos Users in South Glos Homes,Permanent Nursing,Fshc  1St Floor,662.24, 07-May-2019
1647,Revenue,CAHD,Bed Purchasing - Central,Respite Planned - Nursing,Fshc  1St Floor,2587.56, 07-May-2019
1648,Revenue,CAHD,South Glos Users in South Glos Homes,Permanent Nursing,Fshc  1St Floor,662.24, 07-May-2019
1649,Revenue,CAHD,South Glos Users in South Glos Homes,Permanent Nursing,Fshc  1St Floor,632.64, 07-May-2019
1650,Revenue,CAHD,South Glos Users in South Glos Homes,Permanent Nursing,Fshc  1St Floor,662.24, 07-May-2019
1651,Revenue,CAHD,Bed Purchasing - Central,Permanent Nursing,Fshc  1St Floor,2608.68, 07-May-2019
1652,Revenue,CAHD,South Glos Users in South Glos Homes,Permanent Nursing,Fshc  1St Floor,662.24, 07-May-2019
1653,Revenue,CAHD,South Glos Users in South Glos Homes,Permanent Nursing,Fshc  1St Floor,662.24, 07-May-2019
1654,Revenue,CAHD,South Glos Users in South Glos Homes,Permanent Nursing,Fshc  1St Floor,1965.70, 07-May-2019
1655,Revenue,CAHD,Bed Purchasing - Central,Respite Emergency - Residential,Fshc  1St Floor,1558.75, 07-May-2019
1656,Revenue,CAHD,Bed Purchasing - Central,Respite Emergency - Residential,Fshc  1St Floor,1032.79, 07-May-2019
1657,Revenue,CAHD,South Glos Users in South Glos Homes,Permanent Nursing,Fshc  1St Floor,662.24, 07-May-2019
1658,Revenue,CAHD,South Glos Users in South Glos Homes,Permanent Nursing,Fshc  1St Floor,662.24, 07-May-2019
1659,Revenue,CAHD,Bed Purchasing - Central,Respite Planned - Nursing,Fshc  1St Floor,1513.82, 07-May-2019
1660,Revenue,CAHD,South Glos Users in South Glos Homes,Permanent Nursing,Fshc  1St Floor,662.24, 07-May-2019
1661,Revenue,CAHD,Bed Purchasing - Central,Permanent Nursing,Fshc  1St Floor,2471.44, 07-May-2019
1662,Revenue,CAHD,South Glos Users in South Glos Homes,Permanent Nursing,Fshc  1St Floor,662.24, 07-May-2019
1663,Revenue,CAHD,Bed Purchasing - Central,Permanent Nursing,Fshc  1St Floor,3038.56, 07-May-2019
1664,Revenue,CAHD,South Glos Users in South Glos Homes,Permanent Nursing,Fshc  1St Floor,662.24, 07-May-2019
1665,Revenue,CAHD,South Glos Users in South Glos Homes,Permanent Nursing,Fshc  1St Floor,662.24, 07-May-2019
1666,Revenue,CAHD,Bed Purchasing - North,Permanent Nursing,Fshc  1St Floor,2834.20, 07-May-2019
1667,Revenue,CAHD,South Glos Users in South Glos Homes,Permanent Nursing,Fshc  1St Floor,662.24, 07-May-2019
1668,Revenue,CAHD,South Glos Users in South Glos Homes,Permanent Nursing,Fshc  1St Floor,662.24, 07-May-2019
1669,Revenue,CAHD,Bed Purchasing - Central,Permanent Nursing,Fshc  1St Floor,3234.72, 07-May-2019
1670,Revenue,CAHD,South Glos Users in South Glos Homes,Permanent Nursing,Fshc  1St Floor,662.24, 07-May-2019
1671,Revenue,CAHD,Bed Purchasing - North,Permanent Nursing,Fshc  1St Floor,2515.48, 07-May-2019
1672,Revenue,CAHD,South Glos Users in South Glos Homes,Permanent Nursing,Fshc  1St Floor,662.24, 07-May-2019
1673,Revenue,CAHD,Bed Purchasing - South,Permanent Nursing,Fshc  1St Floor,2616.12, 07-May-2019
1674,Revenue,CAHD,South Glos Users in South Glos Homes,Permanent Nursing,Fshc  1St Floor,662.24, 07-May-2019
1675,Revenue,CAHD,Bed Purchasing - Central,Permanent Nursing,Fshc  1St Floor,2471.44, 07-May-2019
1676,Revenue,CAHD,South Glos Users in South Glos Homes,Permanent Nursing,Fshc  1St Floor,662.24, 07-May-2019
1677,Revenue,CAHD,Bed Purchasing - South,Permanent Nursing,Fshc  1St Floor,2536.84, 07-May-2019
1678,Revenue,CAHD,South Glos Users in South Glos Homes,Permanent Nursing,Fshc  1St Floor,662.24, 07-May-2019
1679,Revenue,CAHD,Bed Purchasing - South,Permanent Nursing,Fshc  1St Floor,3243.36, 07-May-2019
1680,Revenue,CAHD,South Glos Users in South Glos Homes,Permanent Nursing,Fshc  1St Floor,662.24, 07-May-2019
1681,Revenue,CAHD,Bed Purchasing - South,Permanent Nursing,Fshc  1St Floor,2608.68, 07-May-2019
1682,Revenue,CAHD,South Glos Users in South Glos Homes,Permanent Nursing,Fshc  1St Floor,662.24, 07-May-2019
1683,Revenue,CAHD,Bed Purchasing - South,Permanent Nursing,Fshc  1St Floor,2398.00, 07-May-2019
1684,Revenue,CAHD,South Glos Users in South Glos Homes,Permanent Nursing,Fshc  1St Floor,662.24, 07-May-2019
1685,Revenue,CAHD,South Glos Users in South Glos Homes,Permanent Nursing,Fshc  1St Floor,662.24, 07-May-2019
1686,Revenue,CAHD,Bed Purchasing - South,Permanent Nursing,Fshc  1St Floor,2504.28, 07-May-2019
1687,Revenue,CAHD,South Glos Users in South Glos Homes,Permanent Nursing,Fshc  1St Floor,662.24, 07-May-2019
1688,Revenue,CAHD,South Glos Users in South Glos Homes,Permanent Nursing,Fshc  1St Floor,1717.17, 07-May-2019
1689,Revenue,CAHD,South Glos Users in South Glos Homes,Permanent Nursing,Fshc  1St Floor,662.24, 07-May-2019
1690,Revenue,CAHD,South Glos Users in South Glos Homes,Permanent Nursing,Fshc  1St Floor,662.24, 07-May-2019
1691,Revenue,CAHD,Bed Purchasing - South,Permanent Residential,Fshc  1St Floor,2662.40, 07-May-2019
1692,Revenue,CAHD,South Glos Users in South Glos Homes,Permanent Nursing,Fshc  1St Floor,662.24, 07-May-2019
1693,Revenue,CAHD,South Glos Users in South Glos Homes,Permanent Nursing,Fshc  1St Floor,662.24, 07-May-2019
1694,Revenue,CAHD,Bed Purchasing - South,Permanent Residential,Fshc  1St Floor,2399.96, 07-May-2019
1695,Revenue,CAHD,South Glos Users in South Glos Homes,Permanent Nursing,Fshc  1St Floor,662.24, 07-May-2019
1696,Revenue,CAHD,Bed Purchasing - South,Permanent Residential,Fshc  1St Floor,2457.60, 07-May-2019
1697,Revenue,CAHD,South Glos Users in South Glos Homes,Permanent Nursing,Fshc  1St Floor,662.24, 07-May-2019
1698,Revenue,CAHD,Bed Purchasing - South,Permanent Residential,Fshc  1St Floor,2263.56, 07-May-2019
1699,Revenue,CAHD,Bed Purchasing - South,Permanent Nursing,Fshc  1St Floor,2471.44, 07-May-2019
1700,Revenue,CAHD,South Glos Users in South Glos Homes,Permanent Nursing,Fshc  1St Floor,662.24, 07-May-2019
1701,Revenue,CAHD,Bed Purchasing - South,Permanent Nursing,Fshc  1St Floor,2398.00, 07-May-2019
1702,Revenue,CAHD,South Glos Users in South Glos Homes,Permanent Nursing,Fshc  1St Floor,662.24, 07-May-2019
1703,Revenue,CAHD,Bed Purchasing - South,Permanent Nursing,Fshc  1St Floor,2748.24, 07-May-2019
1704,Revenue,CAHD,South Glos Users in South Glos Homes,Permanent Nursing,Fshc  1St Floor,662.24, 07-May-2019
1705,Revenue,CAHD,Bed Purchasing - South,Permanent Nursing,Fshc  1St Floor,2398.00, 07-May-2019
1706,Revenue,CAHD,South Glos Users in South Glos Homes,Permanent Nursing,Fshc  1St Floor,662.24, 07-May-2019
1707,Revenue,CAHD,Bed Purchasing - South,Permanent Residential,Fshc  1St Floor,2303.60, 07-May-2019
1708,Revenue,CAHD,Bed Purchasing - South,Permanent Nursing,Fshc  1St Floor,2287.36, 07-May-2019
1709,Revenue,CAHD,Bed purchasing - Elderly S117 - South,Permanent Nursing,Fshc  1St Floor,2287.36, 07-May-2019
1710,Revenue,CAHD,Bed Purchasing - South,Permanent Nursing,Fshc  1St Floor,3593.88, 07-May-2019
1711,Revenue,CAHD,Bed Purchasing - North,Permanent Nursing,Fshc  1St Floor,2287.36, 07-May-2019
1712,Revenue,CAHD,Bed Purchasing - North,Permanent Nursing,Fshc  1St Floor,3756.44, 07-May-2019
1713,Revenue,CAHD,Bed Purchasing - North,Permanent Nursing,Fshc  1St Floor,3234.72, 07-May-2019
1714,Revenue,CAHD,Bed Purchasing - South,Permanent Nursing,Fshc  1St Floor,2287.36, 07-May-2019
1715,Revenue,CAHD,Bed Purchasing - South,Permanent Residential,Fshc  1St Floor,3744.04, 07-May-2019
1716,Revenue,CAHD,Bed Purchasing - North,Permanent Nursing,Fshc  1St Floor,2401.84, 07-May-2019
1717,Revenue,CAHD,Bed Purchasing - North,Permanent Nursing,Fshc  1St Floor,1200.92, 07-May-2019
1718,Revenue,CAHD,Bed Purchasing - Southmead Hospital,Fees & Charges Income - General,Fshc  1St Floor,571.64, 07-May-2019
1719,Revenue,CAHD,Bed Purchasing - North,Permanent Residential,Fshc  1St Floor,2347.20, 07-May-2019
1720,Revenue,CAHD,Bed Purchasing - North,Permanent Nursing,Fshc  1St Floor,2289.56, 07-May-2019
1721,Revenue,CAHD,Bed Purchasing - North,Respite Emergency - Residential,Fshc  1St Floor,1793.31, 07-May-2019
1722,Revenue,CAHD,Bed Purchasing - Central,Permanent Residential,Fshc  1St Floor,2347.20, 07-May-2019
1723,Revenue,CAHD,Bed Purchasing - North,Respite Planned - Residential,Fshc  1St Floor,2092.20, 07-May-2019
1724,Revenue,CAHD,Bed Purchasing - North,Respite Planned - Residential,Fshc  1St Floor,1270.26, 07-May-2019
1725,Revenue,CAHD,Bed Purchasing - North,Respite Planned - Residential,Fshc  1St Floor,747.21, 07-May-2019
1726,Revenue,CAHD,Bed Purchasing - Central,Permanent Nursing,Fshc  1St Floor,4173.84, 07-May-2019
1727,Revenue,CAHD,Bed Purchasing - North,Permanent Nursing,Fshc  1St Floor,2364.44, 07-May-2019
1728,Revenue,CAHD,Bed Purchasing - North,Permanent Residential,Fshc  1St Floor,2273.28, 07-May-2019
1729,Revenue,CAHD,Bed Purchasing - North,Permanent Nursing,Fshc  1St Floor,2657.80, 07-May-2019
1730,Revenue,CAHD,Bed Purchasing - North,Permanent Nursing,Fshc  1St Floor,1328.90, 07-May-2019
1731,Revenue,CAHD,Bed Purchasing - North,Permanent Residential,Fshc  1St Floor,3900.00, 07-May-2019
1732,Revenue,CAHD,CSC - Fostering Carer Support,Advertising - General,Fuelcast,1384.20, 17-May-2019
1733,Revenue,CAHD,CSC - Agency Fostering,Foster Parent Allowances,Fusion Fostering Ltd,4626.97, 30-May-2019
1734,Revenue,CAHD,CSC - Care Leavers Independent Living,Independent Living,Fusion Independence Limited,17714.28, 29-May-2019
1735,Revenue,CAHD,CSC - Vinney Green Secure Unit,Personal Needs of Clients,Gary Thomas Films,3400.00, 03-May-2019
1736,Revenue,CAHD,CSC - Corporate Parenting Manager,Agency Staff (Admin/Support Staff) Pay,Gatenby Sanderson Limited,2320.00, 01-May-2019
1737,Revenue,CAHD,CSC - Corporate Parenting Manager,Agency Staff (Admin/Support Staff) Pay,Gatenby Sanderson Limited,2320.00, 08-May-2019
1738,Revenue,CAHD,CSC - Corporate Parenting Manager,Agency Staff (Admin/Support Staff) Pay,Gatenby Sanderson Limited,2900.00, 14-May-2019
1739,Revenue,CAHD,CSC - Corporate Parenting Manager,Agency Staff (Admin/Support Staff) Pay,Gatenby Sanderson Limited,2320.00, 20-May-2019
1740,Revenue,CAHD,CSC - Corporate Parenting Manager,Agency Staff (Admin/Support Staff) Pay,Gatenby Sanderson Limited,2900.00, 24-May-2019
1741,Revenue,CAHD,Alexandra Way,Premises Maintenance by Contractor,Individual,3400.00, 15-May-2019
1742,Revenue,CAHD,Early Years Development,Educational Materials,GL Education Group Ltd,13336.15, 10-May-2019
1743,Revenue,CAHD,Bed Purchasing - South,Permanent Residential,Gladstone House,5999.84, 07-May-2019
1744,Revenue,CAHD,Jointly Funded H&SC Packages,Permanent Residential,Gladstone House,783.98, 07-May-2019
1745,Revenue,CAHD,MH Purchasing - Younger,Permanent Residential,Gladstone House,3135.90, 07-May-2019
1746,Revenue,CAHD,MH Purchasing - Younger,Permanent Residential,Gladstone House,1567.95, 07-May-2019
1747,Revenue,CAHD,Bed Purchasing - North,Permanent Residential,Glan Y Felin,6803.40, 07-May-2019
1748,Revenue,CAHD,Bed Purchasing - South,Permanent Residential,Glasallt Fawr,5344.40, 07-May-2019
1749,Revenue,CAHD,Bed Purchasing - North,Permanent Nursing,Glebe House Nursing Home,3664.16, 07-May-2019
1750,Revenue,CAHD,South Glos Users in South Glos Homes,Permanent Nursing,Glebe House Nursing Home,662.24, 07-May-2019
1751,Revenue,CAHD,South Glos Users in South Glos Homes,Permanent Nursing,Glebe House Nursing Home,662.24, 07-May-2019
1752,Revenue,CAHD,Bed Purchasing - North,Permanent Nursing,Glebe House Nursing Home,3973.12, 07-May-2019
1753,Revenue,CAHD,South Glos Users in South Glos Homes,Permanent Nursing,Glebe House Nursing Home,662.24, 07-May-2019
1754,Revenue,CAHD,South Glos Users in South Glos Homes,Permanent Nursing,Glebe House Nursing Home,662.24, 07-May-2019
1755,Revenue,CAHD,South Glos Users in South Glos Homes,Permanent Nursing,Glebe House Nursing Home,662.24, 07-May-2019
1756,Revenue,CAHD,South Glos Users in South Glos Homes,Permanent Nursing,Glebe House Nursing Home,662.24, 07-May-2019
1757,Revenue,CAHD,South Glos Users in South Glos Homes,Permanent Nursing,Glebe House Nursing Home,662.24, 07-May-2019
1758,Revenue,CAHD,Bed Purchasing - North,Permanent Residential,Glebe House Nursing Home,3785.04, 07-May-2019
1759,Revenue,CAHD,Bed Purchasing - North,Permanent Residential,Glebe House Nursing Home,3833.84, 07-May-2019
1760,Revenue,CAHD,Bed Purchasing - North,Permanent Nursing,Glebe House Nursing Home,26466.42, 07-May-2019
1761,Revenue,CAHD,Bed Purchasing - North,Permanent Nursing,Glebe House Nursing Home,3665.92, 07-May-2019
1762,Revenue,CAHD,Bed Purchasing - North,Permanent Nursing,Glebe House Nursing Home,3665.92, 07-May-2019
1763,Revenue,CAHD,Bed Purchasing - North,Fees & Charges Income - General,Glebe House Nursing Home,1343.64, 07-May-2019
1764,Revenue,CAHD,Bed Purchasing - North,Fees & Charges Income - General,Glebe House Nursing Home,985.14, 07-May-2019
1765,Revenue,CAHD,Bed Purchasing - North,Fees & Charges Income - General,Glebe House Nursing Home,985.14, 07-May-2019
1766,Revenue,CAHD,South Glos Users in South Glos Homes,Permanent Nursing,Glebe House Nursing Home,662.24, 07-May-2019
1767,Revenue,CAHD,Bed Purchasing - North,Fees & Charges Income - General,Glebe House Nursing Home,783.16, 07-May-2019
1768,Revenue,CAHD,Bed Purchasing - North,Fees & Charges Income - General,Glebe House Nursing Home,796.81, 07-May-2019
1769,Revenue,CAHD,Bed Purchasing - North,Fees & Charges Income - General,Glebe House Nursing Home,831.78, 07-May-2019
1770,Revenue,CAHD,Bed Purchasing - North,Fees & Charges Income - General,Glebe House Nursing Home,609.85, 07-May-2019
1771,Revenue,CAHD,Bed Purchasing - North,Fees & Charges Income - General,Glebe House Nursing Home,833.97, 07-May-2019
1772,Revenue,CAHD,South Glos Users in South Glos Homes,Permanent Nursing,Glebe House Nursing Home,662.24, 07-May-2019
1773,Revenue,CAHD,South Glos Users in South Glos Homes,Permanent Nursing,Glebe House Nursing Home,662.24, 07-May-2019
1774,Revenue,CAHD,Bed Purchasing - North,Permanent Nursing,Glebe House Nursing Home,4048.60, 07-May-2019
1775,Revenue,CAHD,South Glos Users in South Glos Homes,Permanent Nursing,Glebe House Nursing Home,662.24, 07-May-2019
1776,Revenue,CAHD,South Glos Users in South Glos Homes,Permanent Nursing,Glebe House Nursing Home,662.24, 07-May-2019
1777,Revenue,CAHD,South Glos Users in South Glos Homes,Permanent Nursing,Glebe House Nursing Home,662.24, 07-May-2019
1778,Revenue,CAHD,Bed Purchasing - North,Permanent Nursing,Glebe House Nursing Home,3960.16, 07-May-2019
1779,Revenue,CAHD,South Glos Users in South Glos Homes,Permanent Nursing,Glebe House Nursing Home,662.24, 07-May-2019
1780,Revenue,CAHD,Bed Purchasing - North,Permanent Residential,Glebe House Nursing Home,4075.52, 07-May-2019
1781,Revenue,CAHD,South Glos Users in South Glos Homes,Permanent Nursing,Glebe House Nursing Home,662.24, 07-May-2019
1782,Revenue,CAHD,Bed Purchasing - North,Permanent Nursing,Glebe House Nursing Home,3502.08, 07-May-2019
1783,Revenue,CAHD,South Glos Users in South Glos Homes,Permanent Nursing,Glebe House Nursing Home,662.24, 07-May-2019
1784,Revenue,CAHD,Bed Purchasing - South,Permanent Nursing,Glenview,2891.76, 07-May-2019
1785,Revenue,CAHD,Bed Purchasing - Elderly S117- North,Permanent Nursing,Glenview,3301.36, 07-May-2019
1786,Revenue,CAHD,Bed Purchasing - South,Permanent Nursing,Glenview,3993.60, 07-May-2019
1787,Revenue,CAHD,Bed Purchasing - North,Permanent Nursing,Glenview,6051.43, 07-May-2019
1788,Revenue,CAHD,Bed Purchasing - North,Permanent Nursing,Glenview,2891.76, 07-May-2019
1789,Revenue,CAHD,Bed Purchasing - North,Permanent Nursing,Glenview,1445.88, 07-May-2019
1790,Revenue,CAHD,Bed Purchasing - North,Fees & Charges Income - General,Glenview,1811.15, 07-May-2019
1791,Revenue,CAHD,Training - Adult Services,Training Expenses,Gloucestershire Deaf Association,650.00, 14-May-2019
1792,Revenue,CAHD,Bed Purchasing - North,Permanent Residential,Goldcare House,5707.68, 07-May-2019
1793,Revenue,CAHD,Bed Purchasing - North,Permanent Residential,Goldcare House,2649.99, 07-May-2019
1794,Revenue,CAHD,Bed Purchasing - South,Permanent Residential,Gordena Care Home,4018.92, 07-May-2019
1795,Revenue,CAHD,Bed Purchasing - South,Permanent Residential,Gordena Care Home,2736.12, 07-May-2019
1796,Revenue,CAHD,Bed Purchasing - South,Permanent Residential,Gordena Care Home,3895.40, 07-May-2019
1797,Revenue,CAHD,Bed Purchasing - South,Permanent Residential,Gordena Care Home,3907.28, 07-May-2019
1798,Revenue,CAHD,Bed Purchasing - South,Permanent Residential,Gordena Care Limited,5105.52, 07-May-2019
1799,Revenue,CAHD,Bed purchasing - S28A Under 65 - South,Permanent Residential,Gordena Care Limited,4965.36, 07-May-2019
1800,Revenue,CAHD,Bed Purchasing - North,Permanent Residential,Gordena Care Limited,5175.04, 07-May-2019
1801,Revenue,CAHD,Bed Purchasing - Central,Permanent Residential,Grace Care Centre,29314.29, 02-May-2019
1802,Revenue,CAHD,Bed Purchasing - Central,Permanent Residential,Grace Care Centre,7372.80, 02-May-2019
1803,Revenue,CAHD,South Glos Users in South Glos Homes,Permanent Nursing,Gracefields Nursing Home,662.24, 07-May-2019
1804,Revenue,CAHD,Bed Purchasing - South,Permanent Nursing,Gracefields Nursing Home,3796.32, 07-May-2019
1805,Revenue,CAHD,South Glos Users in South Glos Homes,Permanent Nursing,Gracefields Nursing Home,662.24, 07-May-2019
1806,Revenue,CAHD,Bed Purchasing - South,Permanent Nursing,Gracefields Nursing Home,3652.12, 07-May-2019
1807,Revenue,CAHD,South Glos Users in South Glos Homes,Permanent Nursing,Gracefields Nursing Home,662.24, 07-May-2019
1808,Revenue,CAHD,South Glos Users in South Glos Homes,Permanent Nursing,Gracefields Nursing Home,662.24, 07-May-2019
1809,Revenue,CAHD,South Glos Users in South Glos Homes,Permanent Nursing,Gracefields Nursing Home,662.24, 07-May-2019
1810,Revenue,CAHD,Bed Purchasing - South,Permanent Nursing,Gracefields Nursing Home,3652.96, 07-May-2019
1811,Revenue,CAHD,South Glos Users in South Glos Homes,Permanent Nursing,Gracefields Nursing Home,662.24, 07-May-2019
1812,Revenue,CAHD,Bed Purchasing - South,Permanent Nursing,Gracefields Nursing Home,1826.48, 07-May-2019
1813,Revenue,CAHD,Bed Purchasing - South,Permanent Nursing,Gracefields Nursing Home,3652.96, 07-May-2019
1814,Revenue,CAHD,South Glos Users in South Glos Homes,Permanent Nursing,Gracefields Nursing Home,926.37, 07-May-2019
1815,Revenue,CAHD,South Glos Users in South Glos Homes,Permanent Nursing,Gracefields Nursing Home,813.39, 07-May-2019
1816,Revenue,CAHD,South Glos Users in South Glos Homes,Permanent Nursing,Gracefields Nursing Home,662.24, 07-May-2019
1817,Revenue,CAHD,Bed purchasing - Elderly S117 - South,Permanent Nursing,Gracefields Nursing Home,2551.96, 07-May-2019
1818,Revenue,CAHD,South Glos Users in South Glos Homes,Permanent Nursing,Gracefields Nursing Home,662.24, 07-May-2019
1819,Revenue,CAHD,Bed Purchasing - South,Permanent Nursing,Gracefields Nursing Home,3756.44, 07-May-2019
1820,Revenue,CAHD,South Glos Users in South Glos Homes,Permanent Nursing,Gracefields Nursing Home,662.24, 07-May-2019
1821,Revenue,CAHD,Bed Purchasing - South,Permanent Nursing,Gracefields Nursing Home,3229.20, 07-May-2019
1822,Revenue,CAHD,South Glos Users in South Glos Homes,Permanent Nursing,Gracefields Nursing Home,662.24, 07-May-2019
1823,Revenue,CAHD,South Glos Users in South Glos Homes,Permanent Nursing,Gracefields Nursing Home,662.24, 07-May-2019
1824,Revenue,CAHD,Bed Purchasing - North,Permanent Nursing,Gracefields Nursing Home,3571.04, 07-May-2019
1825,Revenue,CAHD,Bed Purchasing - South,Permanent Nursing,Gracefields Nursing Home,3874.16, 07-May-2019
1826,Revenue,CAHD,South Glos Users in South Glos Homes,Permanent Nursing,Gracefields Nursing Home,662.24, 07-May-2019
1827,Revenue,CAHD,Bed Purchasing - Central,Permanent Nursing,Gracefields Nursing Home,3652.96, 07-May-2019
1828,Revenue,CAHD,South Glos Users in South Glos Homes,Permanent Nursing,Gracefields Nursing Home,662.24, 07-May-2019
1829,Revenue,CAHD,South Glos Users in South Glos Homes,Permanent Nursing,Gracefields Nursing Home,662.24, 07-May-2019
1830,Revenue,CAHD,Bed Purchasing - South,Permanent Nursing,Gracefields Nursing Home,3652.96, 07-May-2019
1831,Revenue,CAHD,South Glos Users in South Glos Homes,Permanent Nursing,Gracefields Nursing Home,662.24, 07-May-2019
1832,Revenue,CAHD,South Glos Users in South Glos Homes,Permanent Nursing,Gracefields Nursing Home,662.24, 07-May-2019
1833,Revenue,CAHD,South Glos Users in South Glos Homes,Permanent Nursing,Gracefields Nursing Home,662.24, 07-May-2019
1834,Revenue,CAHD,Bed Purchasing - South,Permanent Nursing,Gracefields Nursing Home,3204.88, 07-May-2019
1835,Revenue,CAHD,South Glos Users in South Glos Homes,Permanent Nursing,Gracefields Nursing Home,662.24, 07-May-2019
1836,Revenue,CAHD,South Glos Users in South Glos Homes,Permanent Nursing,Gracefields Nursing Home,662.24, 07-May-2019
1837,Revenue,CAHD,South Glos Users in South Glos Homes,Permanent Nursing,Gracefields Nursing Home,662.24, 07-May-2019
1838,Revenue,CAHD,Bed Purchasing - South,Permanent Nursing,Gracefields Nursing Home,3229.20, 07-May-2019
1839,Revenue,CAHD,South Glos Users in South Glos Homes,Permanent Nursing,Gracefields Nursing Home,662.24, 07-May-2019
1840,Revenue,CAHD,South Glos Users in South Glos Homes,Permanent Nursing,Gracefields Nursing Home,662.24, 07-May-2019
1841,Revenue,CAHD,South Glos Users in South Glos Homes,Permanent Nursing,Gracefields Nursing Home,662.24, 07-May-2019
1842,Revenue,CAHD,South Glos Users in South Glos Homes,Permanent Nursing,Gracefields Nursing Home,662.24, 07-May-2019
1843,Revenue,CAHD,South Glos Users in South Glos Homes,Permanent Nursing,Gracefields Nursing Home,1513.82, 07-May-2019
1844,Revenue,CAHD,Bed Purchasing - Central,Respite Planned - Nursing,Gracefields Nursing Home,1370.03, 07-May-2019
1845,Revenue,CAHD,South Glos Users in South Glos Homes,Permanent Nursing,Gracefields Nursing Home,662.24, 07-May-2019
1846,Revenue,CAHD,South Glos Users in South Glos Homes,Permanent Nursing,Gracefields Nursing Home,662.24, 07-May-2019
1847,Revenue,CAHD,South Glos Users in South Glos Homes,Permanent Nursing,Gracefields Nursing Home,662.24, 07-May-2019
1848,Revenue,CAHD,South Glos Users in South Glos Homes,Permanent Nursing,Gracefields Nursing Home,662.24, 07-May-2019
1849,Revenue,CAHD,South Glos Users in South Glos Homes,Permanent Nursing,Gracefields Nursing Home,662.24, 07-May-2019
1850,Revenue,CAHD,South Glos Users in South Glos Homes,Permanent Nursing,Gracefields Nursing Home,662.24, 07-May-2019
1851,Revenue,CAHD,Bed Purchasing - South,Permanent Nursing,Gracefields Nursing Home,662.24, 07-May-2019
1852,Revenue,CAHD,South Glos Users in South Glos Homes,Permanent Nursing,Gracefields Nursing Home,662.24, 07-May-2019
1853,Revenue,CAHD,Bed Purchasing - South,Permanent Nursing,Gracefields Nursing Home,3988.84, 07-May-2019
1854,Revenue,CAHD,Bed Purchasing - South,Permanent Nursing,Gracefields Nursing Home,3481.60, 07-May-2019
1855,Revenue,CAHD,South Glos Users in South Glos Homes,Permanent Nursing,Gracefields Nursing Home,662.24, 07-May-2019
1856,Revenue,CAHD,Bed Purchasing - South,Permanent Nursing,Gracefields Nursing Home,3652.96, 07-May-2019
1857,Revenue,CAHD,Bed Purchasing - South,Permanent Nursing,Gracefields Nursing Home,2551.96, 07-May-2019
1858,Revenue,CAHD,South Glos Users in South Glos Homes,Permanent Nursing,Gracefields Nursing Home,662.24, 07-May-2019
1859,Revenue,CAHD,Bed Purchasing - South,Permanent Nursing,Gracefields Nursing Home,3547.76, 07-May-2019
1860,Revenue,CAHD,South Glos Users in South Glos Homes,Permanent Nursing,Gracefields Nursing Home,662.24, 07-May-2019
1861,Revenue,CAHD,South Glos Users in South Glos Homes,Permanent Nursing,Gracefields Nursing Home,662.24, 07-May-2019
1862,Revenue,CAHD,South Glos Users in South Glos Homes,Permanent Nursing,Gracefields Nursing Home,662.24, 07-May-2019
1863,Revenue,CAHD,South Glos Users in South Glos Homes,Permanent Nursing,Gracefields Nursing Home,662.24, 07-May-2019
1864,Revenue,CAHD,Academy Resource Base Funding,Other Public Bodies,Greenshaw Learning Trust T/A Yate Academy,1010.95, 30-May-2019
1865,Revenue,CAHD,Academy Resource Base Funding,Other Public Bodies,Greenshaw Learning Trust T/A Yate Academy,1010.95, 30-May-2019
1866,Revenue,CAHD,Academy Resource Base Funding,Other Public Bodies,Greenshaw Learning Trust T/A Yate Academy,1536.63, 30-May-2019
1867,Revenue,CAHD,Academy Resource Base Funding,Other Public Bodies,Greenshaw Learning Trust T/A Yate Academy,1172.69, 30-May-2019
1868,Revenue,CAHD,Academy Resource Base Funding,Other Public Bodies,Greenshaw Learning Trust T/A Yate Academy,646.93, 30-May-2019
1869,Revenue,CAHD,Academy Resource Base Funding,Other Public Bodies,Greenshaw Learning Trust T/A Yate Academy,1698.31, 30-May-2019
1870,Revenue,CAHD,Academy Resource Base Funding,Other Public Bodies,Greenshaw Learning Trust T/A Yate Academy,1536.63, 30-May-2019
1871,Revenue,CAHD,Statemented Support Academies,Schools Funding,Greenshaw Learning Trust T/A Yate Academy,554.21, 29-May-2019
1872,Revenue,CAHD,Statemented Support Academies,Schools Funding,Greenshaw Learning Trust T/A Yate Academy,1073.04, 29-May-2019
1873,Revenue,CAHD,Statemented Support Academies,Schools Funding,Greenshaw Learning Trust T/A Yate Academy,707.50, 29-May-2019
